Workbook

Sheet Title Page
A1: U.S. EPA Office of Ground Water and Drinking Water
A2: Work Breakdown Structure (WBS) Model for Ion Exchange Treatment of Perchlorate in Drinking Water
A3: Release Date: June 30, 2019
A4: · The primary purpose of this model is to assist EPA in estimating national compliance costs.
A5: · As such, the costs are intended to be representative of typical facilities.
A6: · The default settings, however, do not account for all of the site-specific factors that could affect the cost of any given individual facility or project.
A7: · Still, other uses of the model might be reasonable if sufficient care is taken by the user to account for site- or project-specific factors.
A8: · The model results are point estimates shown to the nearest $1, but this precision is not meant to imply that the results are accurate to $1.
A9: · Instead, users should review all documentation, modify inputs/assumptions as appropriate to their specific purpose, and form their own informed opinions about the accuracy and suitability of the results.
A10: · Use of this model requires Excel 2007 or later.
A11: · The model should be opened as Read-only, so that any changes you make are saved under a new file name.
A12: · To function properly, macros ("active content") must be enabled. If a security warning appears, click "options" and "enable this content."
A13: · For further information see the following document distributed with this file:
A14: USEPA. 2019. Work Breakdown Structure-Based Cost Model for Ion Exchange Treatment of Perchlorate in Drinking Water . Office of Water.
A15: · To begin using the model, go to the INPUT sheet.

Sheet Index
A1: INDEX
A2: This page provides an index to all user-adjustable inputs and assumptions. Click on a variable name to go directly to the adjustable cells.
A4: User-adjustable Input or Assumption | B4: Variable Name and Link
A5: Access space for cartridge filters | B5: space_other_equip
A6: Access space per pump for custom designed systems | B6: space_pumps_cust
A7: Access space per pump for pre-engineered packages | B7: space_pumps_pre
A8: Add a redundant unit per x parallel lines | B8: redund_freq
A9: Add coagulant to holding tank? | B9: coag_res
A10: Additional building after… | B10: add_2nd_building
A11: Additional conductivity meters | B11: add_cond
A12: Additional freeboard | B12: sec_cont_freeboard
A13: Additional redundant cartridge filter per x MGD inflow | B13: addl_redund_cart_per_flow
A14: Additional sampling ports | B14: add_ports
A15: Additional turbididy meters | B15: add_turb
A16: Additional turbididy meters for small systems | B16: add_turb_small
A17: Administrative LOE as a percent of average technical labor | B17: Clerical_percent
A18: Air conditioning EER | B18: EER
A19: Alternate media disposal cost (including transportation) | B19: alt_media_disp
A20: Always include NEPA compliance costs? | B20: include_NEPA
A21: Annual cooling degree days | B21: cool_DD
A22: Annual heating degree days | B22: heat_DD
A23: Annual resin loss | B23: resin_loss_annual
A24: Apply POTW discharge base charge (i.e., $/month) | B24: POTW_base_fee
A25: Apply POTW discharge TSS charge (i.e., $/lb of TSS over limit below) | B25: POTW_TSS_fee
A26: Apply POTW discharge volume charge (i.e., $/1000 gallons) | B26: POTW_volume_fee
A27: Average annual pan evaporation rate | B27: pan_evap
A28: Average annual precipitation | B28: precip
A29: Average Flow | B29: average_flow_I
A30: Backwash frequency outside of regeneration/initial rinse | B30: add_backwash_freq
A31: Backwash loading rate | B31: h2oflush_backwash_rate
A32: Backwash time | B32: backwash_time
A33: Backwash/Rinse Pumping | B33: no_backwash_I
A34: Backwash/Rinse Storage | B34: no_back_tank_I
A35: Basin excavation depth above which deeper boreholes are needed | B35: deep_bore_need
A36: Bed depth | B36: bed_depth
A37: Bedding depth below pipe | B37: bedding_depth
A38: Bedding depth surrounding the pipe | B38: bedding_pct
A39: Borehole depth for deep basins | B39: bore_depth_max
A40: Borehole depth for shallow basins | B40: bore_depth_min
A41: Borehole depth without basins | B41: bore_depth_nobasin
A42: Borehole needed every x square feet | B42: hole_per_sf
A43: Boreholes per job | B43: hole_per_job
A44: Brine concentration in lbs/gal | B44: brine_conc
A45: Brine delivery method | B45: brine_method_I
A46: Brine loading rate in lbs/square ft | B46: brine_load
A47: Builder's risk insurance percentage | B47: br_ins_pct
A48: Bypass percentage | B48: bp_pct
A49: Characteristics of holding tank solids or evaporation pond solids | B49: solids_haz_I
A50: Characteristics of spent resin | B50: media_haz_I
A51: Chemical resistant coating coverage | B51: sec_cont_coating_cvg
A52: Chemical storage height | B52: storage_height
A53: Chemical tank mixer horsepower | B53: cmix_hp_per
A54: City Index | B54: city_index
A55: Clean holding tanks/basins when solids accumulation =x% of capacity | B55: htank_clean_pct
A56: Clearance space beneath the ceiling | B56: ceiling_clearance
A57: Climate for estimating evaporation pond greenhouse gas emissions | B57: GHG_pond_climate
A58: Coefficient of passive pressure | B58: Coeff_Kp
A59: Component level | B59: component_level_I
A60: Computer workstations per x operators | B60: workstation_ratio
A61: Concrete pad thickness | B61: pad_thick
A62: Concrete pad thickness for small systems | B62: pad_thick_small
A63: Concrete thickness for holding basins | B63: conc_thick
A64: Conductivity meters per vessel | B64: cond_tank
A65: Cooling table for buildings 500 square feet or greater | B65: cooling_table
A66: Cooling table for buildings less than 500 ft2 | B66: cooling_table_shed
A67: Cooling ventilation/infiltration load | B67: cool_viload
A68: Cost estimating method | B68: curve
A69: Cost for parts & maintenance for booster pumps | B69: booster_pump_maintenance
A70: Days of chemical storage | B70: cstore_days
A71: Days of winter (i.e., days of storage during periods with no net evaporation) | B71: winter_days
A72: Default number of residuals basins | B72: hbasins_default
A73: Design Flow | B73: design_flow_I
A74: Design safety factor for standby power | B74: std_safety_factor
A75: Desired treated water alkalinity as CaCO3 | B75: alk_I
A76: Desired treated water pH | B76: pHf
A77: Diameter | B77: comm_diam
A78: Dilute HCl rinse bed volumes | B78: HCl_BV
A79: Discharge option for spent backwash/rinse or regenerant | B79: res_s2_opt_I
A80: Disposal method for non-hazardous secondary solids | B80: solids_method
A81: Distance to discharge point or evaporation pond | B81: add_res_pipe_length
A82: Drive controllers per backwash pump | B82: S_back_pump
A83: Drive controllers per booster pump | B83: S_booster_pump
A84: Drive controllers per chemical feeder | B84: S_chem_feed
A85: Drive controllers per coagulant feeder | B85: S_feeder
A86: Drive controllers per eductor | B86: S_eductor
A87: Drive controllers per metering pump | B87: S_cm_pump
A88: Drive controllers per regenerant mixer | B88: S_mixer
A89: Drive controllers per regenerant pump | B89: S_regen_pump
A90: Drive controllers per residuals pump | B90: S_res_pump
A91: Electric resistance heating efficiency | B91: resist_eff
A92: Electrical percentage | B92: elect_pct
A93: Engineering percentage for large systems | B93: eng_pct_large
A94: Engineering percentage for medium systems | B94: eng_pct_medium
A95: Engineering percentage for small systems | B95: eng_pct_small
A96: Ethernet modules | B96: plc_ethernet
A97: Evaporation pond dike cross-sectional area | B97: dike_xsection
A98: Evaporation pond freeboard | B98: ep_freeboard
A99: Evaporation pond safety factor | B99: ep_safety_factor
A100: Evaporation pond solids density | B100: ep_solids_density
A101: Evaporation pond solids removal frequency | B101: dredging_freq
A102: Evaporation ratio | B102: evap_ratio
A103: Ferric chloride bulk density | B103: FeCl3_dens
A104: Ferric chloride bulk density | B104: coag_density
A105: Ferric chloride dosage | B105: coag_dose
A106: Ferric chloride molecular weight | B106: FeCl3_mw
A107: Ferric chloride sludge production factor | B107: coag_spf
A108: Financing percentage | B108: finance_pct
A109: Financing percentage for small systems | B109: finance_pct_small
A110: Fire Buffer for Buildings | B110: fire_buffer
A111: Flow meters for backwash line | B111: fm_back
A112: Flow meters for influent and effluent line | B112: tot_fm_in
A113: Flow meters for process line per vessel | B113: fm_proc
A114: Flow meters for residuals line | B114: tot_fm_res
A115: For chemical supply systems | B115: uloe_chem_maint
A116: For instruments (includes calibration) | B116: uloe_inst_maint
A117: For pumps | B117: uloe_pump_maint
A118: For valves | B118: uloe_valve_maint
A119: Free board above media at full expansion | B119: free_board
A120: Frost depth | B120: frost
A121: HCl quantity to trigger RMP requirement | B121: HCl_quant_RMP
A122: HCl strength to trigger RMP requirement | B122: HCl_strength_RMP
A123: Head loss sensors per cartridge filter | B123: headloss_cart
A124: Head loss sensors per vessel | B124: head_tank
A125: Head loss sensors per vessel for small systems | B125: head_tank_small
A126: Heat pump cooling mode EER | B126: hp_EER
A127: Heat pump heating coefficient of performance | B127: COP
A128: Heating Oil Heat Content | B128: diesel_heat_content
A129: Heating table for buildings 500 square feet or greater | B129: heating_table
A130: Heating table for buildings less than 500 ft2 | B130: heating_table_shed
A131: Heating ventilation/infiltration load | B131: heat_viload
A132: Height or length (straight) of vessel | B132: comm_height_length
A133: High/Low alarms per backwash tank | B133: alarm_back
A134: High/Low alarms per HCl tank | B134: alarm_acid
A135: High/Low alarms per holding tank | B135: alarm_res
A136: High/Low alarms per NaOH tank | B136: alarm_caustic
A137: High/Low alarms per regenerant mixing tank | B137: alarm_brine
A138: Holding basin depth to volume ratio | B138: holding_ratio
A139: Holding basin freeboard | B139: holding_freeboard
A140: Holding tank for spent backwash/rinse | B140: res_s1_opt_I
A141: Holding tank mixer horsepower (if coagulant is used) | B141: hmix_hp_per
A142: Holding tank/basin capacity factor | B142: res_cap_factor
A143: Holding tank/basin solids density | B143: ht_solids_density
A144: Holding tank/basin suspended solids removal efficiency with coagulant | B144: coag_TSSrem
A145: Holding tank/basin suspended solids removal efficiency without coagulant | B145: htank_TSSrem
A146: Hours per resin changeout | B146: uloe_throwaway
A147: Hydrochloric acid molecular weight | B147: HCl_mw
A148: Hydrochloric acid weight percent as delivered | B148: HCl_pct
A149: I/O port table | B149: port_table
A150: Include a separate day tank if daily volume is x or greater | B150: day_tank_needed
A151: Include architectural fee for small systems? | B151: include_arch_small
A152: Include architectural fee? | B152: include_arch
A153: Include buildings? | B153: include_buildings_I
A154: Include cartridge filters | B154: include_cart
A155: Include concrete pad in total capital cost? | B155: include_pad
A156: Include construction management cost for pre-engineered packages? | B156: include_cm_pre
A157: Include construction management cost? | B157: include_cm
A158: Include contingency costs for high cost systems? | B158: include_conting_high
A159: Include contingency costs for low cost systems? | B159: include_conting_low
A160: Include contingency costs for medium cost systems? | B160: include_conting_medium
A161: Include cooling in standby power | B161: need_cool
A162: Include geotechnical costs for high cost systems? | B162: include_geo_high
A163: Include geotechnical costs for low cost systems? | B163: include_geo_low
A164: Include geotechnical costs for medium cost systems? | B164: include_geo_medium
A165: Include heating in standby power | B165: need_heat
A166: Include HVAC? | B166: include_HVAC_I
A167: Include land? | B167: include_land_I
A168: Include mixers for chemical tanks | B168: include_cmix
A169: Include performance bond cost? | B169: include_bond
A170: Include permit costs? | B170: include_permits
A171: Include pilot study costs? | B171: include_pilot
A172: Include secondary containment | B172: include_sec_cont
A173: Include sitework costs? | B173: include_sitework
A174: Include standby power costs for small systems? | B174: include_standby_small
A175: Include standby power costs? | B175: include_standby
A176: Include yard piping costs? | B176: include_yardpipe
A177: Influent water temperature | B177: t_I
A178: Influent water total dissolved solids | B178: TDS_I
A179: Installation, Transportatation, and O&P percentage | B179: inst_pct
A180: Instrumentation and control percentage | B180: i_c_pct
A181: Labor hours per cartridge filter | B181: hrs_filter
A182: Legal percentage | B182: legal_pct
A183: Level switch/alarms per vessel | B183: level_switch
A184: Level switch/alarms per vessel for small systems | B184: level_switch_small
A185: Life of cartridge filters | B185: cart_life
A186: Lighting power per sf, high-quality buildings | B186: lighting_power_high
A187: Lighting power per sf, low-quality buildings and sheds | B187: lighting_power_low
A188: Lighting power per sf, mid-quality buildings | B188: lighting_power_mid
A189: Linear feet bored per day | B189: hole_per_day
A190: Loading rate maximum in gpm/square ft | B190: load_max
A191: Loading rate minimum | B191: load_min
A192: Mangerial LOE as a percent of average technical labor | B192: Manager_percent
A193: Maximum access space per vessel or tank for custom designed systems | B193: max_space_vessels_cust
A194: Maximum access space per vessel or tank for pre-engineered systems | B194: max_space_vessels_pre
A195: Maximum bed depth for autosize | B195: max_bed_depth
A196: Maximum curb thickness | B196: sec_cont_max_thick
A197: Maximum evaporation pond cell area | B197: max_ep_cell_area
A198: Maximum hazardous waste shipment size | B198: max_haz_ship
A199: Maximum liquid hazardous waste shipment size | B199: max_lhaz_ship
A200: Maximum radioactive (non-hazardous) waste shipment size | B200: max_rad_ship
A201: Maximum radioactive hazardous waste shipment size | B201: max_hazrad_ship
... 159 more rows

Sheet INPUT
A1: ANION EXCHANGE SYSTEM DESIGN AND COSTS INPUTS FOR PERCHLORATE
C3: STEP 1
C4: Select Resin Type | F4: =IF(resin_type<>5,"","For alternative resin, the buttons shown in Step 2 will enter flows only, and clear all other inputs. Advanced users can change this behavior by entering inputs on the Standard Inputs sheet") -> 
C6: STEP 2: | F6: =IF(OR('Standard Inputs'!AE9,'Standard Inputs'!AE17,'Standard Inputs'!AE25,'Standard Inputs'!AE33),"<- Using this design",IF(OR('Standard Inputs'!AF9,'Standard Inputs'!AF17,'Standard Inputs'!AF25,'Standard Inputs'!AF33),"<- You modified this design","")) ->  | G6: The standard design buttons are for EPA's use in estimating national costs, but other users might find them useful as a starting point. See documentation for more information
C7: Select one of the eight standard designs at right OR select "CLEAR FOR MANUAL ENTRY" | F7: =IF(OR('Standard Inputs'!AE10,'Standard Inputs'!AE18,'Standard Inputs'!AE26,'Standard Inputs'!AE34),"<- Using this design",IF(OR('Standard Inputs'!AF10,'Standard Inputs'!AF18,'Standard Inputs'!AF26,'Standard Inputs'!AF34),"<- You modified this design","")) -> 
F8: =IF(OR('Standard Inputs'!AE11,'Standard Inputs'!AE19,'Standard Inputs'!AE27,'Standard Inputs'!AE35),"<- Using this design",IF(OR('Standard Inputs'!AF11,'Standard Inputs'!AF19,'Standard Inputs'!AF27,'Standard Inputs'!AF35),"<- You modified this design","")) -> 
F9: =IF(OR('Standard Inputs'!AE12,'Standard Inputs'!AE20,'Standard Inputs'!AE28,'Standard Inputs'!AE36),"<- Using this design",IF(OR('Standard Inputs'!AF12,'Standard Inputs'!AF20,'Standard Inputs'!AF28,'Standard Inputs'!AF36),"<- You modified this design","")) -> 
F10: =IF(OR('Standard Inputs'!AE13,'Standard Inputs'!AE21,'Standard Inputs'!AE29,'Standard Inputs'!AE37),"<- Using this design",IF(OR('Standard Inputs'!AF13,'Standard Inputs'!AF21,'Standard Inputs'!AF29,'Standard Inputs'!AF37),"<- You modified this design","")) -> 
F11: =IF(OR('Standard Inputs'!AE14,'Standard Inputs'!AE22,'Standard Inputs'!AE30,'Standard Inputs'!AE38),"<- Using this design",IF(OR('Standard Inputs'!AF14,'Standard Inputs'!AF22,'Standard Inputs'!AF30,'Standard Inputs'!AF38),"<- You modified this design","")) -> 
F12: =IF(OR('Standard Inputs'!AE15,'Standard Inputs'!AE23,'Standard Inputs'!AE31,'Standard Inputs'!AE39),"<- Using this design",IF(OR('Standard Inputs'!AF15,'Standard Inputs'!AF23,'Standard Inputs'!AF31,'Standard Inputs'!AF39),"<- You modified this design","")) -> 
F13: =IF(OR('Standard Inputs'!AE16,'Standard Inputs'!AE24,'Standard Inputs'!AE32,'Standard Inputs'!AE40),"<- Using this design",IF(OR('Standard Inputs'!AF16,'Standard Inputs'!AF24,'Standard Inputs'!AF32,'Standard Inputs'!AF40),"<- You modified this design","")) -> <- Using this design
F14: =IF(COUNTIF(F6:F13,"")=8,"Using a manual design","") ->  | G14: =IF(COUNTIF(F6:F13,"")=8,"Fill in all gold cells below, then consider using AutoSize button","") -> 
C15: STEP 3:
C16: (Optional for standard designs) | E16: =IF(input_complete,IF('Standard Inputs'!AE51,"Input Complete -- Results Ready","Input Complete -- Press 'Generate Results'"),"Input Incomplete -- Check for Error Messages Below") -> Input Complete -- Results Ready | G16: =IF(AND(B50,B52,B51,B53,B55),"","Fill in all gold cells below. If errors persist, consider using AutoSize button.") -> 
B17: =AND(B32,B36,B50,B51,B52,B53,B55,B63,B81) -> TRUE | C17: Enter or change values in the gold and blue cells below, under "Manual Inputs"
C19: STEP 4: | G19: Results summary (see OUTPUT sheet for details)
C20: =IF(E16="input complete -- results ready","Results are ready (no need to click button)","Click here to generate results -->") -> Results are ready (no need to click button) | G20: ="Direct Capital Cost: "&IF(input_status<>"input complete -- results ready",input_status,IF(Missing_Cost,"Missing cost!",IF(cost_buildup_error,"Cost buildup error!",IF(ISERROR(direct_cost),"Calculation error!",TEXT(direct_cost,"$0,0"))))) -> Direct Capital Cost: $14,796,279
G21: ="Total Capital Cost: " & IF(input_status<>"input complete -- results ready",input_status,IF(Missing_Cost,"Missing cost!",IF(cost_buildup_error,"Cost buildup error!",IF(ISERROR(system_cost),"Calculation error!",TEXT(system_cost,"$0,0"))))) -> Total Capital Cost: $21,756,278
G22: ="Annualized Capital Cost: "&IF(input_status<>"Input Complete -- Results Ready",input_status,IF(Missing_Cost,"Missing Price!",IF(cost_buildup_error,"Cost buildup error!",IF(ISERROR(Annualized_Capital_Cost),"Calculation error!",TEXT(Annualized_Capital_Cost,"$0,0")&" per year"&" (over "&useful_life&" years at "&Discount_rate*100&"%)")))) -> Annualized Capital Cost: $1,685,101 per year (over 34.6 years at 7%)
G23: ="Annual O&M Cost: "&IF(input_status<>"Input Complete -- Results Ready",input_status,IF(ISERROR(OM_cost),"Calculation error!",TEXT(OM_cost,"$0,0")&" per year")) -> Annual O&M Cost: $3,307,458 per year
C24: MANUAL INPUTS | G24: ="Total Annualized Cost: "&IF(input_status<>"input complete -- results ready",input_status,IF(Missing_Cost,"Missing Price!",IF(cost_buildup_error,"Cost buildup error!",IF(ISERROR(Annualized_Cost),"Calculation error!",TEXT(Annualized_Cost,"$0,0")&" per year")))) -> Total Annualized Cost: $4,992,559 per year
C25: Cells in gold are required; cells in blue are optional | G25: =IF(Missing_Cost,"A price is not available for at least one required component. See Use? column on OUTPUT sheet.",IF(cost_buildup_error,"There is an Excel error in the price for at least one component. Please see the Use? column on OUTPUT sheet.","")) -> 
F26: Select units
C27: Design Flow | D27: design_flow_I | E27: 75.072 | F27: MGD
C28: Average Flow | D28: average_flow_I | E28: 37.536 | F28: MGD
C29: For information:
C30: Treatment system design flow | E30: =IF(ISERROR(design_flow),"",IF(df_units="gpm",design_flow_rate, design_flow)) -> 75.072 | F30: =df_units -> MGD | G30: ="Current bypass percentage is "&TEXT(bp_pct,"0%")&". Go to Critical Design Assumptions to change this value." -> Current bypass percentage is 0%. Go to Critical Design Assumptions to change this value.
C31: Bypass design flow | E31: =IF(ISERROR(design_flow),"",IF(df_units="gpm",bp_flow_rate, bp_flow_rate*60*24/10^6)) -> 0 | F31: =df_units -> MGD | G31: Adjust bypass percentage
B32: =IF(F32="Flow Input OK",TRUE) -> TRUE | F32: =IF(OR(df_units="",af_units=""),"Choose units for design and average flow",IF(average_flow>design_flow,"The average flow should not be greater than the design flow",IF(OR(design_flow_I=0,average_flow_I=0),"Input incomplete",IF(average_flow<design_flow*min_avg_flow,"The average flow must be at least " & min_avg_flow & " times design flow","Flow Input OK")))) -> Flow Input OK
C34: Media regeneration or throwaway operation? | D34: throwaway_I | E34: throwaway | F34: <-- pick one
C35: ="Number of bed volumes before "&IF(regen_type=1,"regeneration","media disposal") -> Number of bed volumes before media disposal | D35: BV_regen | E35: 250000 | F35: bed volumes | G35: Important: bed volumes vary based on water quality and system configuration. Select data for input carefully, based on the scenario being modeled.
B36: =IF(F36="Regeneration Input OK",TRUE) -> TRUE | F36: =IF(OR(throwaway_I="",BV_regen=0),"Input incomplete","Regeneration Input OK") -> Regeneration Input OK
C38: Minimum number of vessels in series (i.e., parallel or series operation) | D38: num_tanks_I | E38: 2 | F38: <-- enter 1 for parallel, 2 or more for series
C39: Theoretical total empty bed contact time (EBCT) | D39: EBCT_I | E39: 3 | F39: minutes
C40: For information: EBCT per Vessel | E40: =IF(ISERROR(EBCT_tank),"",EBCT_tank) -> 1.5 | F40: minutes
C41: The next four inputs may be entered manually, or calculated with Auto Size button
C42: Bed depth | D42: bed_depth | E42: 2.4 | F42: feet
C43: Vessel geometry | D43: tank_geom_I | E43: horizontal | F43: <-- pick one
C44: =IF(tank_geom=1,"Height (straight)",IF(tank_geom=2,"Length (straight)","")) -> Length (straight) | D44: comm_height_length | E44: 34 | F44: =IF(tank_geom<>"","feet","") -> feet
C45: Diameter | D45: comm_diam | E45: 10 | F45: =IF(tank_geom<>"","feet","") -> feet
C46: For information:
C47: Number of treatment trains | E47: =IF(ISERROR(num_treat_lines),"",num_treat_lines) -> 13 | F47: trains
C48: Number of operating vessels | E48: =IF(ISERROR(op_num_tanks),"",op_num_tanks) -> 26 | F48: vessels
C49: Total vessels (incl. redundancy, below) | E49: =IF(ISERROR(final_num_tanks),"",final_num_tanks) -> 30 | F49: vessels
B50: =IF(F50="bed depth ok",TRUE) -> TRUE | F50: =IF(OR(num_tanks_I="",EBCT_I="",bed_depth="",comm_height_length="",comm_diam="",tank_geom_I=""),"Input incomplete",IF(bed_depth>max_bed_depth,"Warning: bed depth too great",IF(bed_depth>2*comm_diam,"Warning: bed depth should be less than twice the vessel diameter",IF(bed_depth<min_bed_depth,"Warning: bed depth too shallow","Bed Depth OK")))) -> Bed Depth OK | G50: Adjust bed depth constraints
B51: =IF(OR(F51="height ok",F51="length ok"),TRUE) -> TRUE | F51: =IF(F50="Input incomplete","",IF(tank_geom=1,IF(IF(AND(comm_diam>=min_diam,comm_diam<=max_diam_std_size),(OR(comm_height_length>=max_comm_height,comm_height_length>max_height)),comm_height_length>max_height),"Warning: vessel too high",IF(IF(AND(comm_diam>=min_diam,comm_diam<=max_diam_std_size),(AND(comm_height_length>=min_comm_height,comm_height_length>=height)),comm_height_length>=height),"Height OK","Warning: vessel not high enough")),IF(tank_geom=2,IF(comm_height_length>max_length,"Warning: vessel too long","Length OK"),"Invalid tank geometry input"))) -> Length OK | G51: Adjust vessel size constraints
B52: =IF(F52="diameter ok",TRUE) -> TRUE | F52: =IF(F50="Input incomplete","",IF(tank_geom=1,IF(comm_diam>max_diam,"Warning: vessel diameter too great",IF(comm_diam<diameter,"Warning: vessel diameter too small","Diameter OK")),IF(tank_geom=2,IF(comm_diam>max_diam,"Warning: vessel diameter too great",IF(comm_diam>max_height,"Warning: vessel diameter too great",IF(comm_SA<SA,"Warning: vessel surface area too small",IF(comm_diam<height,"Warning: vessel diameter too small","Diameter OK")))),""))) -> Diameter OK
B53: =IF(F53="volume ok",TRUE) -> TRUE | F53: =IF(F50="Input incomplete","",IF(input_vol_vess<media_volume_expanded,"Warning: vessel too small for this bed depth","Volume OK")) -> Volume OK
F54: =IF(F50="Input incomplete","",IF(input_vol_vess<media_volume_expanded,CHOOSE(tank_geom,"Hint: reduce bed depth or increase diameter or height","Hint: reduce bed depth or increase diameter"),"")) -> 
B55: =IF(F55="loading ok",TRUE) -> TRUE | F55: =IF(F50="Input incomplete","",IF(tank_geom=1,IF(comm_load_rate>load_max,"Warning: design exceeds maximum loading",IF(comm_load_rate<load_min,"Warning: design below minimum loading","Loading OK")),IF(comm_load_rate>load_max,"Warning: design exceeds maximum loading",IF(comm_load_rate<load_min,"Warning: design below minimum loading","Loading OK")))) -> Loading OK | G55: Adjust loading constraints
F56: =IF(F50="Input incomplete","",IF(tank_geom=1,IF(comm_load_rate>load_max,"Hint: increase vessel diameter or decrease bed depth",IF(comm_load_rate<load_min,"Hint: reduce vessel diameter or increase bed depth","")),IF(comm_load_rate>load_max,"Hint: increase vessel length and diameter or decrease bed depth",IF(comm_load_rate<load_min,"Hint: reduce vessel length and diameter or increase bed depth","")))) -> 
C58: Brine delivery method | D58: brine_method_I | F58: =IF(OR(regen_type=2,AND(regen_type=1,regen_sol=2)),"not required","<-- pick one") -> not required
C59: ="Discharge option for "&IF(regen_type=2,"spent backwash/rinse","spent regenerant") -> Discharge option for spent backwash/rinse | D59: res_s2_opt_I | E59: POTW | F59: <-- pick one
C60: ="Holding tank for "&IF(regen_type=2,"spent backwash/rinse","spent regenerant") -> Holding tank for spent backwash/rinse | D60: res_s1_opt_I | E60: no holding tank | F60: =IF(res_s2_opt=3,"not required",IF(res_s2_opt=4,"required","<--pick one")) -> <--pick one | G60: =IF(res_s1_opt_I="Holding tank","Model selects between holding tank or basin based upon priority lookups on the Output sheet","") -> 
C61: Characteristics of spent resin | D61: media_haz_I | E61: non-hazardous | F61: <-- pick one
C62: =IF(res_s2_opt=3,"Characteristics of evaporation pond solids","Characteristics of holding tank solids") -> Characteristics of holding tank solids | D62: solids_haz_I | F62: =IF(OR(res_s1_opt=2,res_s2_opt=2),"not required","<-- pick one") -> not required
B63: =IF(F63="Residuals Input OK",TRUE) -> TRUE | F63: =IF(OR(media_haz_I="",AND(AND(regen_type=1,regen_sol=1),brine_method_I=""),res_s2_opt_I="",AND(res_s2_opt<>3,res_s1_opt_I=""),AND(res_s1_opt<>2,solids_haz_I="")),"Input incomplete","Residuals Input OK") -> Residuals Input OK
C65: Number of booster pumps | D65: lines_pump_I | F65: pumps | G65: Enter 0 to exclude booster pumps (i.e., use existing pumps). Clear cell to accept model defaults (no pumps for systems <1 MGD, otherwise sized per average and design flows)
C66: For information: # of booster pumps | E66: =IF(ISERROR(booster_pumps),"",booster_pumps) -> 7 | F66: pumps
C67: Number of redundant vessels to be added | D67: NRD_I | F67: units | G67: Leave blank to accept redundancy frequency specified in critical design assumptions
C68: For information: Redundant vessels | E68: =IF(ISERROR(NRD),"",NRD) -> 4
C69: Treated water corrosion control? | D69: pH_adj | F69: <-- pick or leave blank | G69: Leave blank to exclude pH adjustment for corrosion control
C70: Backwash/Rinse Pumping | D70: no_backwash_I | F70: <-- pick or leave blank | G70: Leave blank to accept model defaults (systems <1 MGD backwash using existing supply or treated water pumps, other systems add new backwash pumps)
C71: Backwash/Rinse Storage | D71: no_back_tank_I | F71: <-- pick or leave blank | G71: Leave blank to accept model defaults (only systems between 1 and 10 MGD require separate backwash tanks)
C72: For information: # of backwash pumps | E72: =IF(ISERROR(backwash_pumps),"",backwash_pumps) -> 2 | F72: units
C73: # of backwash tanks | E73: =IF(ISERROR(back_tanks),"",back_tanks) -> 0 | F73: units
C74: Component level | D74: component_level_I | F74: <-- pick or leave blank | G74: Leave blank to use low cost components
C75: System automation | D75: manual_I | E75: fully automated | F75: <-- pick or leave blank | G75: Leave blank to allow model to pick based on component level
C76: Include buildings? | D76: include_buildings_I | F76: <-- pick or leave blank | G76: Leave blank to include buildings
C77: Include HVAC? | D77: include_HVAC_I | F77: <-- pick or leave blank | G77: Leave blank to allow model to pick based on component level and building type
C78: Include land? | D78: include_land_I | F78: <-- pick or leave blank | G78: Leave blank to include land
C79: For information: Component level | E79: =IF(component_level=2,"high cost",IF(component_level=1,"mid cost","low cost")) -> low cost
C80: Automation | E80: =IF(manual=1,"manual",IF(manual=2,"semi-automated",IF(manual=3,"fully automated"))) -> fully automated
B81: =IF(F81="Optional Inputs OK",TRUE) -> TRUE | F81: =IF(ISERROR(pump_rating),"Input incomplete",IF(pump_rating>max_pump_size,"Warning: insufficent number of pumps.","Optional Inputs OK")) -> Optional Inputs OK
F82: =IF(OR(F81="input incomplete",F81="Optional Inputs OK"),"",IF(pump_rating>max_pump_size,"Hint: increase number of pumps or leave that input blank","")) -> 

Sheet OUTPUT
A1: OUTPUT SUMMARY
B2: Parameter | C2: Value | D2: Units
B3: Technology Name | C3: AX
B4: System Size Category | C4: =IF(design_flow<1,"small","large") -> large
B5: Resin type | C5: =VLOOKUP(resin_type,resin_type_table,2) -> Perchlorate-selective
B6: Design Flow | C6: =design_flow -> 75.072 | D6: MGD (excludes bypass flow)
B7: Average Flow | C7: =average_flow -> 37.536 | D7: MGD (excludes bypass flow)
B8: # of treatment trains | C8: =num_treat_lines -> 13 | D8: trains
B9: # of vessels in series | C9: =Num_tanks -> 2 | D9: (i.e., parallel or series operation)
B10: Total EBCT | C10: =EBCT -> 3 | D10: minutes
B11: EBCT per vessel | C11: =EBCT_tank -> 1.5 | D11: minutes
B12: Bed depth | C12: =bed_depth -> 2.4 | D12: feet
B13: Vessel geometry | C13: =tank_geom_I -> horizontal
B14: =IF(tank_geom=1,"Height (straight)",IF(tank_geom=2,"Length (straight)","")) -> Length (straight) | C14: =comm_height_length -> 34 | D14: feet
B15: Diameter | C15: =comm_diam -> 10 | D15: feet
B16: ="Resulting Costs (in year "&TEXT(current_year_cl,0)&" dollars)" -> Resulting Costs (in year 2017 dollars)
B17: Direct Capital Cost | C17: =IF(input_status<>"input complete -- results ready","Action required",IF(Missing_Cost,"Missing cost!",IF(cost_buildup_error,"Error in buildup!",direct_cost))) -> 14796279.38 | D17: Details | E17: =IF(input_status<>"input complete -- results ready",IF(input_complete,"Press Generate Results","Check INPUT sheet for errors"),IF(Missing_Cost,"A price is not available for at least one required component. See Use? column below.",IF(cost_buildup_error,"There is an Excel error in the price for at least one component. See Use? column below.",""))) -> 
B18: Add-on Cost | C18: =IF(input_status<>"input complete -- results ready","Action required",addon_cost) -> 179759.5113 | D18: Details
B19: Indirect Capital Cost | C19: =IF(input_status<>"input complete -- results ready","Action required",indirect_cost) -> 6780239.342 | D19: Details
B20: Total Capital Cost | C20: =IF(input_status<>"input complete -- results ready","Action required",IF(Missing_Cost,"Missing cost!",IF(cost_buildup_error,"Error in buildup!",system_cost))) -> 21756278.24 | D20: Details
B21: ="Annualized Capital Cost "&IF(OR(input_status<>"input complete -- results ready",Missing_Cost,cost_buildup_error),"","(per year over "&useful_life&" years at "&Discount_rate*100&"%)") -> Annualized Capital Cost (per year over 34.6 years at 7%) | C21: =IF(input_status<>"input complete -- results ready","Action required",Annualized_Capital_Cost) -> 1685100.757 | D21: Details
B22: Annual O&M Cost (per year) | C22: =IF(input_status<>"input complete -- results ready","Action required",OM_cost) -> 3307458.329 | D22: Details
B23: ="Total Annualized Cost (per year)" -> Total Annualized Cost (per year) | C23: =IF(input_status<>"input complete -- results ready","Action required",IF(Missing_Cost,"Missing cost!",IF(cost_buildup_error,"Error in buildup!",Annualized_Cost))) -> 4992559.086 | D23: Details
B24: Per 1,000 gallons average flow | C24: =IF(input_status<>"input complete -- results ready","Action required",IF(Missing_Cost,"Missing cost!",IF(cost_buildup_error,"Error in buildup!",C447))) -> 0.364403348
B25: Per household per year | C25: =IF(input_status<>"input complete -- results ready","Action required",IF(Missing_Cost,"Missing cost!",IF(cost_buildup_error,"Error in buildup!",C448))) -> 60.60901134
A28: Direct Capital Cost Details (items in italics, without a 1 in the "Use?" column, represent alternate costs and are excluded from total)
A29: WBS # | B29: Item | C29: Design Quanitity | E29: Design Size | G29: Size used in estimate | I29: Unit Cost | J29: Total Cost | K29: Useful Life | L29: Use? | M29: Full Line Item Name | N29: Baseline priority selection | W29: Useful Life
N30: Small (<1 mgd) | Q30: Medium (1-10 mgd) | T30: Large (>10 mgd)
N31: Low | O31: Typical | P31: High | Q31: Low | R31: Typical | S31: High | T31: Low | U31: Typical | V31: High | W31: Count? | X31: Depreciation
A32: 1 | B32: Pressure Vessels
A33: 1.1 | B33: Stainless Steel | C33: =final_num_tanks -> 30 | D33: units | E33: =comm_vol_gal -> 19974.24609 | F33: gal | G33: =IF(curve=1,comm_vol_gal,VLOOKUP(comm_vol_gal,ss_pv_cost_cl,2)) -> 19974.24609 | H33: gal | I33: =IF(curve=1,ss_pv_eq,VLOOKUP(comm_vol_gal,ss_pv_cost_cl,3)) -> 278631.6186 | J33: =IF(I33="contact vendor","--",C33*I33) -> 8358948.557 | K33: =VLOOKUP(comm_vol_gal,ss_pv_cost_cl,IF(ss_cat="large",4,5)) -> 35 | L33: 0 | M33: =$B$32&" - "&B33 -> Pressure Vessels - Stainless Steel | N33: 4 | O33: 4 | P33: 1 | Q33: 4 | R33: 4 | S33: 1 | T33: 4 | U33: 4 | V33: 1 | W33: =IF(ISERROR(K33*L33),0,IF(K33<1,0,L33)) -> 0 | X33: =IF(W33,J33/K33,0) -> 0
A34: 1.1 | B34: Carbon Steel - Stainless Internals | C34: =final_num_tanks -> 30 | D34: units | E34: =comm_vol_gal -> 19974.24609 | F34: gal | G34: =IF(curve=1,comm_vol_gal,VLOOKUP(comm_vol_gal,cs_pv_cost_cl,2)) -> 19974.24609 | H34: gal | I34: =IF(curve=1,cs_pv_eq,VLOOKUP(comm_vol_gal,cs_pv_cost_cl,3)) -> 191016.7974 | J34: =IF(I34="contact vendor","--",C34*I34) -> 5730503.921 | K34: =VLOOKUP(comm_vol_gal,cs_pv_cost_cl,IF(ss_cat="large",4,5)) -> 35 | L34: 0 | M34: =$B$32&" - "&B34 -> Pressure Vessels - Carbon Steel - Stainless Internals | N34: 3 | O34: 3 | P34: 2 | Q34: 3 | R34: 3 | S34: 2 | T34: 3 | U34: 3 | V34: 2 | W34: 0 | X34: 0
A35: 1.1 | B35: Carbon Steel - Plastic Internals | C35: =final_num_tanks -> 30 | D35: units | E35: =comm_vol_gal -> 19974.24609 | F35: gal | G35: =IF(curve=1,comm_vol_gal,VLOOKUP(comm_vol_gal,csp_pv_cost_cl,2)) -> 19974.24609 | H35: gal | I35: =IF(curve=1,csp_pv_eq,VLOOKUP(comm_vol_gal,csp_pv_cost_cl,3)) -> 108788.3494 | J35: =IF(I35="contact vendor","--",C35*I35) -> 3263650.482 | K35: =VLOOKUP(comm_vol_gal,csp_pv_cost_cl,IF(ss_cat="large",4,5)) -> 35 | L35: 1 | M35: =$B$32&" - "&B35 -> Pressure Vessels - Carbon Steel - Plastic Internals | N35: 2 | O35: 1 | P35: 3 | Q35: 2 | R35: 1 | S35: 3 | T35: 2 | U35: 1 | V35: 3 | W35: 1 | X35: 93247.15663
A36: 1.1 | B36: Fiberglass | C36: =final_num_tanks -> 30 | D36: units | E36: =comm_vol_gal -> 19974.24609 | F36: gal | G36: =IF(curve=1,comm_vol_gal,VLOOKUP(comm_vol_gal,fg_pv_cost_cl,2)) -> 19974.24609 | H36: gal | I36: =IF(curve=1,fg_pv_eq,VLOOKUP(comm_vol_gal,fg_pv_cost_cl,3)) -> contact vendor | J36: =IF(I36="contact vendor","--",C36*I36) -> -- | K36: =VLOOKUP(comm_vol_gal,fg_pv_cost_cl,IF(ss_cat="large",4,5)) -> 25 | L36: 0 | M36: =$B$32&" - "&B36 -> Pressure Vessels - Fiberglass | N36: 1 | O36: 2 | P36: 4 | Q36: 1 | R36: 2 | S36: 4 | T36: 1 | U36: 2 | V36: 4 | W36: 0 | X36: 0
A37: 2 | B37: Ion Exchange Resin | W37: 0 | X37: 0
A38: 2.1 | B38: =VLOOKUP("resin_name",resin_table,resin_type+1,FALSE) -> Perchlorate-selective | C38: =resin_volume_total -> 24480 | D38: cf | E38: NA | G38: NA | I38: =IF(resin_type=5,VLOOKUP("resin_unit_cost",resin_table,resin_type+1,FALSE),VLOOKUP(B38,an_ClO4_cost_cl,3,FALSE)) -> 242.3845187 | J38: =IF(I38="contact vendor","--",C38*I38) -> 5933573.018 | K38: =VLOOKUP(B38,an_ClO4_cost_cl,IF(ss_cat="large",4,5),FALSE) -> N/A | L38: 1 | M38: =$B$37&" - "&B38 -> Ion Exchange Resin - Perchlorate-selective | N38: 1 | O38: 1 | P38: 1 | Q38: 1 | R38: 1 | S38: 1 | T38: 1 | U38: 1 | V38: 1 | W38: 0 | X38: 0
A39: 3 | B39: Tanks | W39: 0 | X39: 0
A40: 3.1 | B40: Backwash/Rinse Tanks | W40: 0 | X40: 0
A41: 3.1.1 | B41: Steel | C41: =back_tanks -> 0 | D41: units | E41: =IF(back_tanks=0,"NA",back_tank_vol) -> NA | F41: =IF(back_tanks=0,"","gal") ->  | G41: =IF(back_tanks=0,"NA",IF(curve=1,back_tank_vol,VLOOKUP(back_tank_vol,st_bwt_cost_cl,2))) -> NA | H41: =IF(back_tanks=0,"","gal") ->  | I41: =IF(back_tanks=0,"NA",IF(curve=1,st_bwt_eq,VLOOKUP(back_tank_vol,st_bwt_cost_cl,3))) -> NA | J41: =IF(back_tanks=0,"--",IF(I41="contact vendor","--",C41*I41)) -> -- | K41: =IF(back_tanks=0,"NA",VLOOKUP(back_tank_vol,st_bwt_cost_cl,IF(ss_cat="large",4,5))) -> NA | M41: =$B$40&" - "&B41 -> Backwash/Rinse Tanks - Steel | N41: 3 | O41: 3 | P41: 1 | Q41: 3 | R41: 3 | S41: 1 | T41: 3 | U41: 3 | V41: 1 | W41: 0 | X41: 0
A42: 3.1.1 | B42: Fiberglass | C42: =back_tanks -> 0 | D42: units | E42: =IF(back_tanks=0,"NA",back_tank_vol) -> NA | F42: =IF(back_tanks=0,"","gal") ->  | G42: =IF(back_tanks=0,"NA",IF(curve=1,back_tank_vol,VLOOKUP(back_tank_vol,fg_bwt_cost_cl,2))) -> NA | H42: =IF(back_tanks=0,"","gal") ->  | I42: =IF(back_tanks=0,"NA",IF(curve=1,fg_bwt_eq,VLOOKUP(back_tank_vol,fg_bwt_cost_cl,3))) -> NA | J42: =IF(back_tanks=0,"--",IF(I42="contact vendor","--",C42*I42)) -> -- | K42: =IF(back_tanks=0,"NA",VLOOKUP(back_tank_vol,fg_bwt_cost_cl,IF(ss_cat="large",4,5))) -> NA | M42: =$B$40&" - "&B42 -> Backwash/Rinse Tanks - Fiberglass | N42: 2 | O42: 1 | P42: 2 | Q42: 2 | R42: 1 | S42: 2 | T42: 2 | U42: 1 | V42: 2 | W42: 0 | X42: 0
A43: 3.1.1 | B43: Plastic/HDPE | C43: =back_tanks -> 0 | D43: units | E43: =IF(back_tanks=0,"NA",back_tank_vol) -> NA | F43: =IF(back_tanks=0,"","gal") ->  | G43: =IF(back_tanks=0,"NA",IF(curve=1,back_tank_vol,VLOOKUP(back_tank_vol,hdpe_bwt_cost_cl,2))) -> NA | H43: =IF(back_tanks=0,"","gal") ->  | I43: =IF(back_tanks=0,"NA",IF(curve=1,hdpe_bwt_eq,VLOOKUP(back_tank_vol,hdpe_bwt_cost_cl,3))) -> NA | J43: =IF(back_tanks=0,"--",IF(I43="contact vendor","--",C43*I43)) -> -- | K43: =IF(back_tanks=0,"NA",VLOOKUP(back_tank_vol,hdpe_bwt_cost_cl,IF(ss_cat="large",4,5))) -> NA | M43: =$B$40&" - "&B43 -> Backwash/Rinse Tanks - Plastic/HDPE | N43: 1 | O43: 2 | P43: 3 | Q43: 1 | R43: 2 | S43: 3 | T43: 1 | U43: 2 | V43: 3 | W43: 0 | X43: 0
A44: 3.2 | B44: Regenerant Mixing Tanks | W44: 0 | X44: 0
A45: 3.2.1 | B45: Plastic/XLPE | C45: =mix_tanks -> 0 | D45: units | E45: =IF(mix_tanks=0,"NA",mix_tank_vol) -> NA | F45: =IF(mix_tanks=0,"","gal") ->  | G45: =IF(mix_tanks=0,"NA",IF(curve=1,mix_tank_vol,VLOOKUP(mix_tank_vol,pl_cst_cost_cl,2))) -> NA | H45: =IF(mix_tanks=0,"","gal") ->  | I45: =IF(mix_tanks=0,"NA",IF(curve=1,pl_cst_eq,VLOOKUP(mix_tank_vol,pl_cst_cost_cl,3))) -> NA | J45: =IF(mix_tanks=0,"--",IF(I45="contact vendor","--",C45*I45)) -> -- | K45: =IF(mix_tanks=0,"NA",VLOOKUP(mix_tank_vol,pl_cst_cost_cl,IF(ss_cat="large",4,5))) -> NA | M45: =$B$44&" - "&B45 -> Regenerant Mixing Tanks - Plastic/XLPE | N45: 1 | O45: 2 | P45: 3 | Q45: 1 | R45: 2 | S45: 3 | T45: 1 | U45: 2 | V45: 3 | W45: 0 | X45: 0
A46: 3.2.1 | B46: Fiberglass | C46: =mix_tanks -> 0 | D46: units | E46: =IF(mix_tanks=0,"NA",mix_tank_vol) -> NA | F46: =IF(mix_tanks=0,"","gal") ->  | G46: =IF(mix_tanks=0,"NA",IF(curve=1,mix_tank_vol,VLOOKUP(mix_tank_vol,fg_cst_cost_cl,2))) -> NA | H46: =IF(mix_tanks=0,"","gal") ->  | I46: =IF(mix_tanks=0,"NA",IF(curve=1,fg_cst_eq,VLOOKUP(mix_tank_vol,fg_cst_cost_cl,3))) -> NA | J46: =IF(mix_tanks=0,"--",IF(I46="contact vendor","--",C46*I46)) -> -- | K46: =IF(mix_tanks=0,"NA",VLOOKUP(mix_tank_vol,fg_cst_cost_cl,IF(ss_cat="large",4,5))) -> NA | M46: =$B$44&" - "&B46 -> Regenerant Mixing Tanks - Fiberglass | N46: 2 | O46: 1 | P46: 2 | Q46: 2 | R46: 1 | S46: 2 | T46: 2 | U46: 1 | V46: 2 | W46: 0 | X46: 0
A47: 3.2.1 | B47: Stainless Steel | C47: =mix_tanks -> 0 | D47: units | E47: =IF(mix_tanks=0,"NA",mix_tank_vol) -> NA | F47: =IF(mix_tanks=0,"","gal") ->  | G47: =IF(mix_tanks=0,"NA",IF(curve=1,mix_tank_vol,VLOOKUP(mix_tank_vol,ss_cst_cost_cl,2))) -> NA | H47: =IF(mix_tanks=0,"","gal") ->  | I47: =IF(mix_tanks=0,"NA",IF(curve=1,ss_cst_eq,VLOOKUP(mix_tank_vol,ss_cst_cost_cl,3))) -> NA | J47: =IF(mix_tanks=0,"--",IF(I47="contact vendor","--",C47*I47)) -> -- | K47: =IF(mix_tanks=0,"NA",VLOOKUP(mix_tank_vol,ss_cst_cost_cl,IF(ss_cat="large",4,5))) -> NA | M47: =$B$44&" - "&B47 -> Regenerant Mixing Tanks - Stainless Steel | N47: 3 | O47: 3 | P47: 1 | Q47: 3 | R47: 3 | S47: 1 | T47: 3 | U47: 3 | V47: 1 | W47: 0 | X47: 0
A48: 3.2.2 | B48: Secondary Containment - Concrete Curbing | C48: =IF(OR(include_sec_cont=0,mix_tanks=0),0,mix_curb_concrete) -> 0 | D48: cy | E48: NA | G48: NA | I48: =IF(C48=0,"NA",VLOOKUP(0,conc_basin_cost_cl,3)) -> NA | J48: =IF(C48=0,"--",IF(I48="contact vendor","--",C48*I48)) -> -- | K48: =IF(C48=0,"NA",VLOOKUP(0,conc_basin_cost_cl,IF(ss_cat="large",4,5))) -> NA | M48: =$B$44&" - "&B48 -> Regenerant Mixing Tanks - Secondary Containment - Concrete Curbing | N48: 1 | O48: 1 | P48: 1 | Q48: 1 | R48: 1 | S48: 1 | T48: 1 | U48: 1 | V48: 1 | W48: =IF(ISERROR(K48*L48),0,IF(K48<1,0,L48)) -> 0 | X48: =IF(W48,J48/K48,0) -> 0
A49: 3.2.3 | B49: Secondary Containment - Chemical Resistant Coating | C49: =IF(OR(include_sec_cont=0,mix_tanks=0),0,mix_coating_gal) -> 0 | D49: gal | E49: NA | G49: NA | I49: =IF(C49=0,"NA",VLOOKUP(0,conc_coating_cost_cl,3)) -> NA | J49: =IF(C49=0,"--",IF(I49="contact vendor","--",C49*I49)) -> -- | K49: =IF(C49=0,"NA",VLOOKUP(0,conc_coating_cost_cl,IF(ss_cat="large",4,5))) -> NA | M49: =$B$44&" - "&B49 -> Regenerant Mixing Tanks - Secondary Containment - Chemical Resistant Coating | N49: 1 | O49: 1 | P49: 1 | Q49: 1 | R49: 1 | S49: 1 | T49: 1 | U49: 1 | V49: 1 | W49: =IF(ISERROR(K49*L49),0,IF(K49<1,0,L49)) -> 0 | X49: =IF(W49,J49/K49,0) -> 0
A50: 3.3 | B50: Acid Storage Tanks | W50: 0 | X50: 0
A51: 3.3.1 | B51: Plastic/XLPE | C51: =HCl_tanks -> 0 | D51: units | E51: =IF(HCl_tanks=0,"NA",HCl_tank_vol) -> NA | F51: =IF(HCl_tanks=0,"","gal") ->  | G51: =IF(HCl_tanks=0,"NA",IF(curve=1,HCl_tank_vol,VLOOKUP(HCl_tank_vol,pl_cst_cost_cl,2))) -> NA | H51: =IF(HCl_tanks=0,"","gal") ->  | I51: =IF(HCl_tanks=0,"NA",IF(curve=1,pl_at_eq,VLOOKUP(HCl_tank_vol,pl_cst_cost_cl,3))) -> NA | J51: =IF(HCl_tanks=0,"--",IF(I51="contact vendor","--",C51*I51)) -> -- | K51: =IF(HCl_tanks=0,"NA",VLOOKUP(HCl_tank_vol,pl_cst_cost_cl,IF(ss_cat="large",4,5))) -> NA | M51: =$B$50&" - "&B51 -> Acid Storage Tanks - Plastic/XLPE | N51: 1 | O51: 2 | P51: 2 | Q51: 1 | R51: 2 | S51: 2 | T51: 1 | U51: 2 | V51: 2 | W51: 0 | X51: 0
A52: 3.3.1 | B52: Fiberglass | C52: =HCl_tanks -> 0 | D52: units | E52: =IF(HCl_tanks=0,"NA",HCl_tank_vol) -> NA | F52: =IF(HCl_tanks=0,"","gal") ->  | G52: =IF(HCl_tanks=0,"NA",IF(curve=1,HCl_tank_vol,VLOOKUP(HCl_tank_vol,fg_cst_cost_cl,2))) -> NA | H52: =IF(HCl_tanks=0,"","gal") ->  | I52: =IF(HCl_tanks=0,"NA",IF(curve=1,fg_at_eq,VLOOKUP(HCl_tank_vol,fg_cst_cost_cl,3))) -> NA | J52: =IF(HCl_tanks=0,"--",IF(I52="contact vendor","--",C52*I52)) -> -- | K52: =IF(HCl_tanks=0,"NA",VLOOKUP(HCl_tank_vol,fg_cst_cost_cl,IF(ss_cat="large",4,5))) -> NA | M52: =$B$50&" - "&B52 -> Acid Storage Tanks - Fiberglass | N52: 2 | O52: 1 | P52: 1 | Q52: 2 | R52: 1 | S52: 1 | T52: 2 | U52: 1 | V52: 1 | W52: 0 | X52: 0
A53: 3.3.2 | B53: Secondary Containment - Concrete Curbing | C53: =IF(OR(include_sec_cont=0,HCl_tanks=0),0,hcl_curb_concrete) -> 0 | D53: cy | E53: NA | G53: NA | I53: =IF(C53=0,"NA",VLOOKUP(0,conc_basin_cost_cl,3)) -> NA | J53: =IF(C53=0,"--",IF(I53="contact vendor","--",C53*I53)) -> -- | K53: =IF(C53=0,"NA",VLOOKUP(0,conc_basin_cost_cl,IF(ss_cat="large",4,5))) -> NA | M53: =$B$50&" - "&B53 -> Acid Storage Tanks - Secondary Containment - Concrete Curbing | N53: 1 | O53: 1 | P53: 1 | Q53: 1 | R53: 1 | S53: 1 | T53: 1 | U53: 1 | V53: 1 | W53: 0 | X53: 0
A54: 3.3.3 | B54: Secondary Containment - Chemical Resistant Coating | C54: =IF(OR(include_sec_cont=0,HCl_tanks=0),0,hcl_coating_gal) -> 0 | D54: gal | E54: NA | G54: NA | I54: =IF(C54=0,"NA",VLOOKUP(0,conc_coating_cost_cl,3)) -> NA | J54: =IF(C54=0,"--",IF(I54="contact vendor","--",C54*I54)) -> -- | K54: =IF(C54=0,"NA",VLOOKUP(0,conc_coating_cost_cl,IF(ss_cat="large",4,5))) -> NA | M54: Acid Storage Tanks - Secondary Containment - Chemical Resistant Coating | N54: 1 | O54: 1 | P54: 1 | Q54: 1 | R54: 1 | S54: 1 | T54: 1 | U54: 1 | V54: 1 | W54: 0 | X54: 0
A55: 3.4 | B55: Caustic Storage Tanks | W55: 0 | X55: 0
A56: 3.4.1 | B56: Plastic/XLPE | C56: =NaOH_tanks -> 0 | D56: units | E56: =IF(NaOH_tanks=0,"NA",NaOH_tank_vol) -> NA | F56: =IF(NaOH_tanks=0,"","gal") ->  | G56: =IF(NaOH_tanks=0,"NA",IF(curve=1,NaOH_tank_vol,VLOOKUP(NaOH_tank_vol,pl_cst_cost_cl,2))) -> NA | H56: =IF(NaOH_tanks=0,"","gal") ->  | I56: =IF(NaOH_tanks=0,"NA",IF(curve=1,pl_ct_eq,VLOOKUP(NaOH_tank_vol,pl_cst_cost_cl,3))) -> NA | J56: =IF(NaOH_tanks=0,"--",IF(I56="contact vendor","--",C56*I56)) -> -- | K56: =IF(NaOH_tanks=0,"NA",VLOOKUP(NaOH_tank_vol,pl_cst_cost_cl,IF(ss_cat="large",4,5))) -> NA | M56: =$B$55&" - "&B56 -> Caustic Storage Tanks - Plastic/XLPE | N56: 1 | O56: 2 | P56: 3 | Q56: 1 | R56: 2 | S56: 3 | T56: 1 | U56: 2 | V56: 3 | W56: 0 | X56: 0
A57: 3.4.1 | B57: Fiberglass | C57: =NaOH_tanks -> 0 | D57: units | E57: =IF(NaOH_tanks=0,"NA",NaOH_tank_vol) -> NA | F57: =IF(NaOH_tanks=0,"","gal") ->  | G57: =IF(NaOH_tanks=0,"NA",IF(curve=1,NaOH_tank_vol,VLOOKUP(NaOH_tank_vol,fg_cst_cost_cl,2))) -> NA | H57: =IF(NaOH_tanks=0,"","gal") ->  | I57: =IF(NaOH_tanks=0,"NA",IF(curve=1,fg_ct_eq,VLOOKUP(NaOH_tank_vol,fg_cst_cost_cl,3))) -> NA | J57: =IF(NaOH_tanks=0,"--",IF(I57="contact vendor","--",C57*I57)) -> -- | K57: =IF(NaOH_tanks=0,"NA",VLOOKUP(NaOH_tank_vol,fg_cst_cost_cl,IF(ss_cat="large",4,5))) -> NA | M57: =$B$55&" - "&B57 -> Caustic Storage Tanks - Fiberglass | N57: 2 | O57: 1 | P57: 2 | Q57: 2 | R57: 1 | S57: 2 | T57: 2 | U57: 1 | V57: 2 | W57: 0 | X57: 0
A58: 3.4.1 | B58: Stainless Steel | C58: =NaOH_tanks -> 0 | D58: units | E58: =IF(NaOH_tanks=0,"NA",NaOH_tank_vol) -> NA | F58: =IF(NaOH_tanks=0,"","gal") ->  | G58: =IF(NaOH_tanks=0,"NA",IF(curve=1,NaOH_tank_vol,VLOOKUP(NaOH_tank_vol,ss_cst_cost_cl,2))) -> NA | H58: =IF(NaOH_tanks=0,"","gal") ->  | I58: =IF(NaOH_tanks=0,"NA",IF(curve=1,ss_ct_eq,VLOOKUP(NaOH_tank_vol,ss_cst_cost_cl,3))) -> NA | J58: =IF(NaOH_tanks=0,"--",IF(I58="contact vendor","--",C58*I58)) -> -- | K58: =IF(NaOH_tanks=0,"NA",VLOOKUP(NaOH_tank_vol,ss_cst_cost_cl,IF(ss_cat="large",4,5))) -> NA | M58: =$B$55&" - "&B58 -> Caustic Storage Tanks - Stainless Steel | N58: 3 | O58: 3 | P58: 1 | Q58: 3 | R58: 3 | S58: 1 | T58: 3 | U58: 3 | V58: 1 | W58: 0 | X58: 0
A59: 3.4.2 | B59: Heat Tracing | C59: =NaOH_tanks -> 0 | D59: units | E59: =IF(NaOH_tanks=0,"NA",NaOH_tank_vol) -> NA | F59: =IF(NaOH_tanks=0,"","gal") ->  | G59: =IF(NaOH_tanks=0,"NA",IF(curve=1,NaOH_tank_vol,VLOOKUP(NaOH_tank_vol,cst_heat_cost_cl,2))) -> NA | H59: =IF(NaOH_tanks=0,"","gal") ->  | I59: =IF(NaOH_tanks=0,"NA",IF(curve=1,ct_heat_eq,VLOOKUP(NaOH_tank_vol,cst_heat_cost_cl,3))) -> NA | J59: =IF(NaOH_tanks=0,"--",IF(I59="contact vendor","--",C59*I59)) -> -- | K59: =IF(NaOH_tanks=0,"NA",VLOOKUP(NaOH_tank_vol,cst_heat_cost_cl,IF(ss_cat="large",4,5))) -> NA | M59: =$B$55&" - "&B59 -> Caustic Storage Tanks - Heat Tracing | N59: 1 | O59: 1 | P59: 1 | Q59: 1 | R59: 1 | S59: 1 | T59: 1 | U59: 1 | V59: 1 | W59: 0 | X59: 0
A60: 3.4.3 | B60: Insulation | C60: =NaOH_tanks -> 0 | D60: units | E60: =IF(NaOH_tanks=0,"NA",NaOH_tank_vol) -> NA | F60: =IF(NaOH_tanks=0,"","gal") ->  | G60: =IF(NaOH_tanks=0,"NA",IF(curve=1,NaOH_tank_vol,VLOOKUP(NaOH_tank_vol,cst_insul_cost_cl,2))) -> NA | H60: =IF(NaOH_tanks=0,"","gal") ->  | I60: =IF(NaOH_tanks=0,"NA",IF(curve=1,ct_insul_eq,VLOOKUP(NaOH_tank_vol,cst_insul_cost_cl,3))) -> NA | J60: =IF(NaOH_tanks=0,"--",IF(I60="contact vendor","--",C60*I60)) -> -- | K60: =IF(NaOH_tanks=0,"NA",VLOOKUP(NaOH_tank_vol,cst_insul_cost_cl,IF(ss_cat="large",4,5))) -> NA | M60: =$B$55&" - "&B60 -> Caustic Storage Tanks - Insulation | N60: 1 | O60: 1 | P60: 1 | Q60: 1 | R60: 1 | S60: 1 | T60: 1 | U60: 1 | V60: 1 | W60: 0 | X60: 0
A61: 3.4.4 | B61: Secondary Containment - Concrete Curbing | C61: =IF(OR(include_sec_cont=0,NaOH_tanks=0),0,ct_curb_concrete) -> 0 | D61: cy | E61: NA | G61: NA | I61: =IF(C61=0,"NA",VLOOKUP(0,conc_basin_cost_cl,3)) -> NA | J61: =IF(C61=0,"--",IF(I61="contact vendor","--",C61*I61)) -> -- | K61: =IF(C61=0,"NA",VLOOKUP(0,conc_basin_cost_cl,IF(ss_cat="large",4,5))) -> NA | M61: =$B$55&" - "&B61 -> Caustic Storage Tanks - Secondary Containment - Concrete Curbing | N61: 1 | O61: 1 | P61: 1 | Q61: 1 | R61: 1 | S61: 1 | T61: 1 | U61: 1 | V61: 1 | W61: =IF(ISERROR(K61*L61),0,IF(K61<1,0,L61)) -> 0 | X61: =IF(W61,J61/K61,0) -> 0
A62: 3.4.5 | B62: Secondary Containment - Chemical Resistant Coating | C62: =IF(OR(include_sec_cont=0,NaOH_tanks=0),0,ct_coating_gal) -> 0 | D62: gal | E62: NA | G62: NA | I62: =IF(C62=0,"NA",VLOOKUP(0,conc_coating_cost_cl,3)) -> NA | J62: =IF(C62=0,"--",IF(I62="contact vendor","--",C62*I62)) -> -- | K62: =IF(C62=0,"NA",VLOOKUP(0,conc_coating_cost_cl,IF(ss_cat="large",4,5))) -> NA | M62: Caustic Storage Tanks - Secondary Containment - Chemical Resistant Coating | N62: 1 | O62: 1 | P62: 1 | Q62: 1 | R62: 1 | S62: 1 | T62: 1 | U62: 1 | V62: 1 | W62: 0 | X62: 0
A63: 3.5 | B63: Caustic Day Tanks | W63: 0 | X63: 0
A64: 3.5.1 | B64: Plastic/XLPE | C64: =NaOH_day_tanks -> 0 | D64: units | E64: =IF(C64=0,"NA",NaOH_day_tank_vol) -> NA | F64: =IF(C64=0,"","gal") ->  | G64: =IF(C64=0,"NA",IF(curve=1,NaOH_day_tank_vol,VLOOKUP(NaOH_day_tank_vol,pl_cst_cost_cl,2))) -> NA | H64: =IF(C64=0,"","gal") ->  | I64: =IF(C64=0,"NA",IF(curve=1,pl_day_eq,VLOOKUP(NaOH_day_tank_vol,pl_cst_cost_cl,3))) -> NA | J64: =IF(C64=0,"--",IF(I64="contact vendor","--",C64*I64)) -> -- | K64: =IF(C64=0,"NA",VLOOKUP(NaOH_day_tank_vol,pl_cst_cost_cl,IF(ss_cat="large",4,5))) -> NA | M64: =$B$63&" - "&B64 -> Caustic Day Tanks - Plastic/XLPE | N64: 1 | O64: 2 | P64: 3 | Q64: 1 | R64: 2 | S64: 3 | T64: 1 | U64: 2 | V64: 3 | W64: 0 | X64: 0
A65: 3.5.1 | B65: Fiberglass | C65: =NaOH_day_tanks -> 0 | D65: units | E65: =IF(C65=0,"NA",NaOH_day_tank_vol) -> NA | F65: =IF(C65=0,"","gal") ->  | G65: =IF(C65=0,"NA",IF(curve=1,NaOH_day_tank_vol,VLOOKUP(NaOH_day_tank_vol,fg_cst_cost_cl,2))) -> NA | H65: =IF(C65=0,"","gal") ->  | I65: =IF(C65=0,"NA",IF(curve=1,fg_day_eq,VLOOKUP(NaOH_day_tank_vol,fg_cst_cost_cl,3))) -> NA | J65: -- | K65: =IF(C65=0,"NA",VLOOKUP(NaOH_day_tank_vol,fg_cst_cost_cl,IF(ss_cat="large",4,5))) -> NA | M65: =$B$63&" - "&B65 -> Caustic Day Tanks - Fiberglass | N65: 2 | O65: 1 | P65: 2 | Q65: 2 | R65: 1 | S65: 2 | T65: 2 | U65: 1 | V65: 2 | W65: 0 | X65: 0
A66: 3.5.1 | B66: Stainless Steel | C66: =NaOH_day_tanks -> 0 | D66: units | E66: =IF(C66=0,"NA",NaOH_day_tank_vol) -> NA | F66: =IF(C66=0,"","gal") ->  | G66: =IF(C66=0,"NA",IF(curve=1,NaOH_day_tank_vol,VLOOKUP(NaOH_day_tank_vol,ss_cst_cost_cl,2))) -> NA | H66: =IF(C66=0,"","gal") ->  | I66: =IF(C66=0,"NA",IF(curve=1,ss_day_eq,VLOOKUP(NaOH_day_tank_vol,ss_cst_cost_cl,3))) -> NA | J66: -- | K66: =IF(C66=0,"NA",VLOOKUP(NaOH_day_tank_vol,ss_cst_cost_cl,IF(ss_cat="large",4,5))) -> NA | M66: =$B$63&" - "&B66 -> Caustic Day Tanks - Stainless Steel | N66: 3 | O66: 3 | P66: 1 | Q66: 3 | R66: 3 | S66: 1 | T66: 3 | U66: 3 | V66: 1 | W66: 0 | X66: 0
A67: 3.5.2 | B67: Heat Tracing | C67: =NaOH_day_tanks -> 0 | D67: units | E67: =IF(C67=0,"NA",NaOH_day_tank_vol) -> NA | F67: =IF(C67=0,"","gal") ->  | G67: =IF(C67=0,"NA",IF(curve=1,NaOH_day_tank_vol,VLOOKUP(NaOH_day_tank_vol,cst_heat_cost_cl,2))) -> NA | H67: =IF(C67=0,"","gal") ->  | I67: =IF(C67=0,"NA",IF(curve=1,day_heat_eq,VLOOKUP(NaOH_day_tank_vol,cst_heat_cost_cl,3))) -> NA | J67: -- | K67: =IF(C67=0,"NA",VLOOKUP(NaOH_day_tank_vol,cst_heat_cost_cl,IF(ss_cat="large",4,5))) -> NA | M67: =$B$63&" - "&B67 -> Caustic Day Tanks - Heat Tracing | N67: 1 | O67: 1 | P67: 1 | Q67: 1 | R67: 1 | S67: 1 | T67: 1 | U67: 1 | V67: 1 | W67: 0 | X67: 0
A68: 3.5.3 | B68: Insulation | C68: =NaOH_day_tanks -> 0 | D68: units | E68: =IF(C68=0,"NA",NaOH_day_tank_vol) -> NA | F68: =IF(C68=0,"","gal") ->  | G68: =IF(C68=0,"NA",IF(curve=1,NaOH_day_tank_vol,VLOOKUP(NaOH_day_tank_vol,cst_insul_cost_cl,2))) -> NA | H68: =IF(C68=0,"","gal") ->  | I68: =IF(C68=0,"NA",IF(curve=1,day_insul_eq,VLOOKUP(NaOH_day_tank_vol,cst_insul_cost_cl,3))) -> NA | J68: -- | K68: =IF(C68=0,"NA",VLOOKUP(NaOH_day_tank_vol,cst_insul_cost_cl,IF(ss_cat="large",4,5))) -> NA | M68: =$B$63&" - "&B68 -> Caustic Day Tanks - Insulation | N68: 1 | O68: 1 | P68: 1 | Q68: 1 | R68: 1 | S68: 1 | T68: 1 | U68: 1 | V68: 1 | W68: 0 | X68: 0
A69: 3.5.4 | B69: Secondary Containment - Concrete Curbing | C69: =IF(OR(include_sec_cont=0,NaOH_day_tanks=0),0,dt_curb_concrete) -> 0 | D69: cy | E69: NA | G69: NA | I69: =IF(C69=0,"NA",VLOOKUP(0,conc_basin_cost_cl,3)) -> NA | J69: -- | K69: =IF(C69=0,"NA",VLOOKUP(0,conc_basin_cost_cl,IF(ss_cat="large",4,5))) -> NA | M69: =$B$55&" - "&B69 -> Caustic Storage Tanks - Secondary Containment - Concrete Curbing | N69: 1 | O69: 1 | P69: 1 | Q69: 1 | R69: 1 | S69: 1 | T69: 1 | U69: 1 | V69: 1 | W69: 0 | X69: 0
A70: 3.5.5 | B70: Secondary Containment - Chemical Resistant Coating | C70: =IF(OR(include_sec_cont=0,NaOH_day_tanks=0),0,dt_coating_gal) -> 0 | D70: gal | E70: NA | G70: NA | I70: =IF(C70=0,"NA",VLOOKUP(0,conc_coating_cost_cl,3)) -> NA | J70: -- | K70: =IF(C70=0,"NA",VLOOKUP(0,conc_coating_cost_cl,IF(ss_cat="large",4,5))) -> NA | M70: Caustic Storage Tanks - Secondary Containment - Chemical Resistant Coating | N70: 1 | O70: 1 | P70: 1 | Q70: 1 | R70: 1 | S70: 1 | T70: 1 | U70: 1 | V70: 1 | W70: 0 | X70: 0
A71: 3.6 | B71: Residuals Holding Tanks/Basins | W71: 0 | X71: 0
A72: 3.6.1 | B72: Concrete Basins (includes Excavation, Backfill, and Compaction) | C72: =hbasins -> 0 | D72: units | E72: =IF(hbasins=0,"NA",hbasin_vol) -> NA | F72: =IF(C72=0,"","gal") ->  | G72: =IF(hbasins=0,"NA",hbasin_vol) -> NA | H72: =IF(C72=0,"","gal") ->  | I72: =IF(hbasins=0,"NA",J72/hbasins) -> NA | J72: =IF(hbasins=0,"--",hconc_vol*VLOOKUP(0,conc_basin_cost_cl,3)+hexcavation_vol*VLOOKUP(0,excavate_cost_cl,3)+hbackfill_vol*VLOOKUP(0,backfill_cost_cl,3)+hrailing*VLOOKUP("aluminum railing",metal_cost_cl,3)) -> -- | K72: =IF(hbasins=0,"NA",VLOOKUP(0,conc_basin_cost_cl,IF(ss_cat="large",4,5))) -> NA | M72: =$B$71&" - "&B72 -> Residuals Holding Tanks/Basins - Concrete Basins (includes Excavation, Backfill, and Compaction) | N72: 3 | O72: 3 | P72: 2 | Q72: 3 | R72: 3 | S72: 2 | T72: 3 | U72: 3 | V72: 2 | W72: 0 | X72: 0
A73: 3.6.1 | B73: Steel Tanks | C73: =htanks -> 0 | D73: units | E73: =IF(C73=0,"NA",htank_vol) -> NA | F73: =IF(C73=0,"","gal") ->  | G73: =IF(htanks=0,"NA",IF(curve=1,htank_vol,VLOOKUP(htank_vol,st_bwt_cost_cl,2))) -> NA | H73: =IF(C73=0,"","gal") ->  | I73: =IF(htanks=0,"NA",IF(curve=1,st_ht_eq,VLOOKUP(htank_vol,st_bwt_cost_cl,3))) -> NA | J73: =IF(OR(C73=0,I73="contact vendor"),"--",C73*I73) -> -- | K73: =IF(htanks=0,"NA",VLOOKUP(htank_vol,st_bwt_cost_cl,IF(ss_cat="large",4,5))) -> NA | M73: =$B$71&" - "&B73 -> Residuals Holding Tanks/Basins - Steel Tanks | N73: 4 | O73: 4 | P73: 1 | Q73: 4 | R73: 4 | S73: 1 | T73: 4 | U73: 4 | V73: 1 | W73: 0 | X73: 0
A74: 3.6.1 | B74: Fiberglass Tanks | C74: =htanks -> 0 | D74: units | E74: =IF(C74=0,"NA",htank_vol) -> NA | F74: =IF(C74=0,"","gal") ->  | G74: =IF(htanks=0,"NA",IF(curve=1,htank_vol,VLOOKUP(htank_vol,fg_bwt_cost_cl,2))) -> NA | H74: =IF(C74=0,"","gal") ->  | I74: =IF(htanks=0,"NA",IF(curve=1,fg_ht_eq,VLOOKUP(htank_vol,fg_bwt_cost_cl,3))) -> NA | J74: =IF(OR(C74=0,I74="contact vendor"),"--",C74*I74) -> -- | K74: =IF(htanks=0,"NA",VLOOKUP(htank_vol,fg_bwt_cost_cl,IF(ss_cat="large",4,5))) -> NA | M74: =$B$71&" - "&B74 -> Residuals Holding Tanks/Basins - Fiberglass Tanks | N74: 2 | O74: 1 | P74: 3 | Q74: 2 | R74: 1 | S74: 3 | T74: 2 | U74: 1 | V74: 3 | W74: 0 | X74: 0
A75: 3.6.1 | B75: Plastic/HDPE Tanks | C75: =htanks -> 0 | D75: units | E75: =IF(C75=0,"NA",htank_vol) -> NA | F75: =IF(C75=0,"","gal") ->  | G75: =IF(htanks=0,"NA",IF(curve=1,htank_vol,VLOOKUP(htank_vol,hdpe_bwt_cost_cl,2))) -> NA | H75: =IF(C75=0,"","gal") ->  | I75: =IF(htanks=0,"NA",IF(curve=1,hdpe_ht_eq,VLOOKUP(htank_vol,hdpe_bwt_cost_cl,3))) -> NA | J75: =IF(OR(C75=0,I75="contact vendor"),"--",C75*I75) -> -- | K75: =IF(htanks=0,"NA",VLOOKUP(htank_vol,hdpe_bwt_cost_cl,IF(ss_cat="large",4,5))) -> NA | M75: =$B$71&" - "&B75 -> Residuals Holding Tanks/Basins - Plastic/HDPE Tanks | N75: 1 | O75: 2 | P75: 4 | Q75: 1 | R75: 2 | S75: 4 | T75: 1 | U75: 2 | V75: 4 | W75: 0 | X75: 0
A76: 3.7 | B76: Polymer Storage Tanks | W76: 0 | X76: 0
A77: 3.7.1 | B77: Plastic/XLPE | C77: =polymer_tanks -> 0 | D77: units | E77: =IF(C77=0,"NA",polymer_tank_vol) -> NA | F77: =IF(C77=0,"","gal") ->  | G77: =IF(C77=0,"NA",IF(curve=1,polymer_tank_vol,VLOOKUP(polymer_tank_vol,pl_cst_cost_cl,2))) -> NA | H77: =IF(C77=0,"","gal") ->  | I77: =IF(C77=0,"NA",IF(curve=1,pl_polymer_st_eq,VLOOKUP(polymer_tank_vol,pl_cst_cost_cl,3))) -> NA | J77: =IF(OR(C77=0,I77="contact vendor"),"--",C77*I77) -> -- | K77: =IF(C77=0,"NA",VLOOKUP(polymer_tank_vol,pl_cst_cost_cl,IF(ss_cat="large",4,5))) -> NA | M77: =$B$76&" - "&B77 -> Polymer Storage Tanks - Plastic/XLPE | N77: 1 | O77: 2 | P77: 3 | Q77: 1 | R77: 2 | S77: 3 | T77: 1 | U77: 2 | V77: 3 | W77: 0 | X77: 0
A78: 3.7.1 | B78: Fiberglass | C78: =polymer_tanks -> 0 | D78: units | E78: =IF(C78=0,"NA",polymer_tank_vol) -> NA | F78: =IF(C78=0,"","gal") ->  | G78: =IF(C78=0,"NA",IF(curve=1,polymer_tank_vol,VLOOKUP(polymer_tank_vol,fg_cst_cost_cl,2))) -> NA | H78: =IF(C78=0,"","gal") ->  | I78: =IF(C78=0,"NA",IF(curve=1,fg_polymer_st_eq,VLOOKUP(polymer_tank_vol,fg_cst_cost_cl,3))) -> NA | J78: =IF(OR(C78=0,I78="contact vendor"),"--",C78*I78) -> -- | K78: =IF(C78=0,"NA",VLOOKUP(polymer_tank_vol,fg_cst_cost_cl,IF(ss_cat="large",4,5))) -> NA | M78: =$B$76&" - "&B78 -> Polymer Storage Tanks - Fiberglass | N78: 2 | O78: 1 | P78: 2 | Q78: 2 | R78: 1 | S78: 2 | T78: 2 | U78: 1 | V78: 2 | W78: 0 | X78: 0
A79: 3.7.1 | B79: Stainless Steel | C79: =polymer_tanks -> 0 | D79: units | E79: =IF(C79=0,"NA",polymer_tank_vol) -> NA | F79: =IF(C79=0,"","gal") ->  | G79: =IF(C79=0,"NA",IF(curve=1,polymer_tank_vol,VLOOKUP(polymer_tank_vol,ss_cst_cost_cl,2))) -> NA | H79: =IF(C79=0,"","gal") ->  | I79: =IF(C79=0,"NA",IF(curve=1,ss_polymer_st_eq,VLOOKUP(polymer_tank_vol,ss_cst_cost_cl,3))) -> NA | J79: =IF(OR(C79=0,I79="contact vendor"),"--",C79*I79) -> -- | K79: =IF(C79=0,"NA",VLOOKUP(polymer_tank_vol,ss_cst_cost_cl,IF(ss_cat="large",4,5))) -> NA | M79: =$B$76&" - "&B79 -> Polymer Storage Tanks - Stainless Steel | N79: 3 | O79: 3 | P79: 1 | Q79: 3 | R79: 3 | S79: 1 | T79: 3 | U79: 3 | V79: 1 | W79: 0 | X79: 0
A80: 4 | B80: Cartridge Filters | W80: 0 | X80: 0
A81: 4.1 | B81: Cartridge Filters | C81: =num_filters -> 29 | D81: units | E81: =filter_size -> 2.780444444 | F81: MGD | G81: =IF(curve=1,filter_size,VLOOKUP(filter_size,cart_cost_cl,2)) -> 2.780444444 | H81: MGD | I81: =IF(C81=0,0,IF(curve=1,cart_eq,VLOOKUP(filter_size,cart_cost_cl,3))) -> 57601.73993 | J81: =IF(C81=0,"--",IF(I81="contact vendor","--",C81*I81)) -> 1670450.458 | K81: =IF(C81=0,"NA",VLOOKUP(E81,cart_cost_cl,IF(ss_cat="large",4,5))) -> 35 | L81: 1 | M81: =$B$80&" - "&B81 -> Cartridge Filters - Cartridge Filters | N81: 1 | O81: 1 | P81: 1 | Q81: 1 | R81: 1 | S81: 1 | T81: 1 | U81: 1 | V81: 1 | W81: 1 | X81: 47727.15594
A82: 5 | B82: Piping | W82: 0 | X82: 0
A83: 5.1 | B83: Backwash Piping | W83: 0 | X83: 0
A84: 5.1.1 | B84: CPVC | C84: =back_pipe_length -> 425 | D84: lf | E84: =IF(back_pipe_length=0,"NA",back_pipe_diam) -> 8 | F84: =IF(back_pipe_length=0,"","in. diam") -> in. diam | G84: =IF(back_pipe_length=0,"NA",IF(curve=1,back_pipe_diam,VLOOKUP(back_pipe_diam,cpvc_pipe_cost_cl,2))) -> 8 | H84: =IF(back_pipe_length=0,"","in. diam") -> in. diam | I84: =IF(back_pipe_length=0,"NA",IF(curve=1,cpvc_pipe_eq_back,VLOOKUP(back_pipe_diam,cpvc_pipe_cost_cl,3))) -> 68.20452621 | J84: =IF(back_pipe_length=0,"--",IF(I84="contact vendor","--",C84*I84)) -> 28986.92364 | K84: =IF(back_pipe_length=0,"NA",VLOOKUP(back_pipe_diam,cpvc_pipe_cost_cl,IF(ss_cat="large",4,5))) -> 22 | L84: 0 | M84: =$B$83&" - "&B84 -> Backwash Piping - CPVC | N84: 2 | O84: 1 | P84: 3 | Q84: 2 | R84: 1 | S84: 3 | T84: 2 | U84: 1 | V84: 3 | W84: 0 | X84: 0
A85: 5.1.1 | B85: PVC | C85: =back_pipe_length -> 425 | D85: lf | E85: =IF(back_pipe_length=0,"NA",back_pipe_diam) -> 8 | F85: =IF(back_pipe_length=0,"","in. diam") -> in. diam | G85: =IF(back_pipe_length=0,"NA",IF(curve=1,back_pipe_diam,VLOOKUP(back_pipe_diam,pvc_pipe_cost_cl,2))) -> 8 | H85: =IF(back_pipe_length=0,"","in. diam") -> in. diam | I85: =IF(back_pipe_length=0,"NA",IF(curve=1,pvc_pipe_eq_back,VLOOKUP(back_pipe_diam,pvc_pipe_cost_cl,3))) -> 11.336131 | J85: =IF(back_pipe_length=0,"--",IF(I85="contact vendor","--",C85*I85)) -> 4817.855674 | K85: =IF(back_pipe_length=0,"NA",VLOOKUP(back_pipe_diam,pvc_pipe_cost_cl,IF(ss_cat="large",4,5))) -> 22 | L85: 1 | M85: =$B$83&" - "&B85 -> Backwash Piping - PVC | N85: 1 | O85: 2 | P85: 4 | Q85: 1 | R85: 2 | S85: 4 | T85: 1 | U85: 2 | V85: 4 | W85: 1 | X85: 218.9934397
A86: 5.1.1 | B86: Stainless Steel | C86: =back_pipe_length -> 425 | D86: lf | E86: =IF(back_pipe_length=0,"NA",back_pipe_diam) -> 8 | F86: =IF(back_pipe_length=0,"","in. diam") -> in. diam | G86: =IF(back_pipe_length=0,"NA",IF(curve=1,back_pipe_diam,VLOOKUP(back_pipe_diam,ss_pipe_cost_cl,2))) -> 8 | H86: =IF(back_pipe_length=0,"","in. diam") -> in. diam | I86: =IF(back_pipe_length=0,"NA",IF(curve=1,ss_pipe_eq_back,VLOOKUP(back_pipe_diam,ss_pipe_cost_cl,3))) -> 183.8609281 | J86: =IF(back_pipe_length=0,"--",IF(I86="contact vendor","--",C86*I86)) -> 78140.89446 | K86: =IF(back_pipe_length=0,"NA",VLOOKUP(back_pipe_diam,ss_pipe_cost_cl,IF(ss_cat="large",4,5))) -> 45 | L86: 0 | M86: =$B$83&" - "&B86 -> Backwash Piping - Stainless Steel | N86: 4 | O86: 4 | P86: 1 | Q86: 4 | R86: 4 | S86: 1 | T86: 4 | U86: 4 | V86: 1 | W86: 0 | X86: 0
A87: 5.1.1 | B87: Steel | C87: =back_pipe_length -> 425 | D87: lf | E87: =IF(back_pipe_length=0,"NA",back_pipe_diam) -> 8 | F87: =IF(back_pipe_length=0,"","in. diam") -> in. diam | G87: =IF(back_pipe_length=0,"NA",IF(curve=1,back_pipe_diam,VLOOKUP(back_pipe_diam,st_pipe_cost_cl,2))) -> 8 | H87: =IF(back_pipe_length=0,"","in. diam") -> in. diam | I87: =IF(back_pipe_length=0,"NA",IF(curve=1,st_pipe_eq_back,VLOOKUP(back_pipe_diam,st_pipe_cost_cl,3))) -> 126.6985446 | J87: =IF(back_pipe_length=0,"--",IF(I87="contact vendor","--",C87*I87)) -> 53846.88147 | K87: =IF(back_pipe_length=0,"NA",VLOOKUP(back_pipe_diam,st_pipe_cost_cl,IF(ss_cat="large",4,5))) -> 35 | L87: 0 | M87: =$B$83&" - "&B87 -> Backwash Piping - Steel | N87: 3 | O87: 3 | P87: 2 | Q87: 3 | R87: 3 | S87: 2 | T87: 3 | U87: 3 | V87: 2 | W87: 0 | X87: 0
A88: 5.2 | B88: Regenerant Piping | W88: 0 | X88: 0
A89: 5.2.1 | B89: CPVC | C89: =brine_pipe_length -> 0 | D89: lf | E89: =IF(brine_pipe_length=0,"NA",brine_pipe_diam) -> NA | F89: =IF(brine_pipe_length=0,"","in. diam") ->  | G89: =IF(brine_pipe_length=0,"NA",IF(curve=1,brine_pipe_diam,VLOOKUP(brine_pipe_diam,cpvc_pipe_cost_cl,2))) -> NA | H89: =IF(brine_pipe_length=0,"","in. diam") ->  | I89: =IF(brine_pipe_length=0,"NA",IF(curve=1,cpvc_pipe_eq_brine,VLOOKUP(brine_pipe_diam,cpvc_pipe_cost_cl,3))) -> NA | J89: =IF(brine_pipe_length=0,"--",IF(I89="contact vendor","--",C89*I89)) -> -- | K89: =IF(brine_pipe_length=0,"NA",VLOOKUP(brine_pipe_diam,cpvc_pipe_cost_cl,IF(ss_cat="large",4,5))) -> NA | M89: =$B$88&" - "&B89 -> Regenerant Piping - CPVC | N89: 2 | O89: 1 | P89: 2 | Q89: 2 | R89: 1 | S89: 2 | T89: 2 | U89: 1 | V89: 2 | W89: 0 | X89: 0
A90: 5.2.1 | B90: PVC | C90: =brine_pipe_length -> 0 | D90: lf | E90: =IF(brine_pipe_length=0,"NA",brine_pipe_diam) -> NA | F90: =IF(brine_pipe_length=0,"","in. diam") ->  | G90: =IF(brine_pipe_length=0,"NA",IF(curve=1,brine_pipe_diam,VLOOKUP(brine_pipe_diam,pvc_pipe_cost_cl,2))) -> NA | H90: =IF(brine_pipe_length=0,"","in. diam") ->  | I90: =IF(brine_pipe_length=0,"NA",IF(curve=1,pvc_pipe_eq_brine,VLOOKUP(brine_pipe_diam,pvc_pipe_cost_cl,3))) -> NA | J90: =IF(brine_pipe_length=0,"--",IF(I90="contact vendor","--",C90*I90)) -> -- | K90: =IF(brine_pipe_length=0,"NA",VLOOKUP(brine_pipe_diam,pvc_pipe_cost_cl,IF(ss_cat="large",4,5))) -> NA | M90: =$B$88&" - "&B90 -> Regenerant Piping - PVC | N90: 1 | O90: 2 | P90: 3 | Q90: 1 | R90: 2 | S90: 3 | T90: 1 | U90: 2 | V90: 3 | W90: 0 | X90: 0
A91: 5.2.1 | B91: Stainless Steel | C91: =brine_pipe_length -> 0 | D91: lf | E91: =IF(brine_pipe_length=0,"NA",brine_pipe_diam) -> NA | F91: =IF(brine_pipe_length=0,"","in. diam") ->  | G91: =IF(brine_pipe_length=0,"NA",IF(curve=1,brine_pipe_diam,VLOOKUP(brine_pipe_diam,ss_pipe_cost_cl,2))) -> NA | H91: =IF(brine_pipe_length=0,"","in. diam") ->  | I91: =IF(brine_pipe_length=0,"NA",IF(curve=1,ss_pipe_eq_brine,VLOOKUP(brine_pipe_diam,ss_pipe_cost_cl,3))) -> NA | J91: =IF(brine_pipe_length=0,"--",IF(I91="contact vendor","--",C91*I91)) -> -- | K91: =IF(brine_pipe_length=0,"NA",VLOOKUP(brine_pipe_diam,ss_pipe_cost_cl,IF(ss_cat="large",4,5))) -> NA | M91: =$B$88&" - "&B91 -> Regenerant Piping - Stainless Steel | N91: 3 | O91: 3 | P91: 1 | Q91: 3 | R91: 3 | S91: 1 | T91: 3 | U91: 3 | V91: 1 | W91: 0 | X91: 0
A92: 5.3 | B92: Process Piping | W92: 0 | X92: 0
A93: 5.3.1 | B93: Ductile Iron | C93: =proc_pipe_length -> 340 | D93: lf | E93: =proc_pipe_diam -> 12 | F93: in. diam | G93: =IF(curve=1,proc_pipe_diam,VLOOKUP(proc_pipe_diam,di_pipe_cost_cl,2)) -> 12 | H93: in. diam | I93: =IF(curve=1,di_pipe_eq_proc,VLOOKUP(proc_pipe_diam,di_pipe_cost_cl,3)) -> 80.53141009 | J93: =IF(I93="contact vendor","--",C93*I93) -> 27380.67943 | K93: =VLOOKUP(proc_pipe_diam,di_pipe_cost_cl,IF(ss_cat="large",4,5)) -> 40 | L93: 0 | M93: =$B$92&" "&" - "&B93 -> Process Piping - Ductile Iron | N93: 3 | O93: 3 | P93: 3 | Q93: 3 | R93: 3 | S93: 3 | T93: 3 | U93: 3 | V93: 3 | W93: 0 | X93: 0
A94: 5.3.1 | B94: CPVC | C94: =proc_pipe_length -> 340 | D94: lf | E94: =proc_pipe_diam -> 12 | F94: in. diam | G94: =IF(curve=1,proc_pipe_diam,VLOOKUP(proc_pipe_diam,cpvc_pipe_cost_cl,2)) -> 12 | H94: in. diam | I94: =IF(curve=1,cpvc_pipe_eq_proc,VLOOKUP(proc_pipe_diam,cpvc_pipe_cost_cl,3)) -> 138.898964 | J94: =IF(I94="contact vendor","--",C94*I94) -> 47225.64776 | K94: =VLOOKUP(proc_pipe_diam,cpvc_pipe_cost_cl,IF(ss_cat="large",4,5)) -> 22 | L94: 0 | M94: =$B$92&" "&" - "&B94 -> Process Piping - CPVC | N94: 2 | O94: 1 | P94: 4 | Q94: 2 | R94: 1 | S94: 4 | T94: 2 | U94: 1 | V94: 4 | W94: 0 | X94: 0
A95: 5.3.1 | B95: PVC | C95: =proc_pipe_length -> 340 | D95: lf | E95: =proc_pipe_diam -> 12 | F95: in. diam | G95: =IF(curve=1,proc_pipe_diam,VLOOKUP(proc_pipe_diam,pvc_pipe_cost_cl,2)) -> 12 | H95: in. diam | I95: =IF(curve=1,pvc_pipe_eq_proc,VLOOKUP(proc_pipe_diam,pvc_pipe_cost_cl,3)) -> 21.10558741 | J95: =IF(I95="contact vendor","--",C95*I95) -> 7175.89972 | K95: =VLOOKUP(proc_pipe_diam,pvc_pipe_cost_cl,IF(ss_cat="large",4,5)) -> 22 | L95: 1 | M95: =$B$92&" "&" - "&B95 -> Process Piping - PVC | N95: 1 | O95: 2 | P95: 5 | Q95: 1 | R95: 2 | S95: 5 | T95: 1 | U95: 2 | V95: 5 | W95: 1 | X95: 326.17726
A96: 5.3.1 | B96: Stainless Steel | C96: =proc_pipe_length -> 340 | D96: lf | E96: =proc_pipe_diam -> 12 | F96: in. diam | G96: =IF(curve=1,proc_pipe_diam,VLOOKUP(proc_pipe_diam,ss_pipe_cost_cl,2)) -> 12 | H96: in. diam | I96: =IF(curve=1,ss_pipe_eq_proc,VLOOKUP(proc_pipe_diam,ss_pipe_cost_cl,3)) -> 217.8715871 | J96: =IF(I96="contact vendor","--",C96*I96) -> 74076.33963 | K96: =VLOOKUP(proc_pipe_diam,ss_pipe_cost_cl,IF(ss_cat="large",4,5)) -> 45 | L96: 0 | M96: =$B$92&" "&" - "&B96 -> Process Piping - Stainless Steel | N96: 5 | O96: 5 | P96: 1 | Q96: 5 | R96: 5 | S96: 1 | T96: 5 | U96: 5 | V96: 1 | W96: 0 | X96: 0
A97: 5.3.1 | B97: Steel | C97: =proc_pipe_length -> 340 | D97: lf | E97: =proc_pipe_diam -> 12 | F97: in. diam | G97: =IF(curve=1,proc_pipe_diam,VLOOKUP(proc_pipe_diam,st_pipe_cost_cl,2)) -> 12 | H97: in. diam | I97: =IF(curve=1,st_pipe_eq_proc,VLOOKUP(proc_pipe_diam,st_pipe_cost_cl,3)) -> 168.3204455 | J97: =IF(I97="contact vendor","--",C97*I97) -> 57228.95148 | K97: =VLOOKUP(proc_pipe_diam,st_pipe_cost_cl,IF(ss_cat="large",4,5)) -> 35 | L97: 0 | M97: =$B$92&" "&" - "&B97 -> Process Piping - Steel | N97: 4 | O97: 4 | P97: 2 | Q97: 4 | R97: 4 | S97: 2 | T97: 4 | U97: 4 | V97: 2 | W97: 0 | X97: 0
A98: 5.4 | B98: Bypass Piping | W98: 0 | X98: 0
A99: 5.4.1 | B99: CPVC | C99: =bp_pipe_length -> 0 | D99: lf | E99: =IF(bp_pct>0,bp_pipe_diam,"NA") -> NA | F99: =IF(bp_pct=0," ","in. diam") ->  | G99: =IF(bp_pct=0,"NA",IF(curve=1,bp_pipe_diam,VLOOKUP(bp_pipe_diam,cpvc_pipe_cost_cl,2))) -> NA | H99: =IF(bp_pct=0," ","in. diam") ->  | I99: =IF(bp_pct=0,"NA",IF(curve=1,cpvc_pipe_eq_bp,VLOOKUP(bp_pipe_diam,cpvc_pipe_cost_cl,3))) -> NA | J99: =IF(OR(C99=0,I99="contact vendor"),"--",C99*I99) -> -- | K99: =IF(bp_pct=0,"NA",VLOOKUP(bp_pipe_diam,cpvc_pipe_cost_cl,IF(ss_cat="large",4,5))) -> NA | M99: =$B$98&" "&" - "&B99 -> Bypass Piping - CPVC | N99: 2 | O99: 1 | P99: 3 | Q99: 2 | R99: 1 | S99: 3 | T99: 2 | U99: 1 | V99: 3 | W99: 0 | X99: 0
A100: 5.4.1 | B100: PVC | C100: =bp_pipe_length -> 0 | D100: lf | E100: =IF(bp_pct>0,bp_pipe_diam,"NA") -> NA | F100: =IF(bp_pct=0," ","in. diam") ->  | G100: =IF(bp_pct=0,"NA",IF(curve=1,bp_pipe_diam,VLOOKUP(bp_pipe_diam,pvc_pipe_cost_cl,2))) -> NA | H100: =IF(bp_pct=0," ","in. diam") ->  | I100: =IF(bp_pct=0,"NA",IF(curve=1,pvc_pipe_eq_bp,VLOOKUP(bp_pipe_diam,pvc_pipe_cost_cl,3))) -> NA | J100: =IF(OR(C100=0,I100="contact vendor"),"--",C100*I100) -> -- | K100: =IF(bp_pct=0,"NA",VLOOKUP(bp_pipe_diam,pvc_pipe_cost_cl,IF(ss_cat="large",4,5))) -> NA | M100: =$B$98&" "&" - "&B100 -> Bypass Piping - PVC | N100: 1 | O100: 2 | P100: 4 | Q100: 1 | R100: 2 | S100: 4 | T100: 1 | U100: 2 | V100: 4 | W100: 0 | X100: 0
A101: 5.4.1 | B101: Stainless Steel | C101: =bp_pipe_length -> 0 | D101: lf | E101: =IF(bp_pct>0,bp_pipe_diam,"NA") -> NA | F101: =IF(bp_pct=0," ","in. diam") ->  | G101: =IF(bp_pct=0,"NA",IF(curve=1,bp_pipe_diam,VLOOKUP(bp_pipe_diam,ss_pipe_cost_cl,2))) -> NA | H101: =IF(bp_pct=0," ","in. diam") ->  | I101: =IF(bp_pct=0,"NA",IF(curve=1,ss_pipe_eq_bp,VLOOKUP(bp_pipe_diam,ss_pipe_cost_cl,3))) -> NA | J101: =IF(OR(C101=0,I101="contact vendor"),"--",C101*I101) -> -- | K101: =IF(bp_pct=0,"NA",VLOOKUP(bp_pipe_diam,ss_pipe_cost_cl,IF(ss_cat="large",4,5))) -> NA | M101: =$B$98&" "&" - "&B101 -> Bypass Piping - Stainless Steel | N101: 4 | O101: 4 | P101: 1 | Q101: 4 | R101: 4 | S101: 1 | T101: 4 | U101: 4 | V101: 1 | W101: 0 | X101: 0
A102: 5.4.1 | B102: Steel | C102: =bp_pipe_length -> 0 | D102: lf | E102: =IF(bp_pct>0,bp_pipe_diam,"NA") -> NA | F102: =IF(bp_pct=0," ","in. diam") ->  | G102: =IF(bp_pct=0,"NA",IF(curve=1,bp_pipe_diam,VLOOKUP(bp_pipe_diam,st_pipe_cost_cl,2))) -> NA | H102: =IF(bp_pct=0," ","in. diam") ->  | I102: =IF(bp_pct=0,"NA",IF(curve=1,st_pipe_eq_bp,VLOOKUP(bp_pipe_diam,st_pipe_cost_cl,3))) -> NA | J102: =IF(OR(C102=0,I102="contact vendor"),"--",C102*I102) -> -- | K102: =IF(bp_pct=0,"NA",VLOOKUP(bp_pipe_diam,st_pipe_cost_cl,IF(ss_cat="large",4,5))) -> NA | M102: =$B$98&" "&" - "&B102 -> Bypass Piping - Steel | N102: 3 | O102: 3 | P102: 2 | Q102: 3 | R102: 3 | S102: 2 | T102: 3 | U102: 3 | V102: 2 | W102: 0 | X102: 0
A103: 5.5 | B103: Inlet and Outlet Piping | W103: 0 | X103: 0
A104: 5.5.1 | B104: Ductile Iron | C104: =in_out_pipe_length -> 340 | D104: lf | E104: =in_out_pipe_diam -> 36 | F104: in. diam | G104: =IF(curve=1,in_out_pipe_diam,VLOOKUP(in_out_pipe_diam,di_pipe_cost_cl,2)) -> 36 | H104: in. diam | I104: =IF(curve=1,di_pipe_eq_in_out,VLOOKUP(in_out_pipe_diam,di_pipe_cost_cl,3)) -> 304.7855827 | J104: =IF(I104="contact vendor","--",C104*I104) -> 103627.0981 | K104: =VLOOKUP(in_out_pipe_diam,di_pipe_cost_cl,IF(ss_cat="large",4,5)) -> 40 | L104: 0 | M104: =$B$103&" "&" - "&B104 -> Inlet and Outlet Piping - Ductile Iron | N104: 3 | O104: 3 | P104: 3 | Q104: 3 | R104: 3 | S104: 3 | T104: 3 | U104: 3 | V104: 3 | W104: 0 | X104: 0
A105: 5.5.1 | B105: CPVC | C105: =in_out_pipe_length -> 340 | D105: lf | E105: =in_out_pipe_diam -> 36 | F105: in. diam | G105: =IF(curve=1,in_out_pipe_diam,VLOOKUP(in_out_pipe_diam,cpvc_pipe_cost_cl,2)) -> 36 | H105: in. diam | I105: =IF(curve=1,cpvc_pipe_eq_in_out,VLOOKUP(in_out_pipe_diam,cpvc_pipe_cost_cl,3)) -> contact vendor | J105: =IF(I105="contact vendor","--",C105*I105) -> -- | K105: =VLOOKUP(in_out_pipe_diam,cpvc_pipe_cost_cl,IF(ss_cat="large",4,5)) -> 22 | L105: 0 | M105: =$B$103&" "&" - "&B105 -> Inlet and Outlet Piping - CPVC | N105: 2 | O105: 1 | P105: 4 | Q105: 2 | R105: 1 | S105: 4 | T105: 2 | U105: 1 | V105: 4 | W105: =IF(ISERROR(K105*L105),0,IF(K105<1,0,L105)) -> 0 | X105: =IF(W105,J105/K105,0) -> 0
A106: 5.5.1 | B106: PVC | C106: =in_out_pipe_length -> 340 | D106: lf | E106: =in_out_pipe_diam -> 36 | F106: in. diam | G106: =IF(curve=1,in_out_pipe_diam,VLOOKUP(in_out_pipe_diam,pvc_pipe_cost_cl,2)) -> 36 | H106: in. diam | I106: =IF(curve=1,pvc_pipe_eq_in_out,VLOOKUP(in_out_pipe_diam,pvc_pipe_cost_cl,3)) -> 153.8820975 | J106: =IF(I106="contact vendor","--",C106*I106) -> 52319.91316 | K106: =VLOOKUP(in_out_pipe_diam,pvc_pipe_cost_cl,IF(ss_cat="large",4,5)) -> 22 | L106: 1 | M106: =$B$103&" "&" - "&B106 -> Inlet and Outlet Piping - PVC | N106: 1 | O106: 2 | P106: 5 | Q106: 1 | R106: 2 | S106: 5 | T106: 1 | U106: 2 | V106: 5 | W106: 1 | X106: 2378.177871
A107: 5.5.1 | B107: Stainless Steel | C107: =in_out_pipe_length -> 340 | D107: lf | E107: =in_out_pipe_diam -> 36 | F107: in. diam | G107: =IF(curve=1,in_out_pipe_diam,VLOOKUP(in_out_pipe_diam,ss_pipe_cost_cl,2)) -> 36 | H107: in. diam | I107: =IF(curve=1,ss_pipe_eq_in_out,VLOOKUP(in_out_pipe_diam,ss_pipe_cost_cl,3)) -> 701.7733656 | J107: =IF(I107="contact vendor","--",C107*I107) -> 238602.9443 | K107: =VLOOKUP(in_out_pipe_diam,ss_pipe_cost_cl,IF(ss_cat="large",4,5)) -> 45 | L107: 0 | M107: =$B$103&" "&" - "&B107 -> Inlet and Outlet Piping - Stainless Steel | N107: 5 | O107: 5 | P107: 1 | Q107: 5 | R107: 5 | S107: 1 | T107: 5 | U107: 5 | V107: 1 | W107: 0 | X107: 0
A108: 5.5.1 | B108: Steel | C108: =in_out_pipe_length -> 340 | D108: lf | E108: =in_out_pipe_diam -> 36 | F108: in. diam | G108: =IF(curve=1,in_out_pipe_diam,VLOOKUP(in_out_pipe_diam,st_pipe_cost_cl,2)) -> 36 | H108: in. diam | I108: =IF(curve=1,st_pipe_eq_in_out,VLOOKUP(in_out_pipe_diam,st_pipe_cost_cl,3)) -> 238.2363813 | J108: =IF(I108="contact vendor","--",C108*I108) -> 81000.36963 | K108: =VLOOKUP(in_out_pipe_diam,st_pipe_cost_cl,IF(ss_cat="large",4,5)) -> 35 | L108: 0 | M108: =$B$103&" "&" - "&B108 -> Inlet and Outlet Piping - Steel | N108: 4 | O108: 4 | P108: 2 | Q108: 4 | R108: 4 | S108: 2 | T108: 4 | U108: 4 | V108: 2 | W108: 0 | X108: 0
A109: 5.6 | B109: Acid Piping | W109: 0 | X109: 0
A110: 5.6.1 | B110: CPVC | C110: =acid_pipe_length -> 0 | D110: lf | E110: =IF(acid_pipe_length=0,"NA",acid_pipe_diam) -> NA | F110: =IF(acid_pipe_length=0,"","in. diam") ->  | G110: =IF(acid_pipe_length=0,"NA",IF(curve=1,acid_pipe_diam,VLOOKUP(acid_pipe_diam,cpvc_pipe_cost_cl,2))) -> NA | H110: =IF(acid_pipe_length=0,"","in. diam") ->  | I110: =IF(acid_pipe_length=0,"NA",IF(curve=1,cpvc_pipe_eq_acid,VLOOKUP(acid_pipe_diam,cpvc_pipe_cost_cl,3))) -> NA | J110: =IF(acid_pipe_length=0,"--",IF(I110="contact vendor","--",C110*I110)) -> -- | K110: =IF(acid_pipe_length=0,"NA",VLOOKUP(acid_pipe_diam,cpvc_pipe_cost_cl,IF(ss_cat="large",4,5))) -> NA | M110: =$B$109&" - "&B110 -> Acid Piping - CPVC | N110: 2 | O110: 1 | P110: 2 | Q110: 2 | R110: 1 | S110: 2 | T110: 2 | U110: 1 | V110: 2 | W110: 0 | X110: 0
A111: 5.6.1 | B111: PVC | C111: =acid_pipe_length -> 0 | D111: lf | E111: =IF(acid_pipe_length=0,"NA",acid_pipe_diam) -> NA | F111: =IF(acid_pipe_length=0,"","in. diam") ->  | G111: =IF(acid_pipe_length=0,"NA",IF(curve=1,acid_pipe_diam,VLOOKUP(acid_pipe_diam,pvc_pipe_cost_cl,2))) -> NA | H111: =IF(acid_pipe_length=0,"","in. diam") ->  | I111: =IF(acid_pipe_length=0,"NA",IF(curve=1,pvc_pipe_eq_acid,VLOOKUP(acid_pipe_diam,pvc_pipe_cost_cl,3))) -> NA | J111: =IF(acid_pipe_length=0,"--",IF(I111="contact vendor","--",C111*I111)) -> -- | K111: =IF(acid_pipe_length=0,"NA",VLOOKUP(acid_pipe_diam,pvc_pipe_cost_cl,IF(ss_cat="large",4,5))) -> NA | M111: =$B$109&" - "&B111 -> Acid Piping - PVC | N111: 1 | O111: 2 | P111: 3 | Q111: 1 | R111: 2 | S111: 3 | T111: 1 | U111: 2 | V111: 3 | W111: 0 | X111: 0
A112: 5.6.1 | B112: Stainless Steel | C112: =acid_pipe_length -> 0 | D112: lf | E112: =IF(acid_pipe_length=0,"NA",acid_pipe_diam) -> NA | F112: =IF(acid_pipe_length=0,"","in. diam") ->  | G112: =IF(acid_pipe_length=0,"NA",IF(curve=1,acid_pipe_diam,VLOOKUP(acid_pipe_diam,ss_pipe_cost_cl,2))) -> NA | H112: =IF(acid_pipe_length=0,"","in. diam") ->  | I112: =IF(acid_pipe_length=0,"NA",IF(curve=1,ss_pipe_eq_acid,VLOOKUP(acid_pipe_diam,ss_pipe_cost_cl,3))) -> NA | J112: =IF(acid_pipe_length=0,"--",IF(I112="contact vendor","--",C112*I112)) -> -- | K112: =IF(acid_pipe_length=0,"NA",VLOOKUP(acid_pipe_diam,ss_pipe_cost_cl,IF(ss_cat="large",4,5))) -> NA | M112: =$B$109&" - "&B112 -> Acid Piping - Stainless Steel | N112: 3 | O112: 3 | P112: 1 | Q112: 3 | R112: 3 | S112: 1 | T112: 3 | U112: 3 | V112: 1 | W112: 0 | X112: 0
A113: 5.7 | B113: Caustic Piping | W113: 0 | X113: 0
A114: 5.7.1 | B114: CPVC | C114: =caustic_pipe_length -> 0 | D114: lf | E114: =IF(caustic_pipe_length=0,"NA",caustic_pipe_diam) -> NA | F114: =IF(caustic_pipe_length=0,"","in. diam") ->  | G114: =IF(caustic_pipe_length=0,"NA",IF(curve=1,caustic_pipe_diam,VLOOKUP(caustic_pipe_diam,cpvc_pipe_cost_cl,2))) -> NA | H114: =IF(caustic_pipe_length=0,"","in. diam") ->  | I114: =IF(caustic_pipe_length=0,"NA",IF(curve=1,cpvc_pipe_eq_caustic,VLOOKUP(caustic_pipe_diam,cpvc_pipe_cost_cl,3))) -> NA | J114: =IF(caustic_pipe_length=0,"--",IF(I114="contact vendor","--",C114*I114)) -> -- | K114: =IF(caustic_pipe_length=0,"NA",VLOOKUP(caustic_pipe_diam,cpvc_pipe_cost_cl,IF(ss_cat="large",4,5))) -> NA | M114: =$B$113&" - "&B114 -> Caustic Piping - CPVC | N114: 2 | O114: 1 | P114: 2 | Q114: 2 | R114: 1 | S114: 2 | T114: 2 | U114: 1 | V114: 2 | W114: 0 | X114: 0
A115: 5.7.1 | B115: PVC | C115: =caustic_pipe_length -> 0 | D115: lf | E115: =IF(caustic_pipe_length=0,"NA",caustic_pipe_diam) -> NA | F115: =IF(caustic_pipe_length=0,"","in. diam") ->  | G115: =IF(caustic_pipe_length=0,"NA",IF(curve=1,caustic_pipe_diam,VLOOKUP(caustic_pipe_diam,pvc_pipe_cost_cl,2))) -> NA | H115: =IF(caustic_pipe_length=0,"","in. diam") ->  | I115: =IF(caustic_pipe_length=0,"NA",IF(curve=1,pvc_pipe_eq_caustic,VLOOKUP(caustic_pipe_diam,pvc_pipe_cost_cl,3))) -> NA | J115: =IF(caustic_pipe_length=0,"--",IF(I115="contact vendor","--",C115*I115)) -> -- | K115: =IF(caustic_pipe_length=0,"NA",VLOOKUP(caustic_pipe_diam,pvc_pipe_cost_cl,IF(ss_cat="large",4,5))) -> NA | M115: =$B$113&" - "&B115 -> Caustic Piping - PVC | N115: 1 | O115: 2 | P115: 3 | Q115: 1 | R115: 2 | S115: 3 | T115: 1 | U115: 2 | V115: 3 | W115: 0 | X115: 0
A116: 5.7.1 | B116: Stainless Steel | C116: =caustic_pipe_length -> 0 | D116: lf | E116: =IF(caustic_pipe_length=0,"NA",caustic_pipe_diam) -> NA | F116: =IF(caustic_pipe_length=0,"","in. diam") ->  | G116: =IF(caustic_pipe_length=0,"NA",IF(curve=1,caustic_pipe_diam,VLOOKUP(caustic_pipe_diam,ss_pipe_cost_cl,2))) -> NA | H116: =IF(caustic_pipe_length=0,"","in. diam") ->  | I116: =IF(caustic_pipe_length=0,"NA",IF(curve=1,ss_pipe_eq_caustic,VLOOKUP(caustic_pipe_diam,ss_pipe_cost_cl,3))) -> NA | J116: =IF(caustic_pipe_length=0,"--",IF(I116="contact vendor","--",C116*I116)) -> -- | K116: =IF(caustic_pipe_length=0,"NA",VLOOKUP(caustic_pipe_diam,ss_pipe_cost_cl,IF(ss_cat="large",4,5))) -> NA | M116: =$B$113&" - "&B116 -> Caustic Piping - Stainless Steel | N116: 3 | O116: 3 | P116: 1 | Q116: 3 | R116: 3 | S116: 1 | T116: 3 | U116: 3 | V116: 1 | W116: 0 | X116: 0
A117: 5.8 | B117: Residuals Piping | W117: 0 | X117: 0
A118: 5.8.1 | B118: CPVC | C118: =res_pipe_length -> 210 | D118: lf | E118: =res_pipe_diam -> 6 | F118: in. diam | G118: =IF(curve=1,res_pipe_diam,VLOOKUP(res_pipe_diam,cpvc_pipe_cost_cl,2)) -> 6 | H118: in. diam | I118: =IF(curve=1,cpvc_pipe_eq_res,VLOOKUP(res_pipe_diam,cpvc_pipe_cost_cl,3)) -> 42.87034594 | J118: =IF(I118="contact vendor","--",C118*I118) -> 9002.772647 | K118: =VLOOKUP(res_pipe_diam,cpvc_pipe_cost_cl,IF(ss_cat="large",4,5)) -> 22 | L118: 0 | M118: =$B$117&" "&" - "&B118 -> Residuals Piping - CPVC | N118: 2 | O118: 1 | P118: 3 | Q118: 2 | R118: 1 | S118: 3 | T118: 2 | U118: 1 | V118: 3 | W118: 0 | X118: 0
A119: 5.8.1 | B119: PVC | C119: =res_pipe_length -> 210 | D119: lf | E119: =res_pipe_diam -> 6 | F119: in. diam | G119: =IF(curve=1,res_pipe_diam,VLOOKUP(res_pipe_diam,pvc_pipe_cost_cl,2)) -> 6 | H119: in. diam | I119: =IF(curve=1,pvc_pipe_eq_res,VLOOKUP(res_pipe_diam,pvc_pipe_cost_cl,3)) -> 7.775684425 | J119: =IF(I119="contact vendor","--",C119*I119) -> 1632.893729 | K119: =VLOOKUP(res_pipe_diam,pvc_pipe_cost_cl,IF(ss_cat="large",4,5)) -> 22 | L119: 1 | M119: Residuals Piping - PVC | N119: 1 | O119: 2 | P119: 4 | Q119: 1 | R119: 2 | S119: 4 | T119: 1 | U119: 2 | V119: 4 | W119: 1 | X119: 74.22244224
A120: 5.8.1 | B120: Stainless Steel | C120: =res_pipe_length -> 210 | D120: lf | E120: =res_pipe_diam -> 6 | F120: in. diam | G120: =IF(curve=1,res_pipe_diam,VLOOKUP(res_pipe_diam,ss_pipe_cost_cl,2)) -> 6 | H120: in. diam | I120: =IF(curve=1,ss_pipe_eq_res,VLOOKUP(res_pipe_diam,ss_pipe_cost_cl,3)) -> 155.3018765 | J120: =IF(I120="contact vendor","--",C120*I120) -> 32613.39407 | K120: =VLOOKUP(res_pipe_diam,ss_pipe_cost_cl,IF(ss_cat="large",4,5)) -> 45 | L120: 0 | M120: Residuals Piping - Stainless Steel | N120: 4 | O120: 4 | P120: 1 | Q120: 4 | R120: 4 | S120: 1 | T120: 4 | U120: 4 | V120: 1 | W120: 0 | X120: 0
A121: 5.8.1 | B121: Steel | C121: =res_pipe_length -> 210 | D121: lf | E121: =res_pipe_diam -> 6 | F121: in. diam | G121: =IF(curve=1,res_pipe_diam,VLOOKUP(res_pipe_diam,st_pipe_cost_cl,2)) -> 6 | H121: in. diam | I121: =IF(curve=1,st_pipe_eq_res,VLOOKUP(res_pipe_diam,st_pipe_cost_cl,3)) -> 100.2895726 | J121: =IF(I121="contact vendor","--",C121*I121) -> 21060.81024 | K121: =VLOOKUP(res_pipe_diam,st_pipe_cost_cl,IF(ss_cat="large",4,5)) -> 35 | L121: 0 | M121: Residuals Piping - Steel | N121: 3 | O121: 3 | P121: 2 | Q121: 3 | R121: 3 | S121: 2 | T121: 3 | U121: 3 | V121: 2 | W121: 0 | X121: 0
A122: 5.8.2 | B122: Excavation | C122: =res_trench_vol -> 42.93126223 | D122: cy | E122: NA | G122: NA | I122: =IF(C122=0,"NA",VLOOKUP(0,excavate_cost_cl,3)) -> 31.07454576 | J122: =IF(OR(I122="contact vendor",C122=0),"--",C122*I122) -> 1334.069473 | K122: =IF(I122="NA","N/A",IF(L118=1,K118,IF(L119=1,K119,IF(L120=1,K120,IF(L121=1,K121,"N/A"))))) -> 22 | L122: 1 | M122: Residuals Piping - Excavation | N122: 1 | O122: 1 | P122: 1 | Q122: 1 | R122: 1 | S122: 1 | T122: 1 | U122: 1 | V122: 1 | W122: 1 | X122: 60.63952148
A123: 5.8.3 | B123: Bedding | C123: =res_pipe_bedding_vol -> 1.418324775 | D123: cy | E123: NA | G123: NA | I123: =IF(C123=0,"NA",VLOOKUP(0,bedding_cost_cl,3)) -> 56.00739499 | J123: =IF(OR(I123="contact vendor",C123=0),"--",C123*I123) -> 79.43667593 | K123: =IF(I123="NA","N/A",IF(L118=1,K118,IF(L119=1,K119,IF(L120=1,K120,IF(L121=1,K121,"N/A"))))) -> 22 | L123: 1 | M123: Residuals Piping - Bedding | N123: 1 | O123: 1 | P123: 1 | Q123: 1 | R123: 1 | S123: 1 | T123: 1 | U123: 1 | V123: 1 | W123: 1 | X123: 3.610757997
A124: 5.8.4 | B124: Backfill and Compaction | C124: =res_trench_vol -> 42.93126223 | D124: cy | E124: NA | G124: NA | I124: =IF(C124=0,"NA",VLOOKUP(0,backfill_cost_cl,3)) -> 14.40625995 | J124: =IF(OR(I124="contact vendor",C124=0),"--",C124*I124) -> 618.4789235 | K124: =IF(I124="NA","N/A",IF(L118=1,K118,IF(L119=1,K119,IF(L120=1,K120,IF(L121=1,K121,"N/A"))))) -> 22 | L124: 1 | M124: Residuals Piping - Backfill and Compaction | N124: 1 | O124: 1 | P124: 1 | Q124: 1 | R124: 1 | S124: 1 | T124: 1 | U124: 1 | V124: 1 | W124: 1 | X124: 28.11267834
A125: 5.8.5 | B125: Thrust Blocks | C125: =res_block_vol -> 1.778998856 | D125: cy | E125: NA | G125: NA | I125: =IF(C125=0,"NA",VLOOKUP(0,conc_basin_cost_cl,3)) -> 601.2651172 | J125: =IF(OR(I125="contact vendor",C125=0),"--",C125*I125) -> 1069.649956 | K125: =IF(I125="NA","N/A",IF(L118=1,K118,IF(L119=1,K119,IF(L120=1,K120,IF(L121=1,K121,"N/A"))))) -> 22 | L125: 1 | M125: Residuals Piping - Thrust Blocks | N125: 1 | O125: 1 | P125: 1 | Q125: 1 | R125: 1 | S125: 1 | T125: 1 | U125: 1 | V125: 1 | W125: 1 | X125: 48.62045252
A126: 5.9 | B126: Polymer Piping | W126: 0 | X126: 0
A127: 5.9.1 | B127: CPVC | C127: =polymer_pipe_length -> 0 | D127: lf | E127: =IF(C127=0,"NA",polymer_pipe_diam) -> NA | F127: =IF(C127=0,"","in diam") ->  | G127: =IF(C127=0,"NA",IF(curve=1,polymer_pipe_diam,VLOOKUP(polymer_pipe_diam,cpvc_pipe_cost_cl,2))) -> NA | H127: =IF(C127=0,"","in diam") ->  | I127: =IF(C127=0,"NA",IF(curve=1,cpvc_pipe_eq_polymer,VLOOKUP(polymer_pipe_diam,cpvc_pipe_cost_cl,3))) -> NA | J127: =IF(OR(C127=0,I127="contact vendor"),"--",C127*I127) -> -- | K127: =IF(C127=0,"NA",VLOOKUP(polymer_pipe_diam,cpvc_pipe_cost_cl,IF(ss_cat="large",4,5))) -> NA | M127: =$B$126&" "&" - "&B127 -> Polymer Piping - CPVC | N127: 2 | O127: 1 | P127: 3 | Q127: 2 | R127: 1 | S127: 3 | T127: 2 | U127: 1 | V127: 3 | W127: 0 | X127: 0
A128: 5.9.1 | B128: PVC | C128: =polymer_pipe_length -> 0 | D128: lf | E128: =IF(C128=0,"NA",polymer_pipe_diam) -> NA | F128: =IF(C128=0,"","in diam") ->  | G128: =IF(C128=0,"NA",IF(curve=1,polymer_pipe_diam,VLOOKUP(polymer_pipe_diam,pvc_pipe_cost_cl,2))) -> NA | H128: =IF(C128=0,"","in diam") ->  | I128: =IF(C128=0,"NA",IF(curve=1,pvc_pipe_eq_polymer,VLOOKUP(polymer_pipe_diam,pvc_pipe_cost_cl,3))) -> NA | J128: =IF(OR(C128=0,I128="contact vendor"),"--",C128*I128) -> -- | K128: =IF(C128=0,"NA",VLOOKUP(polymer_pipe_diam,pvc_pipe_cost_cl,IF(ss_cat="large",4,5))) -> NA | M128: =$B$126&" "&" - "&B128 -> Polymer Piping - PVC | N128: 1 | O128: 2 | P128: 4 | Q128: 1 | R128: 2 | S128: 4 | T128: 1 | U128: 2 | V128: 4 | W128: 0 | X128: 0
A129: 5.9.1 | B129: Stainless Steel | C129: =polymer_pipe_length -> 0 | D129: lf | E129: =IF(C129=0,"NA",polymer_pipe_diam) -> NA | F129: =IF(C129=0,"","in diam") ->  | G129: =IF(C129=0,"NA",IF(curve=1,polymer_pipe_diam,VLOOKUP(polymer_pipe_diam,ss_pipe_cost_cl,2))) -> NA | H129: =IF(C129=0,"","in diam") ->  | I129: =IF(C129=0,"NA",IF(curve=1,ss_pipe_eq_polymer,VLOOKUP(polymer_pipe_diam,ss_pipe_cost_cl,3))) -> NA | J129: =IF(OR(C129=0,I129="contact vendor"),"--",C129*I129) -> -- | K129: =IF(C129=0,"NA",VLOOKUP(polymer_pipe_diam,ss_pipe_cost_cl,IF(ss_cat="large",4,5))) -> NA | M129: =$B$126&" "&" - "&B129 -> Polymer Piping - Stainless Steel | N129: 4 | O129: 4 | P129: 1 | Q129: 4 | R129: 4 | S129: 1 | T129: 4 | U129: 4 | V129: 1 | W129: 0 | X129: 0
A130: 5.9.1 | B130: Steel | C130: =polymer_pipe_length -> 0 | D130: lf | E130: =IF(C130=0,"NA",polymer_pipe_diam) -> NA | F130: =IF(C130=0,"","in diam") ->  | G130: =IF(C130=0,"NA",IF(curve=1,polymer_pipe_diam,VLOOKUP(polymer_pipe_diam,st_pipe_cost_cl,2))) -> NA | H130: =IF(C130=0,"","in diam") ->  | I130: =IF(C130=0,"NA",IF(curve=1,st_pipe_eq_polymer,VLOOKUP(polymer_pipe_diam,st_pipe_cost_cl,3))) -> NA | J130: =IF(OR(C130=0,I130="contact vendor"),"--",C130*I130) -> -- | K130: =IF(C130=0,"NA",VLOOKUP(polymer_pipe_diam,st_pipe_cost_cl,IF(ss_cat="large",4,5))) -> NA | M130: =$B$126&" "&" - "&B130 -> Polymer Piping - Steel | N130: 3 | O130: 3 | P130: 2 | Q130: 3 | R130: 3 | S130: 2 | T130: 3 | U130: 3 | V130: 2 | W130: 0 | X130: 0
A131: 6 | B131: Valves and Fittings | W131: 0 | X131: 0
A132: 6.1 | B132: Motor/Air Operated (on/off) | W132: 0 | X132: 0
A133: 6.1.1 | B133: Process - Polypropylene/PVC | C133: =tot_proc_MOVs -> 103 | D133: units | E133: =tank_valve_size -> 12 | F133: in. diam | G133: =IF(curve=1,tank_valve_size,VLOOKUP(tank_valve_size,pp_mov_cost_cl,2)) -> 12 | H133: in. diam | I133: =IF(curve=1,pp_mov_eq_tank,VLOOKUP(tank_valve_size,pp_mov_cost_cl,3)) -> 5719.990243 | J133: =IF(I133="contact vendor","--",C133*I133) -> 589158.9951 | K133: =VLOOKUP(tank_valve_size,pp_mov_cost_cl,IF(ss_cat="large",4,5)) -> 25 | L133: 1 | M133: =$B$131 & " - " & $B$132&" "&" - "&B133 -> Valves and Fittings - Motor/Air Operated (on/off) - Process - Polypropylene/PVC | N133: 1 | O133: 2 | P133: 3 | Q133: 1 | R133: 2 | S133: 3 | T133: 1 | U133: 2 | V133: 3 | W133: 1 | X133: 23566.3598
A134: 6.1.1 | B134: Process - Stainless Steel | C134: =tot_proc_MOVs -> 103 | D134: units | E134: =tank_valve_size -> 12 | F134: in. diam | G134: =IF(curve=1,tank_valve_size,VLOOKUP(tank_valve_size,ss_mov_cost_cl,2)) -> 12 | H134: in. diam | I134: =IF(curve=1,ss_mov_eq_tank,VLOOKUP(tank_valve_size,ss_mov_cost_cl,3)) -> 15992.46499 | J134: =IF(I134="contact vendor","--",C134*I134) -> 1647223.894 | K134: =VLOOKUP(tank_valve_size,ss_mov_cost_cl,IF(ss_cat="large",4,5)) -> 25 | L134: 0 | M134: =$B$131 & " - " & $B$132&" "&" - "&B134 -> Valves and Fittings - Motor/Air Operated (on/off) - Process - Stainless Steel | N134: 3 | O134: 3 | P134: 1 | Q134: 3 | R134: 3 | S134: 1 | T134: 3 | U134: 3 | V134: 1 | W134: 0 | X134: 0
A135: 6.1.1 | B135: Process - Cast Iron | C135: =tot_proc_MOVs -> 103 | D135: units | E135: =tank_valve_size -> 12 | F135: in. diam | G135: =IF(curve=1,tank_valve_size,VLOOKUP(tank_valve_size,ci_mov_cost_cl,2)) -> 12 | H135: in. diam | I135: =IF(curve=1,pp_mov_eq_tank,VLOOKUP(tank_valve_size,ci_mov_cost_cl,3)) -> 5719.990243 | J135: =IF(I135="contact vendor","--",C135*I135) -> 589158.9951 | K135: =VLOOKUP(tank_valve_size,ci_mov_cost_cl,IF(ss_cat="large",4,5)) -> 25 | L135: 0 | M135: Valves and Fittings - Motor/Air Operated (on/off) - Process - Cast Iron | N135: 2 | O135: 1 | P135: 2 | Q135: 2 | R135: 1 | S135: 2 | T135: 2 | U135: 1 | V135: 2 | W135: 0 | X135: 0
A136: 6.1.2 | B136: Backwash - Polypropylene/PVC | C136: =tot_back_MOVs -> 63 | D136: units | E136: =IF(tot_back_MOVs=0,"NA",back_valve_size) -> 8 | F136: =IF(tot_back_MOVs=0,"","in. diam") -> in. diam | G136: =IF(tot_back_MOVs=0,"NA",IF(curve=1,back_valve_size,VLOOKUP(back_valve_size,pp_mov_cost_cl,2))) -> 8 | H136: =IF(tot_back_MOVs=0,"","in. diam") -> in. diam | I136: =IF(tot_back_MOVs=0,"NA",IF(curve=1,pp_mov_eq_back,VLOOKUP(back_valve_size,pp_mov_cost_cl,3))) -> 2443.030653 | J136: =IF(tot_back_MOVs=0,"--",IF(I136="contact vendor","--",C136*I136)) -> 153910.9312 | K136: =IF(tot_back_MOVs=0,"NA",VLOOKUP(back_valve_size,pp_mov_cost_cl,IF(ss_cat="large",4,5))) -> 25 | L136: 1 | M136: Valves and Fittings - Motor/Air Operated (on/off) - Backwash - Polypropylene/PVC | N136: 1 | O136: 2 | P136: 3 | Q136: 1 | R136: 2 | S136: 3 | T136: 1 | U136: 2 | V136: 3 | W136: 1 | X136: 6156.437247
A137: 6.1.2 | B137: Backwash - Stainless Steel | C137: =tot_back_MOVs -> 63 | D137: units | E137: =IF(tot_back_MOVs=0,"NA",back_valve_size) -> 8 | F137: =IF(tot_back_MOVs=0,"","in. diam") -> in. diam | G137: =IF(tot_back_MOVs=0,"NA",IF(curve=1,back_valve_size,VLOOKUP(back_valve_size,ss_mov_cost_cl,2))) -> 8 | H137: in. diam | I137: =IF(tot_back_MOVs=0,"NA",IF(curve=1,ss_mov_eq_back,VLOOKUP(back_valve_size,ss_mov_cost_cl,3))) -> 8267.420282 | J137: =IF(tot_back_MOVs=0,"--",IF(I137="contact vendor","--",C137*I137)) -> 520847.4778 | K137: =IF(tot_back_MOVs=0,"NA",VLOOKUP(back_valve_size,ss_mov_cost_cl,IF(ss_cat="large",4,5))) -> 25 | L137: 0 | M137: Valves and Fittings - Motor/Air Operated (on/off) - Backwash - Stainless Steel | N137: 3 | O137: 3 | P137: 1 | Q137: 3 | R137: 3 | S137: 1 | T137: 3 | U137: 3 | V137: 1 | W137: 0 | X137: 0
A138: 6.1.2 | B138: Backwash - Cast Iron | C138: =tot_back_MOVs -> 63 | D138: units | E138: =IF(tot_back_MOVs=0,"NA",back_valve_size) -> 8 | F138: in. diam | G138: =IF(tot_back_MOVs=0,"NA",IF(curve=1,back_valve_size,VLOOKUP(back_valve_size,ci_mov_cost_cl,2))) -> 8 | H138: in. diam | I138: =IF(tot_back_MOVs=0,"NA",IF(curve=1,ci_mov_eq_back,VLOOKUP(back_valve_size,ci_mov_cost_cl,3))) -> 3411.016918 | J138: =IF(tot_back_MOVs=0,"--",IF(I138="contact vendor","--",C138*I138)) -> 214894.0659 | K138: =IF(tot_back_MOVs=0,"NA",VLOOKUP(back_valve_size,ci_mov_cost_cl,IF(ss_cat="large",4,5))) -> 25 | L138: 0 | M138: =$B$131 & " - " & $B$132&" "&" - "&B138 -> Valves and Fittings - Motor/Air Operated (on/off) - Backwash - Cast Iron | N138: 2 | O138: 1 | P138: 2 | Q138: 2 | R138: 1 | S138: 2 | T138: 2 | U138: 1 | V138: 2 | W138: 0 | X138: 0
A139: 6.1.3 | B139: Regenerant - Polypropylene/PVC | C139: =tot_brine_MOVs -> 0 | D139: units | E139: =IF(tot_brine_MOVs=0,"NA",brine_valve_size) -> NA | F139: =IF(tot_brine_MOVs=0,"","in. diam") ->  | G139: =IF(tot_brine_MOVs=0,"NA",IF(curve=1,brine_valve_size,VLOOKUP(brine_valve_size,pp_mov_cost_cl,2))) -> NA | H139: =IF(tot_brine_MOVs=0,"","in. diam") ->  | I139: =IF(tot_brine_MOVs=0,"NA",IF(curve=1,pp_mov_eq_brine,VLOOKUP(brine_valve_size,pp_mov_cost_cl,3))) -> NA | J139: =IF(tot_brine_MOVs=0,"--",IF(I139="contact vendor","--",C139*I139)) -> -- | K139: =IF(tot_brine_MOVs=0,"NA",VLOOKUP(brine_valve_size,pp_mov_cost_cl,IF(ss_cat="large",4,5))) -> NA | M139: Valves and Fittings - Motor/Air Operated (on/off) - Regenerant - Polypropylene/PVC | N139: 1 | O139: 2 | P139: 2 | Q139: 1 | R139: 2 | S139: 2 | T139: 1 | U139: 2 | V139: 2 | W139: 0 | X139: 0
A140: 6.1.3 | B140: Regenerant - Stainless Steel | C140: =tot_brine_MOVs -> 0 | D140: units | E140: =IF(tot_brine_MOVs=0,"NA",brine_valve_size) -> NA | F140: =IF(tot_brine_MOVs=0,"","in. diam") ->  | G140: =IF(tot_brine_MOVs=0,"NA",IF(curve=1,brine_valve_size,VLOOKUP(brine_valve_size,ss_mov_cost_cl,2))) -> NA | H140: =IF(tot_brine_MOVs=0,"","in. diam") ->  | I140: =IF(tot_brine_MOVs=0,"NA",IF(curve=1,ss_mov_eq_brine,VLOOKUP(brine_valve_size,ss_mov_cost_cl,3))) -> NA | J140: =IF(tot_brine_MOVs=0,"--",IF(I140="contact vendor","--",C140*I140)) -> -- | K140: =IF(tot_brine_MOVs=0,"NA",VLOOKUP(brine_valve_size,ss_mov_cost_cl,IF(ss_cat="large",4,5))) -> NA | M140: Valves and Fittings - Motor/Air Operated (on/off) - Regenerant - Stainless Steel | N140: 2 | O140: 1 | P140: 1 | Q140: 2 | R140: 1 | S140: 1 | T140: 2 | U140: 1 | V140: 1 | W140: 0 | X140: 0
A141: 6.1.4 | B141: Bypass - Polypropylene/PVC | C141: =IF(bp_pct>0,tot_bp_MOVs,0) -> 0 | D141: units | E141: =IF(bp_pct=0,"NA",bypass_valve_size) -> NA | F141: =IF(bp_pct=0," ","in. diam") ->  | G141: =IF(bp_pct=0,"NA",(IF(curve=1,bypass_valve_size,VLOOKUP(bypass_valve_size,pp_mov_cost_cl,2)))) -> NA | H141: =IF(bp_pct=0," ","in. diam") ->  | I141: =IF(bp_pct=0,"NA",(IF(curve=1,pp_mov_eq_bp,VLOOKUP(bypass_valve_size,pp_mov_cost_cl,3)))) -> NA | J141: =IF(OR(C141=0,I141="contact vendor"),"--",C141*I141) -> -- | K141: =IF(bp_pct=0,"NA",VLOOKUP(bypass_valve_size,pp_mov_cost_cl,IF(ss_cat="large",4,5))) -> NA | M141: Valves and Fittings - Motor/Air Operated (on/off) - Bypass - Polypropylene/PVC | N141: 1 | O141: 2 | P141: 3 | Q141: 1 | R141: 2 | S141: 3 | T141: 1 | U141: 2 | V141: 3 | W141: 0 | X141: 0
A142: 6.1.4 | B142: Bypass - Stainless Steel | C142: =IF(bp_pct>0,tot_bp_MOVs,0) -> 0 | D142: units | E142: =IF(bp_pct=0,"NA",bypass_valve_size) -> NA | F142: =IF(bp_pct=0," ","in. diam") ->  | G142: =IF(bp_pct=0,"NA",(IF(curve=1,bypass_valve_size,VLOOKUP(bypass_valve_size,ss_mov_cost_cl,2)))) -> NA | H142: =IF(bp_pct=0," ","in. diam") ->  | I142: =IF(bp_pct=0,"NA",(IF(curve=1,ss_mov_eq_bp,VLOOKUP(bypass_valve_size,ss_mov_cost_cl,3)))) -> NA | J142: =IF(OR(C142=0,I142="contact vendor"),"--",C142*I142) -> -- | K142: =IF(bp_pct=0,"NA",VLOOKUP(bypass_valve_size,ss_mov_cost_cl,IF(ss_cat="large",4,5))) -> NA | M142: Valves and Fittings - Motor/Air Operated (on/off) - Bypass - Stainless Steel | N142: 3 | O142: 3 | P142: 1 | Q142: 3 | R142: 3 | S142: 1 | T142: 3 | U142: 3 | V142: 1 | W142: 0 | X142: 0
A143: 6.1.4 | B143: Bypass - Cast Iron | C143: =IF(bp_pct>0,tot_bp_MOVs,0) -> 0 | D143: units | E143: =IF(bp_pct=0,"NA",bypass_valve_size) -> NA | F143: =IF(bp_pct=0," ","in. diam") ->  | G143: =IF(bp_pct=0,"NA",(IF(curve=1,bypass_valve_size,VLOOKUP(bypass_valve_size,ci_mov_cost_cl,2)))) -> NA | H143: =IF(bp_pct=0," ","in. diam") ->  | I143: =IF(bp_pct=0,"NA",(IF(curve=1,ci_mov_eq_bp,VLOOKUP(bypass_valve_size,ci_mov_cost_cl,3)))) -> NA | J143: =IF(OR(C143=0,I143="contact vendor"),"--",C143*I143) -> -- | K143: =IF(bp_pct=0,"NA",VLOOKUP(bypass_valve_size,ci_mov_cost_cl,IF(ss_cat="large",4,5))) -> NA | M143: =$B$131 & " - " & $B$132&" "&" - "&B143 -> Valves and Fittings - Motor/Air Operated (on/off) - Bypass - Cast Iron | N143: 2 | O143: 1 | P143: 2 | Q143: 2 | R143: 1 | S143: 2 | T143: 2 | U143: 1 | V143: 2 | W143: 0 | X143: 0
A144: 6.1.5 | B144: Acid - Polypropylene/PVC | C144: =tot_acid_MOVs -> 0 | D144: units | E144: =IF(tot_acid_MOVs=0,"NA",acid_valve_size) -> NA | F144: =IF(tot_acid_MOVs=0,"","in. diam") ->  | G144: =IF(tot_acid_MOVs=0,"NA",IF(curve=1,acid_valve_size,VLOOKUP(acid_valve_size,pp_mov_cost_cl,2))) -> NA | H144: =IF(tot_acid_MOVs=0,"","in. diam") ->  | I144: =IF(tot_acid_MOVs=0,"NA",IF(curve=1,pp_mov_eq_acid,VLOOKUP(acid_valve_size,pp_mov_cost_cl,3))) -> NA | J144: =IF(tot_acid_MOVs=0,"--",IF(I144="contact vendor","--",C144*I144)) -> -- | K144: =IF(tot_acid_MOVs=0,"NA",VLOOKUP(acid_valve_size,pp_mov_cost_cl,IF(ss_cat="large",4,5))) -> NA | M144: Valves and Fittings - Motor/Air Operated (on/off) - Acid - Polypropylene/PVC | N144: 1 | O144: 2 | P144: 2 | Q144: 1 | R144: 2 | S144: 2 | T144: 1 | U144: 2 | V144: 2 | W144: 0 | X144: 0
A145: 6.1.5 | B145: Acid - Stainless Steel | C145: =tot_acid_MOVs -> 0 | D145: units | E145: =IF(tot_acid_MOVs=0,"NA",acid_valve_size) -> NA | F145: =IF(tot_acid_MOVs=0,"","in. diam") ->  | G145: =IF(tot_acid_MOVs=0,"NA",IF(curve=1,acid_valve_size,VLOOKUP(acid_valve_size,ss_mov_cost_cl,2))) -> NA | H145: =IF(tot_acid_MOVs=0,"","in. diam") ->  | I145: =IF(tot_acid_MOVs=0,"NA",IF(curve=1,ss_mov_eq_acid,VLOOKUP(acid_valve_size,ss_mov_cost_cl,3))) -> NA | J145: =IF(tot_acid_MOVs=0,"--",IF(I145="contact vendor","--",C145*I145)) -> -- | K145: =IF(tot_acid_MOVs=0,"NA",VLOOKUP(acid_valve_size,ss_mov_cost_cl,IF(ss_cat="large",4,5))) -> NA | M145: Valves and Fittings - Motor/Air Operated (on/off) - Acid - Stainless Steel | N145: 2 | O145: 1 | P145: 1 | Q145: 2 | R145: 1 | S145: 1 | T145: 2 | U145: 1 | V145: 1 | W145: 0 | X145: 0
A146: 6.1.6 | B146: Caustic - Polypropylene/PVC | C146: =tot_caustic_MOVs -> 0 | D146: units | E146: =IF(tot_caustic_MOVs=0,"NA",caustic_valve_size) -> NA | F146: =IF(tot_caustic_MOVs=0,"","in. diam") ->  | G146: =IF(tot_caustic_MOVs=0,"NA",IF(curve=1,caustic_valve_size,VLOOKUP(caustic_valve_size,pp_mov_cost_cl,2))) -> NA | H146: =IF(tot_caustic_MOVs=0,"","in. diam") ->  | I146: =IF(tot_caustic_MOVs=0,"NA",IF(curve=1,pp_mov_eq_caustic,VLOOKUP(caustic_valve_size,pp_mov_cost_cl,3))) -> NA | J146: =IF(tot_caustic_MOVs=0,"--",IF(I146="contact vendor","--",C146*I146)) -> -- | K146: =IF(tot_caustic_MOVs=0,"NA",VLOOKUP(caustic_valve_size,pp_mov_cost_cl,IF(ss_cat="large",4,5))) -> NA | M146: Valves and Fittings - Motor/Air Operated (on/off) - Caustic - Polypropylene/PVC | N146: 1 | O146: 2 | P146: 2 | Q146: 1 | R146: 2 | S146: 2 | T146: 1 | U146: 2 | V146: 2 | W146: 0 | X146: 0
A147: 6.1.6 | B147: Caustic - Stainless Steel | C147: =tot_caustic_MOVs -> 0 | D147: units | E147: =IF(tot_caustic_MOVs=0,"NA",caustic_valve_size) -> NA | F147: =IF(tot_caustic_MOVs=0,"","in. diam") ->  | G147: =IF(tot_caustic_MOVs=0,"NA",IF(curve=1,caustic_valve_size,VLOOKUP(caustic_valve_size,ss_mov_cost_cl,2))) -> NA | H147: =IF(tot_caustic_MOVs=0,"","in. diam") ->  | I147: =IF(tot_caustic_MOVs=0,"NA",IF(curve=1,ss_mov_eq_caustic,VLOOKUP(caustic_valve_size,ss_mov_cost_cl,3))) -> NA | J147: =IF(tot_caustic_MOVs=0,"--",IF(I147="contact vendor","--",C147*I147)) -> -- | K147: =IF(tot_caustic_MOVs=0,"NA",VLOOKUP(caustic_valve_size,ss_mov_cost_cl,IF(ss_cat="large",4,5))) -> NA | M147: Valves and Fittings - Motor/Air Operated (on/off) - Caustic - Stainless Steel | N147: 2 | O147: 1 | P147: 1 | Q147: 2 | R147: 1 | S147: 1 | T147: 2 | U147: 1 | V147: 1 | W147: 0 | X147: 0
A148: 6.1.7 | B148: Residuals - Polypropylene/PVC | C148: =total_res_MOVs -> 0 | D148: units | E148: =IF(C148=0,"NA",res_valve_size) -> NA | F148: =IF(C148=0,"","in. diam") ->  | G148: =IF(C148=0,"NA",IF(curve=1,res_valve_size,VLOOKUP(res_valve_size,pp_mov_cost_cl,2))) -> NA | H148: =IF(C148=0,"","in. diam") ->  | I148: =IF(C148=0,0,IF(curve=1,pp_mov_eq_res,VLOOKUP(res_valve_size,pp_mov_cost_cl,3))) -> 0 | J148: =IF(I148="contact vendor","--",C148*I148) -> 0 | K148: =IF(C148=0,"NA",VLOOKUP(res_valve_size,pp_mov_cost_cl,IF(ss_cat="large",4,5))) -> NA | M148: Valves and Fittings - Motor/Air Operated (on/off) - Residuals - Polypropylene/PVC | N148: 1 | O148: 2 | P148: 3 | Q148: 1 | R148: 2 | S148: 3 | T148: 1 | U148: 2 | V148: 3 | W148: 0 | X148: 0
A149: 6.1.7 | B149: Residuals - Stainless Steel | C149: =total_res_MOVs -> 0 | D149: units | E149: =IF(C149=0,"NA",res_valve_size) -> NA | G149: =IF(C149=0,"NA",IF(curve=1,res_valve_size,VLOOKUP(res_valve_size,ss_mov_cost_cl,2))) -> NA | I149: =IF(C149=0,0,IF(curve=1,ss_mov_eq_res,VLOOKUP(res_valve_size,ss_mov_cost_cl,3))) -> 0 | J149: =IF(I149="contact vendor","--",C149*I149) -> 0 | K149: =IF(C149=0,"NA",VLOOKUP(res_valve_size,ss_mov_cost_cl,IF(ss_cat="large",4,5))) -> NA | M149: Valves and Fittings - Motor/Air Operated (on/off) - Residuals - Stainless Steel | N149: 3 | O149: 3 | P149: 1 | Q149: 3 | R149: 3 | S149: 1 | T149: 3 | U149: 3 | V149: 1 | W149: 0 | X149: 0
A150: 6.1.7 | B150: Residuals - Cast Iron | C150: =total_res_MOVs -> 0 | D150: units | E150: =IF(C150=0,"NA",res_valve_size) -> NA | G150: =IF(C150=0,"NA",IF(curve=1,res_valve_size,VLOOKUP(res_valve_size,ci_mov_cost_cl,2))) -> NA | I150: =IF(C150=0,0,IF(curve=1,ci_mov_eq_res,VLOOKUP(res_valve_size,ci_mov_cost_cl,3))) -> 0 | J150: =IF(I150="contact vendor","--",C150*I150) -> 0 | K150: =IF(C150=0,"NA",VLOOKUP(res_valve_size,ci_mov_cost_cl,IF(ss_cat="large",4,5))) -> NA | M150: Valves and Fittings - Motor/Air Operated (on/off) - Residuals - Cast Iron | N150: 2 | O150: 1 | P150: 2 | Q150: 2 | R150: 1 | S150: 2 | T150: 2 | U150: 1 | V150: 2 | W150: 0 | X150: 0
A151: 6.1.8 | B151: Polymer- Polypropylene/PVC | C151: =tot_polymer_MOVs -> 0 | D151: units | E151: =IF(C151=0,"NA",polymer_valve_size) -> NA | G151: =IF(C151=0,"NA",IF(curve=1,polymer_valve_size,VLOOKUP(polymer_valve_size,pp_mov_cost_cl,2))) -> NA | I151: =IF(C151=0,"NA",IF(curve=1,pp_mov_eq_polymer,VLOOKUP(polymer_valve_size,pp_mov_cost_cl,3))) -> NA | J151: =IF(OR(C151=0,I151="contact vendor"),"--",C151*I151) -> -- | K151: =IF(C151=0,"NA",VLOOKUP(polymer_valve_size,pp_mov_cost_cl,IF(ss_cat="large",4,5))) -> NA | M151: Valves and Fittings - Motor/Air Operated (on/off) - Polymer- Polypropylene/PVC | N151: 1 | O151: 2 | P151: 3 | Q151: 1 | R151: 2 | S151: 3 | T151: 1 | U151: 2 | V151: 3 | W151: 0 | X151: 0
A152: 6.1.8 | B152: Polymer- Stainless Steel | C152: =tot_polymer_MOVs -> 0 | D152: units | E152: =IF(C152=0,"NA",polymer_valve_size) -> NA | G152: =IF(C152=0,"NA",IF(curve=1,polymer_valve_size,VLOOKUP(polymer_valve_size,ss_mov_cost_cl,2))) -> NA | I152: =IF(C152=0,"NA",IF(curve=1,ss_mov_eq_polymer,VLOOKUP(polymer_valve_size,ss_mov_cost_cl,3))) -> NA | J152: =IF(OR(C152=0,I152="contact vendor"),"--",C152*I152) -> -- | K152: =IF(C152=0,"NA",VLOOKUP(polymer_valve_size,ss_mov_cost_cl,IF(ss_cat="large",4,5))) -> NA | M152: Valves and Fittings - Motor/Air Operated (on/off) - Polymer- Stainless Steel | N152: 3 | O152: 3 | P152: 1 | Q152: 3 | R152: 3 | S152: 1 | T152: 3 | U152: 3 | V152: 1 | W152: 0 | X152: 0
A153: 6.1.8 | B153: Polymer- Cast Iron | C153: =tot_polymer_MOVs -> 0 | D153: units | E153: =IF(C153=0,"NA",polymer_valve_size) -> NA | G153: =IF(C153=0,"NA",IF(curve=1,polymer_valve_size,VLOOKUP(polymer_valve_size,ci_mov_cost_cl,2))) -> NA | I153: =IF(C153=0,"NA",IF(curve=1,ci_mov_eq_polymer,VLOOKUP(polymer_valve_size,ci_mov_cost_cl,3))) -> NA | J153: =IF(OR(C153=0,I153="contact vendor"),"--",C153*I153) -> -- | K153: =IF(C153=0,"NA",VLOOKUP(polymer_valve_size,ci_mov_cost_cl,IF(ss_cat="large",4,5))) -> NA | M153: Valves and Fittings - Motor/Air Operated (on/off) - Polymer- Cast Iron | N153: 2 | O153: 1 | P153: 2 | Q153: 2 | R153: 1 | S153: 2 | T153: 2 | U153: 1 | V153: 2 | W153: 0 | X153: 0
A154: 6.2 | B154: Manual | W154: 0 | X154: 0
A155: 6.2.1 | B155: Inlet and outlet - Polypropylene/PVC | C155: =tot_man_valves -> 2 | D155: units | E155: =in_valve_size -> 36 | F155: in. diam | G155: =IF(curve=1,in_valve_size,VLOOKUP(in_valve_size,pp_man_cost_cl,2)) -> 36 | H155: in. diam | I155: =IF(curve=1,pp_man_eq,VLOOKUP(in_valve_size,pp_man_cost_cl,3)) -> contact vendor | J155: =IF(I155="contact vendor","--",C155*I155) -> -- | K155: =VLOOKUP(in_valve_size,pp_man_cost_cl,IF(ss_cat="large",4,5)) -> 25 | L155: 0 | M155: =$B$131 & " - " & $B$154&" "&" - "&B155 -> Valves and Fittings - Manual - Inlet and outlet - Polypropylene/PVC | N155: 1 | O155: 2 | P155: 3 | Q155: 1 | R155: 2 | S155: 3 | T155: 1 | U155: 2 | V155: 3 | W155: 0 | X155: 0
A156: 6.2.1 | B156: Inlet and outlet - Stainless Steel | C156: =tot_man_valves -> 2 | D156: units | E156: =in_valve_size -> 36 | F156: in. diam | G156: =IF(curve=1,in_valve_size,VLOOKUP(in_valve_size,ss_man_cost_cl,2)) -> 36 | H156: in. diam | I156: =IF(curve=1,ss_man_eq,VLOOKUP(in_valve_size,ss_man_cost_cl,3)) -> contact vendor | J156: -- | K156: =VLOOKUP(in_valve_size,ss_man_cost_cl,IF(ss_cat="large",4,5)) -> 25 | L156: 0 | M156: Valves and Fittings - Manual - Inlet and outlet - Stainless Steel | N156: 3 | O156: 3 | P156: 1 | Q156: 3 | R156: 3 | S156: 1 | T156: 3 | U156: 3 | V156: 1 | W156: 0 | X156: 0
A157: 6.2.1 | B157: Inlet and outlet - Cast Iron | C157: =tot_man_valves -> 2 | D157: units | E157: =in_valve_size -> 36 | F157: in. diam | G157: =IF(curve=1,in_valve_size,VLOOKUP(in_valve_size,ci_bfv_cost_cl,2)) -> 36 | H157: in. diam | I157: =IF(curve=1,ci_bfv_eq,VLOOKUP(in_valve_size,ci_bfv_cost_cl,3)) -> 15361.38577 | J157: 30722.77155 | K157: =VLOOKUP(in_valve_size,ci_bfv_cost_cl,IF(ss_cat="large",4,5)) -> 25 | L157: 1 | M157: Valves and Fittings - Manual - Inlet and outlet - Cast Iron | N157: 2 | O157: 1 | P157: 2 | Q157: 2 | R157: 1 | S157: 2 | T157: 2 | U157: 1 | V157: 2 | W157: 1 | X157: 1228.910862
A158: 6.2.2 | B158: Process - Polypropylene/PVC | C158: =tot_proc_man -> 30 | D158: units | E158: =tank_valve_size -> 12 | F158: in. diam | G158: =IF(curve=1,tank_valve_size,VLOOKUP(tank_valve_size,pp_man_cost_cl,2)) -> 12 | H158: in. diam | I158: =IF(curve=1,pp_man_eq_proc,VLOOKUP(tank_valve_size,pp_man_cost_cl,3)) -> 2702.925456 | J158: 81087.76369 | K158: =VLOOKUP(tank_valve_size,pp_man_cost_cl,IF(ss_cat="large",4,5)) -> 25 | L158: 1 | M158: Valves and Fittings - Manual - Process - Polypropylene/PVC | N158: 1 | O158: 2 | P158: 3 | Q158: 1 | R158: 2 | S158: 3 | T158: 1 | U158: 2 | V158: 3 | W158: 1 | X158: 3243.510548
A159: 6.2.2 | B159: Process - Stainless Steel | C159: =tot_proc_man -> 30 | D159: units | E159: =tank_valve_size -> 12 | F159: in. diam | G159: =IF(curve=1,tank_valve_size,VLOOKUP(tank_valve_size,ss_man_cost_cl,2)) -> 12 | H159: in. diam | I159: =IF(curve=1,ss_man_eq_proc,VLOOKUP(tank_valve_size,ss_man_cost_cl,3)) -> 14670.85988 | J159: 440125.7964 | K159: =VLOOKUP(tank_valve_size,ss_man_cost_cl,IF(ss_cat="large",4,5)) -> 25 | L159: 0 | M159: Valves and Fittings - Manual - Process - Stainless Steel | N159: 3 | O159: 3 | P159: 1 | Q159: 3 | R159: 3 | S159: 1 | T159: 3 | U159: 3 | V159: 1 | W159: 0 | X159: 0
A160: 6.2.2 | B160: Process - Cast Iron | C160: =tot_proc_man -> 30 | D160: units | E160: =tank_valve_size -> 12 | F160: in. diam | G160: =IF(curve=1,tank_valve_size,VLOOKUP(tank_valve_size,ci_bfv_cost_cl,2)) -> 12 | H160: in. diam | I160: =IF(curve=1,ci_bfv_eq_proc,VLOOKUP(tank_valve_size,ci_bfv_cost_cl,3)) -> 2607.581916 | J160: 78227.45748 | K160: =VLOOKUP(tank_valve_size,ci_bfv_cost_cl,IF(ss_cat="large",4,5)) -> 25 | L160: 0 | M160: Valves and Fittings - Manual - Process - Cast Iron | N160: 2 | O160: 1 | P160: 2 | Q160: 2 | R160: 1 | S160: 2 | T160: 2 | U160: 1 | V160: 2 | W160: 0 | X160: 0
A161: 6.2.3 | B161: Backwash - Polypropylene/PVC | C161: =tot_back_man -> 0 | D161: units | E161: =IF(tot_back_man=0,"NA",back_valve_size) -> NA | F161: =IF(tot_back_man=0,"","in. diam") ->  | G161: =IF(curve=1,back_valve_size,VLOOKUP(back_valve_size,pp_man_cost_cl,2)) -> 8 | H161: =IF(tot_back_man=0,"","in. diam") ->  | I161: =IF(tot_back_man=0,"NA",IF(curve=1,pp_man_eq_back,VLOOKUP(back_valve_size,pp_man_cost_cl,3))) -> NA | J161: =IF(tot_back_man=0,"--",IF(I161="contact vendor","--",C161*I161)) -> -- | K161: =IF(tot_back_man=0,"NA",VLOOKUP(back_valve_size,pp_man_cost_cl,IF(ss_cat="large",4,5))) -> NA | M161: Valves and Fittings - Manual - Backwash - Polypropylene/PVC | N161: 1 | O161: 2 | P161: 3 | Q161: 1 | R161: 2 | S161: 3 | T161: 1 | U161: 2 | V161: 3 | W161: 0 | X161: 0
A162: 6.2.3 | B162: Backwash - Stainless Steel | C162: =tot_back_man -> 0 | D162: units | E162: =IF(tot_back_man=0,"NA",back_valve_size) -> NA | F162: =IF(tot_back_man=0,"","in. diam") ->  | G162: =IF(curve=1,back_valve_size,VLOOKUP(back_valve_size,ss_man_cost_cl,2)) -> 8 | H162: =IF(tot_back_man=0,"","in. diam") ->  | I162: =IF(tot_back_man=0,"NA",IF(curve=1,ss_man_eq_back,VLOOKUP(back_valve_size,ss_man_cost_cl,3))) -> NA | J162: =IF(tot_back_man=0,"--",IF(I162="contact vendor","--",C162*I162)) -> -- | K162: =IF(tot_back_man=0,"NA",VLOOKUP(back_valve_size,ss_man_cost_cl,IF(ss_cat="large",4,5))) -> NA | M162: Valves and Fittings - Manual - Backwash - Stainless Steel | N162: 3 | O162: 3 | P162: 1 | Q162: 3 | R162: 3 | S162: 1 | T162: 3 | U162: 3 | V162: 1 | W162: 0 | X162: 0
A163: 6.2.3 | B163: Backwash - Cast Iron | C163: =tot_back_man -> 0 | D163: units | E163: =IF(tot_back_man=0,"NA",back_valve_size) -> NA | F163: =IF(tot_back_man=0,"","in. diam") ->  | G163: =IF(curve=1,back_valve_size,VLOOKUP(back_valve_size,ci_bfv_cost_cl,2)) -> 8 | H163: =IF(tot_back_man=0,"","in. diam") ->  | I163: =IF(tot_back_man=0,"NA",IF(curve=1,ci_man_eq_back,VLOOKUP(back_valve_size,ci_bfv_cost_cl,3))) -> NA | J163: =IF(tot_back_man=0,"--",IF(I163="contact vendor","--",C163*I163)) -> -- | K163: =IF(tot_back_man=0,"NA",VLOOKUP(back_valve_size,ci_bfv_cost_cl,IF(ss_cat="large",4,5))) -> NA | M163: Valves and Fittings - Manual - Backwash - Cast Iron | N163: 2 | O163: 1 | P163: 2 | Q163: 2 | R163: 1 | S163: 2 | T163: 2 | U163: 1 | V163: 2 | W163: 0 | X163: 0
A164: 6.2.4 | B164: Regenerant - Polypropylene/PVC | C164: =tot_brine_man -> 0 | D164: units | E164: =IF(tot_brine_man=0,"NA",brine_valve_size) -> NA | F164: =IF(tot_brine_man=0,"","in. diam") ->  | G164: =IF(curve=1,brine_valve_size,VLOOKUP(brine_valve_size,pp_man_cost_cl,2)) -> 0 | H164: =IF(tot_brine_man=0,"","in. diam") ->  | I164: =IF(tot_brine_man=0,"NA",IF(curve=1,pp_man_eq_brine,VLOOKUP(brine_valve_size,pp_man_cost_cl,3))) -> NA | J164: =IF(tot_brine_man=0,"--",IF(I164="contact vendor","--",C164*I164)) -> -- | K164: =IF(tot_brine_man=0,"NA",VLOOKUP(brine_valve_size,pp_man_cost_cl,IF(ss_cat="large",4,5))) -> NA | M164: Valves and Fittings - Manual - Regenerant - Polypropylene/PVC | N164: 1 | O164: 2 | P164: 2 | Q164: 1 | R164: 2 | S164: 2 | T164: 1 | U164: 2 | V164: 2 | W164: 0 | X164: 0
A165: 6.2.4 | B165: Regenerant - Stainless Steel | C165: =tot_brine_man -> 0 | D165: units | E165: =IF(tot_brine_man=0,"NA",brine_valve_size) -> NA | F165: =IF(tot_brine_man=0,"","in. diam") ->  | G165: =IF(curve=1,brine_valve_size,VLOOKUP(brine_valve_size,ss_man_cost_cl,2)) -> 0 | H165: =IF(tot_brine_man=0,"","in. diam") ->  | I165: =IF(tot_brine_man=0,"NA",IF(curve=1,ss_man_eq_brine,VLOOKUP(brine_valve_size,ss_man_cost_cl,3))) -> NA | J165: =IF(tot_brine_man=0,"--",IF(I165="contact vendor","--",C165*I165)) -> -- | K165: =IF(tot_brine_man=0,"NA",VLOOKUP(brine_valve_size,ss_man_cost_cl,IF(ss_cat="large",4,5))) -> NA | M165: Valves and Fittings - Manual - Regenerant - Stainless Steel | N165: 2 | O165: 1 | P165: 1 | Q165: 2 | R165: 1 | S165: 1 | T165: 2 | U165: 1 | V165: 1 | W165: 0 | X165: 0
A166: 6.2.5 | B166: Bypass - Polypropylene/PVC | C166: =IF(bp_pct>0,tot_bp_man,0) -> 0 | D166: units | E166: =IF(bp_pct=0,"NA",bypass_valve_size) -> NA | F166: =IF(bp_pct=0," ","in. diam") ->  | G166: =IF(bp_pct=0,"NA",(IF(curve=1,bypass_valve_size,VLOOKUP(bypass_valve_size,pp_man_cost_cl,2)))) -> NA | H166: =IF(bp_pct=0," ","in. diam") ->  | I166: =IF(bp_pct=0,"NA",(IF(curve=1,pp_man_eq_bp,VLOOKUP(bypass_valve_size,pp_man_cost_cl,3)))) -> NA | J166: =IF(OR(C166=0,I166="contact vendor"),"--",C166*I166) -> -- | K166: =IF(bp_pct=0,"NA",VLOOKUP(bypass_valve_size,pp_man_cost_cl,IF(ss_cat="large",4,5))) -> NA | M166: Valves and Fittings - Manual - Bypass - Polypropylene/PVC | N166: 1 | O166: 2 | P166: 3 | Q166: 1 | R166: 2 | S166: 3 | T166: 1 | U166: 2 | V166: 3 | W166: 0 | X166: 0
A167: 6.2.5 | B167: Bypass - Stainless Steel | C167: =IF(bp_pct>0,tot_bp_man,0) -> 0 | D167: units | E167: =IF(bp_pct=0,"NA",bypass_valve_size) -> NA | F167: =IF(bp_pct=0," ","in. diam") ->  | G167: =IF(bp_pct=0,"NA",(IF(curve=1,bypass_valve_size,VLOOKUP(bypass_valve_size,ss_man_cost_cl,2)))) -> NA | H167: =IF(bp_pct=0," ","in. diam") ->  | I167: =IF(bp_pct=0,"NA",(IF(curve=1,ss_man_eq_bp,VLOOKUP(bypass_valve_size,ss_man_cost_cl,3)))) -> NA | J167: =IF(OR(C167=0,I167="contact vendor"),"--",C167*I167) -> -- | K167: =IF(bp_pct=0,"NA",VLOOKUP(bypass_valve_size,ss_man_cost_cl,IF(ss_cat="large",4,5))) -> NA | M167: Valves and Fittings - Manual - Bypass - Stainless Steel | N167: 3 | O167: 3 | P167: 1 | Q167: 3 | R167: 3 | S167: 1 | T167: 3 | U167: 3 | V167: 1 | W167: 0 | X167: 0
A168: 6.2.5 | B168: Bypass - Cast Iron | C168: =IF(bp_pct>0,tot_bp_man,0) -> 0 | D168: units | E168: =IF(bp_pct=0,"NA",bypass_valve_size) -> NA | F168: =IF(bp_pct=0," ","in. diam") ->  | G168: =IF(bp_pct=0,"NA",(IF(curve=1,bypass_valve_size,VLOOKUP(bypass_valve_size,ci_bfv_cost_cl,2)))) -> NA | H168: =IF(bp_pct=0," ","in. diam") ->  | I168: =IF(bp_pct=0,"NA",(IF(curve=1,ci_man_eq_bp,VLOOKUP(bypass_valve_size,ci_bfv_cost_cl,3)))) -> NA | J168: =IF(OR(C168=0,I168="contact vendor"),"--",C168*I168) -> -- | K168: =IF(bp_pct=0,"NA",VLOOKUP(bypass_valve_size,ci_bfv_cost_cl,IF(ss_cat="large",4,5))) -> NA | M168: Valves and Fittings - Manual - Bypass - Cast Iron | N168: 2 | O168: 1 | P168: 2 | Q168: 2 | R168: 1 | S168: 2 | T168: 2 | U168: 1 | V168: 2 | W168: 0 | X168: 0
A169: 6.2.6 | B169: Acid - Polypropylene/PVC | C169: =tot_acid_man -> 0 | D169: units | E169: =IF(tot_acid_man=0,"NA",acid_valve_size) -> NA | F169: =IF(tot_acid_man=0,"","in. diam") ->  | G169: =IF(tot_acid_man=0,"NA",IF(curve=1,acid_valve_size,VLOOKUP(acid_valve_size,pp_man_cost_cl,2))) -> NA | H169: =IF(tot_acid_man=0,"","in. diam") ->  | I169: =IF(tot_acid_man=0,"NA",IF(curve=1,pp_man_eq_acid,VLOOKUP(acid_valve_size,pp_man_cost_cl,3))) -> NA | J169: =IF(tot_acid_man=0,"--",IF(I169="contact vendor","--",C169*I169)) -> -- | K169: =IF(tot_acid_man=0,"NA",VLOOKUP(acid_valve_size,pp_man_cost_cl,IF(ss_cat="large",4,5))) -> NA | M169: Valves and Fittings - Manual - Acid - Polypropylene/PVC | N169: 1 | O169: 2 | P169: 2 | Q169: 1 | R169: 2 | S169: 2 | T169: 1 | U169: 2 | V169: 2 | W169: =IF(ISERROR(K169*L169),0,IF(K169<1,0,L169)) -> 0 | X169: =IF(W169,J169/K169,0) -> 0
A170: 6.2.6 | B170: Acid - Stainless Steel | C170: =tot_acid_man -> 0 | D170: units | E170: =IF(tot_acid_man=0,"NA",acid_valve_size) -> NA | F170: =IF(tot_acid_man=0,"","in. diam") ->  | G170: =IF(tot_acid_man=0,"NA",IF(curve=1,acid_valve_size,VLOOKUP(acid_valve_size,ss_man_cost_cl,2))) -> NA | H170: =IF(tot_acid_man=0,"","in. diam") ->  | I170: =IF(tot_acid_man=0,"NA",IF(curve=1,ss_man_eq_acid,VLOOKUP(acid_valve_size,ss_man_cost_cl,3))) -> NA | J170: =IF(tot_acid_man=0,"--",IF(I170="contact vendor","--",C170*I170)) -> -- | K170: =IF(tot_acid_man=0,"NA",VLOOKUP(acid_valve_size,ss_man_cost_cl,IF(ss_cat="large",4,5))) -> NA | M170: Valves and Fittings - Manual - Acid - Stainless Steel | N170: 2 | O170: 1 | P170: 1 | Q170: 2 | R170: 1 | S170: 1 | T170: 2 | U170: 1 | V170: 1 | W170: 0 | X170: 0
A171: 6.2.7 | B171: Caustic - Polypropylene/PVC | C171: =tot_caustic_man -> 0 | D171: units | E171: =IF(tot_caustic_man=0,"NA",caustic_valve_size) -> NA | F171: =IF(tot_caustic_man=0,"","in. diam") ->  | G171: =IF(tot_caustic_man=0,"NA",(IF(curve=1,caustic_valve_size,VLOOKUP(caustic_valve_size,ci_mov_cost_cl,2)))) -> NA | H171: =IF(tot_caustic_man=0,"","in. diam") ->  | I171: =IF(tot_caustic_man=0,"NA",IF(curve=1,pp_man_eq_caustic,VLOOKUP(caustic_valve_size,pp_man_cost_cl,3))) -> NA | J171: =IF(tot_caustic_man=0,"--",IF(I171="contact vendor","--",C171*I171)) -> -- | K171: =IF(tot_caustic_man=0,"NA",VLOOKUP(caustic_valve_size,pp_man_cost_cl,IF(ss_cat="large",4,5))) -> NA | M171: Valves and Fittings - Manual - Caustic - Polypropylene/PVC | N171: 1 | O171: 2 | P171: 2 | Q171: 1 | R171: 2 | S171: 2 | T171: 1 | U171: 2 | V171: 2 | W171: 0 | X171: 0
A172: 6.2.7 | B172: Caustic - Stainless Steel | C172: =tot_caustic_man -> 0 | D172: units | E172: =IF(tot_caustic_man=0,"NA",caustic_valve_size) -> NA | F172: =IF(tot_caustic_man=0,"","in. diam") ->  | G172: =IF(tot_caustic_man=0,"NA",(IF(curve=1,caustic_valve_size,VLOOKUP(caustic_valve_size,ci_mov_cost_cl,2)))) -> NA | H172: =IF(tot_caustic_man=0,"","in. diam") ->  | I172: =IF(tot_caustic_man=0,"NA",IF(curve=1,ss_man_eq_caustic,VLOOKUP(caustic_valve_size,ss_man_cost_cl,3))) -> NA | J172: =IF(tot_caustic_man=0,"--",IF(I172="contact vendor","--",C172*I172)) -> -- | K172: =IF(tot_caustic_man=0,"NA",VLOOKUP(caustic_valve_size,ss_man_cost_cl,IF(ss_cat="large",4,5))) -> NA | M172: Valves and Fittings - Manual - Caustic - Stainless Steel | N172: 2 | O172: 1 | P172: 1 | Q172: 2 | R172: 1 | S172: 1 | T172: 2 | U172: 1 | V172: 1 | W172: 0 | X172: 0
A173: 6.2.8 | B173: Residuals - Polypropylene/PVC | C173: =total_res_man -> 0 | D173: units | E173: =IF(C173=0,"NA",res_valve_size) -> NA | F173: =IF(C173=0,"","in. diam") ->  | G173: =IF(C173=0,"NA",IF(curve=1,res_valve_size,VLOOKUP(res_valve_size,pp_man_cost_cl,2))) -> NA | H173: =IF(C173=0,"","in. diam") ->  | I173: =IF(C173=0,"NA",IF(curve=1,pp_man_eq_res,VLOOKUP(res_valve_size,pp_man_cost_cl,3))) -> NA | J173: =IF(OR(C173=0,I173="contact vendor"),"--",C173*I173) -> -- | K173: =IF(C173=0,"NA",VLOOKUP(res_valve_size,pp_man_cost_cl,IF(ss_cat="large",4,5))) -> NA | M173: Valves and Fittings - Manual - Residuals - Polypropylene/PVC | N173: 1 | O173: 2 | P173: 3 | Q173: 1 | R173: 2 | S173: 3 | T173: 1 | U173: 2 | V173: 3 | W173: 0 | X173: 0
A174: 6.2.8 | B174: Residuals - Stainless Steel | C174: =total_res_man -> 0 | D174: units | E174: =IF(C174=0,"NA",res_valve_size) -> NA | G174: =IF(C174=0,"NA",IF(curve=1,res_valve_size,VLOOKUP(res_valve_size,ss_man_cost_cl,2))) -> NA | I174: =IF(C174=0,"NA",IF(curve=1,ss_man_eq_res,VLOOKUP(res_valve_size,ss_man_cost_cl,3))) -> NA | J174: -- | K174: =IF(C174=0,"NA",VLOOKUP(res_valve_size,ss_man_cost_cl,IF(ss_cat="large",4,5))) -> NA | M174: Valves and Fittings - Manual - Residuals - Stainless Steel | N174: 3 | O174: 3 | P174: 1 | Q174: 3 | R174: 3 | S174: 1 | T174: 3 | U174: 3 | V174: 1 | W174: 0 | X174: 0
A175: 6.2.8 | B175: Residuals - Cast Iron | C175: =total_res_man -> 0 | D175: units | E175: =IF(C175=0,"NA",res_valve_size) -> NA | G175: =IF(C175=0,"NA",IF(curve=1,res_valve_size,VLOOKUP(res_valve_size,ci_bfv_cost_cl,2))) -> NA | I175: =IF(C175=0,"NA",IF(curve=1,ci_man_eq_res,VLOOKUP(res_valve_size,ci_bfv_cost_cl,3))) -> NA | J175: -- | K175: =IF(C175=0,"NA",VLOOKUP(res_valve_size,ci_bfv_cost_cl,IF(ss_cat="large",4,5))) -> NA | M175: Valves and Fittings - Manual - Residuals - Cast Iron | N175: 2 | O175: 1 | P175: 2 | Q175: 2 | R175: 1 | S175: 2 | T175: 2 | U175: 1 | V175: 2 | W175: 0 | X175: 0
A176: 6.2.9 | B176: Polymer- Polypropylene/PVC | C176: =tot_polymer_man -> 0 | D176: units | E176: =IF(C176=0,"NA",polymer_valve_size) -> NA | G176: =IF(C176=0,"NA",IF(curve=1,polymer_valve_size,VLOOKUP(polymer_valve_size,pp_man_cost_cl,2))) -> NA | I176: =IF(C176=0,"NA",IF(curve=1,pp_man_eq_polymer,VLOOKUP(polymer_valve_size,pp_man_cost_cl,3))) -> NA | J176: -- | K176: =IF(C176=0,"NA",VLOOKUP(polymer_valve_size,pp_man_cost_cl,IF(ss_cat="large",4,5))) -> NA | M176: Valves and Fittings - Manual - Polymer- Polypropylene/PVC | N176: 1 | O176: 2 | P176: 3 | Q176: 1 | R176: 2 | S176: 3 | T176: 1 | U176: 2 | V176: 3 | W176: 0 | X176: 0
A177: 6.2.9 | B177: Polymer- Stainless Steel | C177: =tot_polymer_man -> 0 | D177: units | E177: =IF(C177=0,"NA",polymer_valve_size) -> NA | G177: =IF(C177=0,"NA",IF(curve=1,polymer_valve_size,VLOOKUP(polymer_valve_size,ss_man_cost_cl,2))) -> NA | I177: =IF(C177=0,"NA",IF(curve=1,ss_man_eq_polymer,VLOOKUP(polymer_valve_size,ss_man_cost_cl,3))) -> NA | J177: -- | K177: =IF(C177=0,"NA",VLOOKUP(polymer_valve_size,ss_man_cost_cl,IF(ss_cat="large",4,5))) -> NA | M177: Valves and Fittings - Manual - Polymer- Stainless Steel | N177: 3 | O177: 3 | P177: 1 | Q177: 3 | R177: 3 | S177: 1 | T177: 3 | U177: 3 | V177: 1 | W177: 0 | X177: 0
A178: 6.2.9 | B178: Polymer- Cast Iron | C178: =tot_polymer_man -> 0 | D178: units | E178: =IF(C178=0,"NA",polymer_valve_size) -> NA | G178: =IF(C178=0,"NA",IF(curve=1,polymer_valve_size,VLOOKUP(polymer_valve_size,ci_bfv_cost_cl,2))) -> NA | I178: =IF(C178=0,"NA",IF(curve=1,ci_man_eq_polymer,VLOOKUP(polymer_valve_size,ci_bfv_cost_cl,3))) -> NA | J178: -- | K178: =IF(C178=0,"NA",VLOOKUP(polymer_valve_size,ci_bfv_cost_cl,IF(ss_cat="large",4,5))) -> NA | M178: Valves and Fittings - Manual - Polymer- Cast Iron | N178: 2 | O178: 1 | P178: 2 | Q178: 2 | R178: 1 | S178: 2 | T178: 2 | U178: 1 | V178: 2 | W178: 0 | X178: 0
A179: 6.3 | B179: Check Valves | W179: 0 | X179: 0
A180: 6.3.1 | B180: Backwash - Polypropylene/PVC | C180: =tot_back_chv -> 2 | D180: units | E180: =IF(C180=0,"NA",back_valve_size) -> 8 | F180: =IF(C180=0,"","in. diam") -> in. diam | G180: =IF(C180=0,"NA",(IF(curve=1,back_valve_size,VLOOKUP(back_valve_size,pp_chv_cost_cl,2)))) -> 8 | H180: =IF(C180=0,"","in. diam") -> in. diam | I180: =IF(C180=0,"NA",(IF(curve=1,pp_chv_eq,VLOOKUP(back_valve_size,pp_chv_cost_cl,3)))) -> 2261.608038 | J180: =IF(C180=0,"--",(IF(I180="contact vendor","--",C180*I180))) -> 4523.216076 | K180: =IF(C180=0,"NA",(VLOOKUP(back_valve_size,pp_chv_cost_cl,IF(ss_cat="large",4,5)))) -> 25 | L180: 1 | M180: =$B$131 & " - " & $B$179&" "&" - "&B180 -> Valves and Fittings - Check Valves - Backwash - Polypropylene/PVC | N180: 1 | O180: 2 | P180: 3 | Q180: 1 | R180: 2 | S180: 3 | T180: 1 | U180: 2 | V180: 3 | W180: 1 | X180: 180.928643
A181: 6.3.1 | B181: Backwash - Stainless Steel | C181: =tot_back_chv -> 2 | D181: units | E181: =IF(C181=0,"NA",back_valve_size) -> 8 | F181: =IF(C181=0,"","in. diam") -> in. diam | G181: =IF(C181=0,"NA",(IF(curve=1,back_valve_size,VLOOKUP(back_valve_size,ss_chv_cost_cl,2)))) -> 8 | H181: =IF(C181=0,"","in. diam") -> in. diam | I181: =IF(C181=0,"NA",(IF(curve=1,ss_chv_eq,VLOOKUP(back_valve_size,ss_chv_cost_cl,3)))) -> 4564.063481 | J181: =IF(C181=0,"--",(IF(I181="contact vendor","--",C181*I181))) -> 9128.126962 | K181: =IF(C181=0,"NA",(VLOOKUP(back_valve_size,ss_chv_cost_cl,IF(ss_cat="large",4,5)))) -> 25 | L181: 0 | M181: Valves and Fittings - Check Valves - Backwash - Stainless Steel | N181: 3 | O181: 3 | P181: 1 | Q181: 3 | R181: 3 | S181: 1 | T181: 3 | U181: 3 | V181: 1 | W181: 0 | X181: 0
A182: 6.3.1 | B182: Backwash - Cast Iron | C182: =tot_back_chv -> 2 | D182: units | E182: =IF(C182=0,"NA",back_valve_size) -> 8 | F182: =IF(C182=0,"","in. diam") -> in. diam | G182: =IF(C182=0,"NA",(IF(curve=1,back_valve_size,VLOOKUP(back_valve_size,ci_chv_cost_cl,2)))) -> 8 | H182: =IF(C182=0,"","in. diam") -> in. diam | I182: =IF(C182=0,"NA",(IF(curve=1,ci_chv_eq,VLOOKUP(back_valve_size,ci_chv_cost_cl,3)))) -> 2870.167142 | J182: =IF(C182=0,"--",(IF(I182="contact vendor","--",C182*I182))) -> 5740.334285 | K182: =IF(C182=0,"NA",(VLOOKUP(back_valve_size,ci_chv_cost_cl,IF(ss_cat="large",4,5)))) -> 25 | L182: 0 | M182: Valves and Fittings - Check Valves - Backwash - Cast Iron | N182: 2 | O182: 1 | P182: 2 | Q182: 2 | R182: 1 | S182: 2 | T182: 2 | U182: 1 | V182: 2 | W182: 0 | X182: 0
A183: 6.3.2 | B183: Inlet and Outlet - Polypropylene/PVC | C183: =tot_in_chv -> 2 | D183: units | E183: =in_valve_size -> 36 | F183: in. diam | G183: =IF(curve=1,in_valve_size,VLOOKUP(in_valve_size,pp_chv_cost_cl,2)) -> 36 | H183: in. diam | I183: =IF(curve=1,pp_chv_eq_in,VLOOKUP(in_valve_size,pp_chv_cost_cl,3)) -> contact vendor | J183: =IF(I183="contact vendor","--",C183*I183) -> -- | K183: =VLOOKUP(in_valve_size,pp_chv_cost_cl,IF(ss_cat="large",4,5)) -> 25 | L183: 0 | M183: Valves and Fittings - Check Valves - Inlet and Outlet - Polypropylene/PVC | N183: 1 | O183: 2 | P183: 3 | Q183: 1 | R183: 2 | S183: 3 | T183: 1 | U183: 2 | V183: 3 | W183: 0 | X183: 0
A184: 6.3.2 | B184: Inlet and Outlet - Stainless Steel | C184: =tot_in_chv -> 2 | D184: units | E184: =in_valve_size -> 36 | F184: in. diam | G184: =IF(curve=1,in_valve_size,VLOOKUP(in_valve_size,ss_chv_cost_cl,2)) -> 36 | H184: in. diam | I184: =IF(curve=1,ss_chv_eq_in,VLOOKUP(in_valve_size,ss_chv_cost_cl,3)) -> 52101.50285 | J184: =IF(I184="contact vendor","--",C184*I184) -> 104203.0057 | K184: =VLOOKUP(in_valve_size,ss_chv_cost_cl,IF(ss_cat="large",4,5)) -> 25 | L184: 1 | M184: Valves and Fittings - Check Valves - Inlet and Outlet - Stainless Steel | N184: 3 | O184: 3 | P184: 1 | Q184: 3 | R184: 3 | S184: 1 | T184: 3 | U184: 3 | V184: 1 | W184: 1 | X184: 4168.120228
A185: 6.3.2 | B185: Inlet and Outlet - Cast Iron | C185: =tot_in_chv -> 2 | D185: units | E185: =in_valve_size -> 36 | F185: in. diam | G185: =IF(curve=1,in_valve_size,VLOOKUP(in_valve_size,ci_chv_cost_cl,2)) -> 36 | H185: in. diam | I185: =IF(curve=1,ci_chv_eq_in,VLOOKUP(in_valve_size,ci_chv_cost_cl,3)) -> contact vendor | J185: =IF(I185="contact vendor","--",C185*I185) -> -- | K185: =VLOOKUP(in_valve_size,ci_chv_cost_cl,IF(ss_cat="large",4,5)) -> 25 | L185: 0 | M185: Valves and Fittings - Check Valves - Inlet and Outlet - Cast Iron | N185: 2 | O185: 1 | P185: 2 | Q185: 2 | R185: 1 | S185: 2 | T185: 2 | U185: 1 | V185: 2 | W185: 0 | X185: 0
A186: 6.3.3 | B186: Bypass - Polypropylene/PVC | C186: =IF(bp_pct>0,IF(design_flow<1,tot_bp_chv_small,tot_bp_chv),0) -> 0 | D186: units | E186: =IF(bp_pct=0,"NA",bypass_valve_size) -> NA | F186: =IF(bp_pct=0," ","in. diam") ->  | G186: =IF(bp_pct=0,"NA",(IF(curve=1,bypass_valve_size,VLOOKUP(bypass_valve_size,pp_chv_cost_cl,2)))) -> NA | H186: =IF(bp_pct=0," ","in. diam") ->  | I186: =IF(bp_pct=0,"NA",(IF(curve=1,pp_chv_eq_bp,VLOOKUP(bypass_valve_size,pp_chv_cost_cl,3)))) -> NA | J186: =IF(OR(C186=0,I186="contact vendor"),"--",C186*I186) -> -- | K186: =IF(bp_pct=0,"NA",VLOOKUP(bypass_valve_size,pp_chv_cost_cl,IF(ss_cat="large",4,5))) -> NA | M186: Valves and Fittings - Check Valves - Bypass - Polypropylene/PVC | N186: 1 | O186: 2 | P186: 3 | Q186: 1 | R186: 2 | S186: 3 | T186: 1 | U186: 2 | V186: 3 | W186: 0 | X186: 0
A187: 6.3.3 | B187: Bypass - Stainless Steel | C187: =IF(bp_pct>0,IF(design_flow<1,tot_bp_chv_small,tot_bp_chv),0) -> 0 | D187: units | E187: =IF(bp_pct=0,"NA",bypass_valve_size) -> NA | F187: =IF(bp_pct=0," ","in. diam") ->  | G187: =IF(bp_pct=0,"NA",(IF(curve=1,bypass_valve_size,VLOOKUP(bypass_valve_size,ss_chv_cost_cl,2)))) -> NA | H187: =IF(bp_pct=0," ","in. diam") ->  | I187: =IF(bp_pct=0,"NA",(IF(curve=1,ss_chv_eq_bp,VLOOKUP(bypass_valve_size,ss_chv_cost_cl,3)))) -> NA | J187: =IF(OR(C187=0,I187="contact vendor"),"--",C187*I187) -> -- | K187: =IF(bp_pct=0,"NA",VLOOKUP(bypass_valve_size,ss_chv_cost_cl,IF(ss_cat="large",4,5))) -> NA | M187: Valves and Fittings - Check Valves - Bypass - Stainless Steel | N187: 3 | O187: 3 | P187: 1 | Q187: 3 | R187: 3 | S187: 1 | T187: 3 | U187: 3 | V187: 1 | W187: 0 | X187: 0
A188: 6.3.3 | B188: Bypass - Cast Iron | C188: =IF(bp_pct>0,IF(design_flow<1,tot_bp_chv_small,tot_bp_chv),0) -> 0 | D188: units | E188: =IF(bp_pct=0,"NA",bypass_valve_size) -> NA | F188: =IF(bp_pct=0," ","in. diam") ->  | G188: =IF(bp_pct=0,"NA",(IF(curve=1,bypass_valve_size,VLOOKUP(bypass_valve_size,ci_chv_cost_cl,2)))) -> NA | H188: =IF(bp_pct=0," ","in. diam") ->  | I188: =IF(bp_pct=0,"NA",(IF(curve=1,ci_chv_eq_bp,VLOOKUP(bypass_valve_size,ci_chv_cost_cl,3)))) -> NA | J188: =IF(OR(C188=0,I188="contact vendor"),"--",C188*I188) -> -- | K188: =IF(bp_pct=0,"NA",VLOOKUP(bypass_valve_size,ci_chv_cost_cl,IF(ss_cat="large",4,5))) -> NA | M188: Valves and Fittings - Check Valves - Bypass - Cast Iron | N188: 2 | O188: 1 | P188: 2 | Q188: 2 | R188: 1 | S188: 2 | T188: 2 | U188: 1 | V188: 2 | W188: 0 | X188: 0
A189: 6.3.4 | B189: Regenerant - Polypropylene/PVC | C189: =tot_brine_chv -> 0 | D189: units | E189: =IF(C189=0,"NA",brine_valve_size) -> NA | F189: =IF(C189=0,"","in. diam") ->  | G189: =IF(C189=0,"NA",(IF(curve=1,brine_valve_size,VLOOKUP(brine_valve_size,pp_chv_cost_cl,2)))) -> NA | H189: =IF(C189=0,"","in. diam") ->  | I189: =IF(C189=0,"NA",(IF(curve=1,pp_chv_eq_brine,VLOOKUP(brine_valve_size,pp_chv_cost_cl,3)))) -> NA | J189: =IF(C189=0,"--",(IF(I189="contact vendor","--",C189*I189))) -> -- | K189: =IF(C189=0,"NA",(VLOOKUP(brine_valve_size,pp_chv_cost_cl,IF(ss_cat="large",4,5)))) -> NA | M189: Valves and Fittings - Check Valves - Regenerant - Polypropylene/PVC | N189: 1 | O189: 2 | P189: 2 | Q189: 1 | R189: 2 | S189: 2 | T189: 1 | U189: 2 | V189: 2 | W189: 0 | X189: 0
A190: 6.3.4 | B190: Regenerant - Stainless Steel | C190: =tot_brine_chv -> 0 | D190: units | E190: =IF(C190=0,"NA",brine_valve_size) -> NA | G190: =IF(C190=0,"NA",(IF(curve=1,brine_valve_size,VLOOKUP(brine_valve_size,ss_chv_cost_cl,2)))) -> NA | I190: =IF(C190=0,"NA",(IF(curve=1,ss_chv_eq_brine,VLOOKUP(brine_valve_size,ss_chv_cost_cl,3)))) -> NA | J190: -- | K190: =IF(C190=0,"NA",(VLOOKUP(brine_valve_size,ss_chv_cost_cl,IF(ss_cat="large",4,5)))) -> NA | M190: Valves and Fittings - Check Valves - Regenerant - Stainless Steel | N190: 2 | O190: 1 | P190: 1 | Q190: 2 | R190: 1 | S190: 1 | T190: 2 | U190: 1 | V190: 1 | W190: 0 | X190: 0
A191: 6.3.5 | B191: Acid - Polypropylene/PVC | C191: =tot_acid_chv -> 0 | D191: units | E191: =IF(C191=0,"NA",acid_valve_size) -> NA | G191: =IF(C191=0,"NA",(IF(curve=1,acid_valve_size,VLOOKUP(acid_valve_size,pp_chv_cost_cl,2)))) -> NA | I191: =IF(C191=0,"NA",(IF(curve=1,pp_chv_eq_acid,VLOOKUP(acid_valve_size,pp_chv_cost_cl,3)))) -> NA | J191: -- | K191: =IF(C191=0,"NA",(VLOOKUP(acid_valve_size,pp_chv_cost_cl,IF(ss_cat="large",4,5)))) -> NA | M191: Valves and Fittings - Check Valves - Acid - Polypropylene/PVC | N191: 1 | O191: 2 | P191: 2 | Q191: 1 | R191: 2 | S191: 2 | T191: 1 | U191: 2 | V191: 2 | W191: 0 | X191: 0
A192: 6.3.5 | B192: Acid - Stainless Steel | C192: =tot_acid_chv -> 0 | D192: units | E192: =IF(C192=0,"NA",acid_valve_size) -> NA | G192: =IF(C192=0,"NA",(IF(curve=1,acid_valve_size,VLOOKUP(acid_valve_size,ss_chv_cost_cl,2)))) -> NA | I192: =IF(C192=0,"NA",(IF(curve=1,ss_chv_eq_acid,VLOOKUP(acid_valve_size,ss_chv_cost_cl,3)))) -> NA | J192: -- | K192: =IF(C192=0,"NA",(VLOOKUP(acid_valve_size,ss_chv_cost_cl,IF(ss_cat="large",4,5)))) -> NA | M192: Valves and Fittings - Check Valves - Acid - Stainless Steel | N192: 2 | O192: 1 | P192: 1 | Q192: 2 | R192: 1 | S192: 1 | T192: 2 | U192: 1 | V192: 1 | W192: 0 | X192: 0
A193: 6.3.6 | B193: Caustic - Polypropylene/PVC | C193: =tot_caustic_chv -> 0 | D193: units | E193: =IF(C193=0,"NA",caustic_valve_size) -> NA | F193: =IF(C193=0,"","in. diam") ->  | G193: =IF(C193=0,"NA",(IF(curve=1,caustic_valve_size,VLOOKUP(caustic_valve_size,pp_chv_cost_cl,2)))) -> NA | I193: =IF(C193=0,"NA",(IF(curve=1,pp_chv_eq_caustic,VLOOKUP(caustic_valve_size,pp_chv_cost_cl,3)))) -> NA | J193: -- | K193: =IF(C193=0,"NA",(VLOOKUP(caustic_valve_size,pp_chv_cost_cl,IF(ss_cat="large",4,5)))) -> NA | M193: Valves and Fittings - Check Valves - Caustic - Polypropylene/PVC | N193: 1 | O193: 2 | P193: 2 | Q193: 1 | R193: 2 | S193: 2 | T193: 1 | U193: 2 | V193: 2 | W193: 0 | X193: 0
A194: 6.3.6 | B194: Caustic - Stainless Steel | C194: =tot_caustic_chv -> 0 | D194: units | E194: =IF(C194=0,"NA",caustic_valve_size) -> NA | G194: =IF(C194=0,"NA",(IF(curve=1,caustic_valve_size,VLOOKUP(caustic_valve_size,ss_chv_cost_cl,2)))) -> NA | I194: =IF(C194=0,"NA",(IF(curve=1,ss_chv_eq_caustic,VLOOKUP(caustic_valve_size,ss_chv_cost_cl,3)))) -> NA | J194: -- | K194: =IF(C194=0,"NA",(VLOOKUP(caustic_valve_size,ss_chv_cost_cl,IF(ss_cat="large",4,5)))) -> NA | M194: Valves and Fittings - Check Valves - Caustic - Stainless Steel | N194: 2 | O194: 1 | P194: 1 | Q194: 2 | R194: 1 | S194: 1 | T194: 2 | U194: 1 | V194: 1 | W194: 0 | X194: 0
A195: 6.3.7 | B195: Residuals - Polypropylene/PVC | C195: =tot_res_chv -> 1 | D195: units | E195: =IF(C195=0,"NA",res_valve_size) -> 6 | F195: in. diam | G195: =IF(C195=0,"NA",IF(curve=1,res_valve_size,VLOOKUP(res_valve_size,pp_chv_cost_cl,2))) -> 6 | H195: in. diam | I195: =IF(C195=0,0,IF(curve=1,pp_chv_eq_res,VLOOKUP(res_valve_size,pp_chv_cost_cl,3))) -> 1352.686532 | J195: =IF(I195=0,0,IF(I195="contact vendor","--",C195*I195)) -> 1352.686532 | K195: =IF(C195=0,"NA",VLOOKUP(res_valve_size,pp_chv_cost_cl,IF(ss_cat="large",4,5))) -> 25 | L195: 1 | M195: Valves and Fittings - Check Valves - Residuals - Polypropylene/PVC | N195: 1 | O195: 2 | P195: 3 | Q195: 1 | R195: 2 | S195: 3 | T195: 1 | U195: 2 | V195: 3 | W195: 1 | X195: 54.1074613
A196: 6.3.7 | B196: Residuals - Stainless Steel | C196: =tot_res_chv -> 1 | D196: units | E196: =IF(C196=0,"NA",res_valve_size) -> 6 | F196: in. diam | G196: =IF(C196=0,"NA",IF(curve=1,res_valve_size,VLOOKUP(res_valve_size,ss_chv_cost_cl,2))) -> 6 | H196: in. diam | I196: =IF(C196=0,0,IF(curve=1,ss_chv_eq_res,VLOOKUP(res_valve_size,ss_chv_cost_cl,3))) -> 3067.587033 | J196: =IF(I196=0,0,IF(I196="contact vendor","--",C196*I196)) -> 3067.587033 | K196: =IF(C196=0,"NA",VLOOKUP(res_valve_size,ss_chv_cost_cl,IF(ss_cat="large",4,5))) -> 25 | L196: 0 | M196: Valves and Fittings - Check Valves - Residuals - Stainless Steel | N196: 3 | O196: 3 | P196: 1 | Q196: 3 | R196: 3 | S196: 1 | T196: 3 | U196: 3 | V196: 1 | W196: 0 | X196: 0
A197: 6.3.7 | B197: Residuals - Cast Iron | C197: =tot_res_chv -> 1 | D197: units | E197: =IF(C197=0,"NA",res_valve_size) -> 6 | F197: in. diam | G197: =IF(C197=0,"NA",IF(curve=1,res_valve_size,VLOOKUP(res_valve_size,ci_chv_cost_cl,2))) -> 6 | H197: in. diam | I197: =IF(C197=0,0,IF(curve=1,ci_chv_eq_res,VLOOKUP(res_valve_size,ci_chv_cost_cl,3))) -> 1928.727569 | J197: =IF(I197=0,0,IF(I197="contact vendor","--",C197*I197)) -> 1928.727569 | K197: =IF(C197=0,"NA",VLOOKUP(res_valve_size,ci_chv_cost_cl,IF(ss_cat="large",4,5))) -> 25 | L197: 0 | M197: Valves and Fittings - Check Valves - Residuals - Cast Iron | N197: 2 | O197: 1 | P197: 2 | Q197: 2 | R197: 1 | S197: 2 | T197: 2 | U197: 1 | V197: 2 | W197: 0 | X197: 0
A198: 6.3.8 | B198: Polymer - Polypropylene/PVC | C198: =tot_polymer_chv -> 0 | D198: units | E198: =IF(C198=0,"NA",polymer_valve_size) -> NA | G198: =IF(C198=0,"NA",IF(curve=1,polymer_valve_size,VLOOKUP(polymer_valve_size,pp_chv_cost_cl,2))) -> NA | I198: =IF(C198=0,"NA",IF(curve=1,pp_chv_eq_polymer,VLOOKUP(polymer_valve_size,pp_chv_cost_cl,3))) -> NA | J198: =IF(OR(C198=0,I198="contact vendor"),"--",C198*I198) -> -- | K198: =IF(C198=0,"NA",VLOOKUP(polymer_valve_size,pp_chv_cost_cl,IF(ss_cat="large",4,5))) -> NA | M198: =$B$131 & " - " & $B$179&" "&" - "&B198 -> Valves and Fittings - Check Valves - Polymer - Polypropylene/PVC | N198: 1 | O198: 2 | P198: 3 | Q198: 1 | R198: 2 | S198: 3 | T198: 1 | U198: 2 | V198: 3 | W198: 0 | X198: 0
A199: 6.3.8 | B199: Polymer - Stainless Steel | C199: =tot_polymer_chv -> 0 | D199: units | E199: =IF(C199=0,"NA",polymer_valve_size) -> NA | G199: =IF(C199=0,"NA",IF(curve=1,polymer_valve_size,VLOOKUP(polymer_valve_size,ss_chv_cost_cl,2))) -> NA | I199: =IF(C199=0,"NA",IF(curve=1,ss_chv_eq_polymer,VLOOKUP(polymer_valve_size,ss_chv_cost_cl,3))) -> NA | J199: =IF(OR(C199=0,I199="contact vendor"),"--",C199*I199) -> -- | K199: =IF(C199=0,"NA",VLOOKUP(polymer_valve_size,ss_chv_cost_cl,IF(ss_cat="large",4,5))) -> NA | M199: =$B$131 & " - " & $B$179&" "&" - "&B199 -> Valves and Fittings - Check Valves - Polymer - Stainless Steel | N199: 3 | O199: 3 | P199: 1 | Q199: 3 | R199: 3 | S199: 1 | T199: 3 | U199: 3 | V199: 1 | W199: 0 | X199: 0
A200: 6.3.8 | B200: Polymer - Cast Iron | C200: =tot_polymer_chv -> 0 | D200: units | E200: =IF(C200=0,"NA",polymer_valve_size) -> NA | G200: =IF(C200=0,"NA",IF(curve=1,polymer_valve_size,VLOOKUP(polymer_valve_size,ci_chv_cost_cl,2))) -> NA | I200: =IF(C200=0,"NA",IF(curve=1,ci_chv_eq_polymer,VLOOKUP(polymer_valve_size,ci_chv_cost_cl,3))) -> NA | J200: =IF(OR(C200=0,I200="contact vendor"),"--",C200*I200) -> -- | K200: =IF(C200=0,"NA",VLOOKUP(polymer_valve_size,ci_chv_cost_cl,IF(ss_cat="large",4,5))) -> NA | M200: =$B$131 & " - " & $B$179&" "&" - "&B200 -> Valves and Fittings - Check Valves - Polymer - Cast Iron | N200: 2 | O200: 1 | P200: 2 | Q200: 2 | R200: 1 | S200: 2 | T200: 2 | U200: 1 | V200: 2 | W200: 0 | X200: 0
A201: 7 | B201: Pumps | W201: 0 | X201: 0
A202: 7.1 | B202: Booster | C202: =total_booster_pumps -> 7 | D202: units | E202: =IF(C202=0,"NA",pump_rating) -> 10000 | F202: =IF(C202=0,"","gpm") -> gpm | G202: =IF(C202=0,"NA",IF(curve=1,pump_rating,VLOOKUP(pump_rating,pump_cost_cl,2))) -> 10000 | H202: =IF(C202=0,"","gpm") -> gpm | I202: =IF(C202=0,"NA",IF(curve=1,pump_eq,VLOOKUP(pump_rating,pump_cost_cl,3))) -> 82432.55225 | J202: =IF(C202=0,0,IF(I202="contact vendor","--",C202*I202)) -> 577027.8658 | K202: =IF(C202=0,"NA",VLOOKUP(pump_rating,pump_cost_cl,IF(ss_cat="large",4,5))) -> 20 | L202: 1 | M202: =$B$201&" - "&B202 -> Pumps - Booster | N202: 1 | O202: 1 | P202: 1 | Q202: 1 | R202: 1 | S202: 1 | T202: 1 | U202: 1 | V202: 1 | W202: 1 | X202: 28851.39329
... 262 more rows

Sheet Critical Design Assumptions
A1: Default Critical Design Assumptions
A2: Users may change any of the cells in the Value column; cells in gold are most important and may vary based on contaminant treated and site-specific conditions
A4: Assumption | B4: Range Name | C4: Value | D4: Units | E4: Guidance
A5: Cost estimating method | B5: curve | C5: 1 | D5: <-- enter 1 to use cost equations, leave blank to use lookup tables for component costs | E5: Keeping this assumption with a value of 1 is strongly recommended; the cost equations method is more appropriate for national cost estimating and will be more accurate for nearly all user-specified designs
A6: Minimum average flow as percentage of design | B6: min_avg_flow | C6: 0.1 | E6: The minimum ratio of average flow to design flow. If the ratio falls below this value, it will trigger a warning on the INPUT sheet. If this value is zero, no minimum is enforced.
A8: Vessel Design
A9: Number of redundant vessels for small systems with only one vessel | B9: NRD_small_1 | C9: 1 | D9: units | E9: If a design includes only one operating vessel, there should be at least one additional vessel
A10: Number of redundant vessels for small systems with multiple vessels | B10: NRD_small | C10: 0 | D10: units | E10: Small systems can operate at reduced capacity while one vessel is down for backwash, if there are multiple vessels
A11: Add a redundant unit per x parallel lines | B11: redund_freq | C11: 4 | D11: number of parallel lines/redundant unit
A12: Bypass percentage | B12: bp_pct | C12: 0 | E12: Typically bypass flow ranges between 0 % and 50 % of inflow. Enter zero to remove bypass piping and components. 0% is default consistent with the type of cost curves that EPA will need for its national cost simulation model.
A13: Loading rate minimum | B13: load_min | C13: 1 | D13: gpm/square ft
A14: Maximum vessel height (circular vessels) | B14: max_height | C14: 14 | D14: feet | E14: Systems have used vessels up to 14' diam and height in practice (AWWA Inorganic Contaminants Workshop 2006)
A15: Maximum vessel diameter | B15: max_diam_override | D15: feet | E15: Maximum vessel diameter will be chosen from a table of conventional sizes for commercial vessels, unless entered here. Systems have used vessels up to 14' diam and height in practice (AWWA Inorganic Contaminants Workshop 2006)
A16: Maximum vessel length (longitudinal vessels) | B16: max_length | C16: 53 | D16: feet | E16: Limitation on transportation is 53 feet in length
A17: Free board above media at full expansion | B17: free_board | C17: 0.5 | D17: feet
A18: Underdrain space for horizontal vessels | B18: horiz_underdrain | C18: 1.5 | D18: feet | E18: 1.5 feet is a conservative value for a 10' tank. Bob Dvorin, 5/16/05.
A19: Vessel thickness of wall | B19: Vessel_thickness | C19: 0 | D19: feet | E19: Set to zero because vendor designs and quotes are usually expressed in inside diameter. Increase if user desires to input outside diameter.
A20: Ratio of length to diameter for horizontal vessels | B20: length_diam_ratio | C20: 2.5 | E20: Used only for autosize procedure
A21: Resin expansion during backwash | B21: bed_expansion | C21: 0.5 | E21: Boodoo peer review comments
A22: Resin density | B22: media_density | C22: 43 | D22: lbs/ft3 | E22: Generally varies between 41 to 46 lbs/ft3 with an average of 43 /bs/ft3 (Based on peer review)
A23: Minimum bed depth for autosize | B23: min_bed_depth | C23: 2.4 | D23: feet | E23: Guidance: practical bed depths range from 30 inches to 6 ft.
A24: Maximum bed depth for autosize | B24: max_bed_depth | C24: 6 | D24: feet
A25: Volume Tolerance, vertical vessels <1 mgd | B25: vol_tol_vert_small | C25: 0.5 | E25: Used to check size compatibility of sepecified volume with required volume
A26: Volume Tolerance, vertical vessels >1 mgd | B26: vol_tol_vert_med | C26: 0.4
A27: Volume Tolerance, horizontal vessels | B27: vol_tol_horiz | C27: 0.4
A29: Pumping
A30: Safety factor for pumps | B30: pump_safety_factor | C30: 0.25
A31: Safety factor for tetrachloroferrate mixing equipment | B31: FeCl4_safety_factor | C31: 0.5 | E31: To guarantee preparation of regenerant can be completed in the interval between regenerations
A32: Redundant booster pumps | B32: NRD_pumps | C32: 0 | D32: pumps | E32: Multiple pump approach eliminates need for redundant pumps.
A33: Redundant backwash pumps | B33: NRD_back_pumps | C33: 1 | D33: pump
A34: Redundant regenerant pumps | B34: NRD_regen_pumps | C34: 1 | D34: pump
A35: Redundant pumps for regenerant mixing (FeCl4 only) | B35: NRD_mix_pumps | C35: 1 | D35: pump
A36: Redundant pumps for acid rinse (FeCl4 only) | B36: NRD_rinse_pumps | C36: 1 | D36: pump
A37: Number of redundant polymer metering pumps | B37: NRD_cm_pump | C37: 1 | D37: pumps
A38: Redundant pumps for pH adjustment | B38: NRD_pH_pumps | C38: 1 | D38: pump
A39: Minimum chemical feed pump size | B39: min_chem_flow | C39: 0.13 | D39: gph | E39: Metering pumps will be designed to meet this minimum
A41: Backwash and Regeneration
A42: Backwash loading rate | B42: h2oflush_backwash_rate | C42: 3 | D42: gpm/square ft | E42: 1-5 gpm/square ft
A43: Backwash time | B43: backwash_time | C43: 12 | D43: minutes | E43: 10 to 15 minutes
A44: Backwash frequency outside of regeneration/initial rinse | B44: add_backwash_freq | D44: days | E44: Leave blank to assume backwash occurs only at regneration/resin replacement (initial rinse), enter a value to incorporate additional, out-of-cycle backwashes
A45: Water rinse loading rate | B45: rinse_rate | C45: 3 | D45: gpm/square ft | E45: Assumes same as backwash rate
A46: Regenerant reuse | B46: regen_reuse | C46: 0 | D46: times | E46: With brine storage/mixing tanks, brine may be reused up to 25 times. Cannot reuse brine with salt saturator as the delivery method -- additional tanks would be required. No data available on reuse of tetrachloroferrate regenerant.
A47: Resin life | B47: resin_life | C47: 7 | D47: years | E47: Even when regenerated, media eventually will reach permanent exhaustion.
A48: Saturated brine concentration | B48: brine_conc_sat | C48: 3.1 | D48: lb/gal
A49: Salt density | B49: salt_density | C49: 72 | D49: lbs/ft3 | E49: For calculating storage footprint
A50: Hydrochloric acid weight percent as delivered | B50: HCl_pct | C50: 0.36
A51: Hydrochloric acid molecular weight | B51: HCl_mw | C51: 36.5 | D51: g/mol
A52: Ferric chloride molecular weight | B52: FeCl3_mw | C52: 162.21 | D52: g/mol
A53: Ferric chloride bulk density | B53: FeCl3_dens | C53: 43 | D53: lbs/ft3
A54: Chemical storage height | B54: storage_height | C54: 10 | D54: ft
A55: Days of chemical storage | B55: cstore_days | C55: 30 | D55: days | E55: Applies to regenerant storage and caustic for pH adjustment
A56: Include mixers for chemical tanks | B56: include_cmix | C56: 0 | D56: <--- enter 1 for yes, 0 for no
A57: Chemical tank mixer horsepower | B57: cmix_hp_per | C57: 0.25 | D57: hp per 1,000 gal
A58: Minimum chemical tank mixer horsepower | B58: min_cmix_hp | C58: =1/3 -> 0.3333333333 | D58: hp
A59: Mixer size for regenerant tanks | B59: mixer_size | C59: 1 | D59: hp
A60: Smallest size of salt saturator | B60: min_saltbox | C60: 5 | D60: tons | E60: The smallest size for which costs are available. Used to determine whether a system will store 1 month, 1 week, or 1 day of salt in the saturators.
A61: Annual resin loss | B61: resin_loss_annual | C61: 0.045 | D61: percent/year | E61: Assume 4 to 5%
A63: pH Adjustment
A64: Treated water pH | B64: pHo | C64: 7 | D64: SU | E64: Removal of carbonates can lower pH and result in red water problems in older homes with galvanized steel pipes
A65: Desired treated water pH | B65: pHf | C65: 8.2 | D65: SU
A66: Desired treated water alkalinity as CaCO3 | B66: alk_I | C66: 25 | D66: ppm
A67: Influent water total dissolved solids | B67: TDS_I | C67: 200 | D67: mg/L
A68: Influent water temperature | B68: t_I | C68: 10 | D68: degrees centigrade
A69: Sodium hydroxide weight percent as delivered | B69: NaOH_pct | C69: 0.5
A70: Include a separate day tank if daily volume is x or greater | B70: day_tank_needed | C70: 5 | D70: gal
A72: Secondary Containment Requirements
A73: Include secondary containment | B73: include_sec_cont | C73: 1 | D73: <--- enter 1 for yes, 0 for no
A74: Volume required as a percentage of the largest tank | B74: sec_cont_pct_of_largest | C74: 1.1
A75: Volume required as a percentage of total storage | B75: sec_cont_pct_of_total | C75: 0.1
A76: Additional freeboard | B76: sec_cont_freeboard | C76: 6 | D76: inches | E76: Additional freeboard is typically required to contain precipitation when storage is outside; we also include freeboard indoors to ensure a minimum reasonable curb height
A77: Maximum curb thickness | B77: sec_cont_max_thick | C77: 1 | D77: foot | E77: Calculations assume thickness equal to height, up to this maximum
A78: Chemical resistant coating coverage | B78: sec_cont_coating_cvg | C78: 125 | D78: square feet/gallon
A80: Cartridge Filters for Pretreatment
A81: Include cartridge filters | B81: include_cart | C81: 1 | D81: <-- enter 1 for yes, 0 for no
A82: Minimum number of cartridge filters above 1 MGD | B82: min_cart | C82: 2 | D82: units | E82: For small systems (<1 MGD), this limit is ignored.
A84: Number of redundant cartridge filters | B84: init_NRD_cart | C84: 1
A85: Additional redundant cartridge filter per x MGD inflow | B85: addl_redund_cart_per_flow | C85: 50 | D85: MGD
A86: Access space for cartridge filters | B86: space_other_equip | C86: 3 | D86: feet | E86: Provide a minimum of 3 ft (1 m) of clear space around each item of equipment (American Water Works Association and American Society of Civil Engineers. Water Treatment Plant Design. Third Edition. New York: McGraw Hill, 1998. Pp. 695).
A88: Valves and Instrumentation
A89: Number of manual valves on influent and effluent line | B89: tot_man_valves | C89: 2 | D89: valves
A90: Number of manual valves on process line per vessel | B90: proc_man_vessel | C90: 1 | D90: valve/vessel | E90: For filter to waste
A92: Number of check valves on backwash line per backwash pump | B92: back_chv_pump | C92: 1 | D92: valves/pump
A93: Number of check valves on regenerant line per regenerant pump | B93: brine_chv_pump | C93: 1 | D93: valves/pump | E93: Applies only with tetrachlorferrate regeneration
A94: Number of check valves on acid line per metering pump | B94: acid_chv_pump | C94: 1 | D94: valves/pump | E94: Applies only with tetrachlorferrate regeneration
A95: Number of check valves on caustic line per metering pump | B95: caustic_chv_pump | C95: 1 | D95: valves/pump | E95: Applies only with pH adjustment
A96: Number of check valves on polymer line per metering pump | B96: polymer_chv_pump | C96: 1 | D96: valves/pump | E96: Applies only with polymer addition to residuals
A97: Number of check valves on influent line | B97: tot_in_chv | C97: 2 | D97: valves | E97: At both inlet and outlet in this technology
A98: Number of check valves on bypass line | B98: tot_bp_chv | C98: 1 | D98: valves
A99: For small systems | B99: tot_bp_chv_small | C99: 0 | D99: valves
A101: Flow meters for influent and effluent line | B101: tot_fm_in | C101: 1 | D101: units | E101: Flow meter assemblies include pressure gauges
A102: Flow meters for process line per vessel | B102: fm_proc | C102: 0 | D102: units/vessel
A103: Flow meters for backwash line | B103: fm_back | C103: 1 | D103: units | E103: At backwash discharge outlet
A104: Level switch/alarms per vessel | B104: level_switch | C104: 0 | D104: units/vessel
A105: For small systems | B105: level_switch_small | C105: 0 | D105: units/vessel
A106: High/Low alarms per backwash tank | B106: alarm_back | C106: 1 | D106: units/tank
A107: High/Low alarms per regenerant mixing tank | B107: alarm_brine | C107: 1 | D107: units/tank | E107: Salt saturators come equipped with level alarms, so only added if mixing tanks are used.
A108: High/Low alarms per HCl tank | B108: alarm_acid | C108: 1 | D108: units/tank
A109: High/Low alarms per NaOH tank | B109: alarm_caustic | C109: 1 | D109: units/tank
A110: ORP sensors | B110: ORP_sensor | C110: 0 | D110: units
A111: pH meters for systems without corrosion control | B111: pH_nocorr | C111: 0 | D111: units
A112: pH meters for systems with corrosion control | B112: pH_corr | C112: 2 | D112: units
A113: Temperature meters | B113: temp_meters | C113: 1 | D113: units | E113: One for influent line, one for effluent line
A114: For small systems | B114: temp_meters_small | C114: 0 | D114: units
A115: Turbidity meters per vessel | B115: turb_tank | C115: 0 | D115: units/vessel
A116: For small systems | B116: turb_tank_small | C116: 0 | D116: units/vessel
A117: Additional turbididy meters | B117: add_turb | C117: 1 | D117: units | E117: One at backwash discharge outlet
A118: For small systems | B118: add_turb_small | C118: 0 | D118: units
A119: Conductivity meters per vessel | B119: cond_tank | C119: 0 | D119: units/vessel
A120: Additional conductivity meters | B120: add_cond | C120: 0 | D120: units
A121: Head loss sensors per vessel | B121: head_tank | C121: 1 | D121: units/vessel
A122: For small systems | B122: head_tank_small | C122: 0 | D122: units/vessel
A123: Head loss sensors per cartridge filter | B123: headloss_cart | C123: 1 | D123: units/filter
A124: Sampling ports per vessel | B124: ports_tank | C124: 1 | D124: units/vessel
A125: Sampling ports for bypass line | B125: ports_bp | C125: 1 | D125: units
A126: Additional sampling ports | B126: add_ports | C126: 3 | D126: units | E126: One for influent line, one for effluent line, one on residual side of backwash line
A127: Number of electrical enclosures | B127: elec_encl | C127: 0 | D127: units | E127: Required only for technologies with significant electric-powered equipment outside a building.
A129: System Controls
A130: Controllers are used only under full automation
A131: To change the degree of automation, change the number of controllers to zero for the appropriate items.
A132: Drive controllers per booster pump | B132: S_booster_pump | C132: 1 | D132: units
A133: Drive controllers per backwash pump | B133: S_back_pump | C133: 1 | D133: units
A134: Drive controllers per eductor | B134: S_eductor | C134: 1 | D134: units
A135: Drive controllers per regenerant mixer | B135: S_mixer | C135: 1 | D135: units
A136: Drive controllers per regenerant pump | B136: S_regen_pump | C136: 1 | D136: units
A137: Drive controllers per metering pump | B137: S_cm_pump | C137: 1 | D137: units
A138: Drive controllers per chemical feeder | B138: S_chem_feed | C138: 1 | D138: units
A140: Number of CPUs | B140: plc_cpu | C140: 2 | D140: units | E140: One CPU is needed to run the local and expansion bases and modules (max 8192 I/O); using two to provide redundancy
A141: Ethernet modules | B141: plc_ethernet | C141: 2 | D141: units | E141: One ethernet module is needed; using two to provide redundancy
A142: Operator interfaces | B142: plc_interface | C142: 2 | D142: units | E142: Two to provide redundancy in the event of SCADA node failure
A143: UPSs | B143: ups | C143: 1 | D143: unit | E143: UPS protects the PLC system from undesired outages and surges that can adversely affect the performance of the PLC unit
A144: Computer workstations per x operators | B144: workstation_ratio | C144: 1 | D144: operator/workstation | E144: Minimum will always be one, but larger systems will have multiple workstations to control the system
A145: Number of shifts | B145: shifts_day | C145: 3 | D145: shifts/day | E145: Used to determine number of workstations
A146: Printers per x computer workstations | B146: printer_ratio | C146: 4 | D146: workstations/printer | E146: Minimum will always be one, but larger systems will have multiple printers
A148: Structure/Floorplan
A149: Maximum access space per vessel or tank for custom designed systems | B149: max_space_vessels_cust | C149: 6 | D149: feet | E149: This is the MAXIMUM; space between vessels and tanks defaults to vessel or tank diameter, up to this maximum. Maximum provides space for sandblasting and painting for large vessels (5-8 feet per Richard E. Hubel, Peter Keenan, American Water Works Service Company).
A150: Maximum access space per vessel or tank for pre-engineered systems | B150: max_space_vessels_pre | C150: 1 | D150: feet | E150: Assumes skid-mounting with minimal access space
A151: Access space per pump for custom designed systems | B151: space_pumps_cust | C151: 4 | D151: feet | E151: Provide a minimum of 3 ft (1 m) of clear space around each item of equipment (American Water Works Association and American Society of Civil Engineers. Water Treatment Plant Design. Third Edition. New York: McGraw Hill, 1998. Pp. 695).
A152: Access space per pump for pre-engineered packages | B152: space_pumps_pre | C152: 0 | D152: feet | E152: Pumps on skid for pre-engineered packages, no additional access space
A154: Non fire Buffer for buildings | B154: non_fire_buffer | C154: 10 | D154: feet
A155: Fire Buffer for Buildings | B155: fire_buffer | C155: 40 | D155: feet
A156: Top and bottom dished vessel sections height and access space | B156: Top_bottom_Vessel_space | C156: 6 | D156: feet | E156: This is used to determine the building height for purposes of heating and cooling cost.
A157: Office space per employee | B157: space_office | C157: 100 | D157: square ft
A158: Office space per employee | B158: space_office_small | C158: 0 | D158: square ft | E158: Small systems do not require office space
A159: Concrete pad thickness | B159: pad_thick | C159: =6/12 -> 0.5 | D159: feet
A160: Concrete pad thickness for small systems | B160: pad_thick_small | C160: =4/12 -> 0.3333333333 | D160: feet
A161: Clearance space beneath the ceiling | B161: ceiling_clearance | C161: 3 | D161: feet | E161: Minimum space between the tops of storage tanks and the ceiling
A162: Additional building after… | B162: add_2nd_building | C162: 10000 | D162: sf
A164: Residuals Discharge
A165: Add coagulant to holding tank? | B165: coag_res | C165: 0 | D165: <-- 1 for yes, 0 for no | E165: For additional TSS removal, if desired
A166: Type of coagulant added | B166: coag_type | C166: 1 | D166: <-- 1 for polymer, 2 for ferric chloride, 3 for both polymer & ferric chloride
A167: Minimum settling time when coagulant is used | B167: res_coag_settle_time | C167: 90 | D167: minutes | E167: When coagulant is used, holding tanks will be sized so that residuals are present for at least this long. Based on 90-120 minute settling time in sedimentation basins (Water Treatment Plant Design, 4th ed.)
A168: Polymer dosage | B168: polymer_dose | C168: 100 | D168: mg/L
A169: Polymer solution density | B169: polymer_density | C169: 9.6 | D169: lb/gal
A170: Polymer sludge production factor | B170: polymer_spf | C170: 1 | D170: lbs accumulated per pound added
A171: Ferric chloride dosage | B171: coag_dose | C171: 10 | D171: mg/L
A172: Ferric chloride bulk density | B172: coag_density | C172: 43 | D172: lb/ft3 | E172: For chemical storage area calculations
A173: Ferric chloride sludge production factor | B173: coag_spf | C173: 0.99 | D173: lbs accumulated per pound added
A174: Holding tank/basin solids density | B174: ht_solids_density | C174: 25 | D174: lb/ft3
A175: Holding tank/basin suspended solids removal efficiency without coagulant | B175: htank_TSSrem | C175: 0 | E175: Cartridge filtration should result in low solids accumulation on resin, thus no settling without coagulant addition
A176: Holding tank/basin suspended solids removal efficiency with coagulant | B176: coag_TSSrem | C176: 0.5
A177: Clean holding tanks/basins when solids accumulation =x% of capacity | B177: htank_clean_pct | C177: 0.1
A178: Holding tank/basin capacity factor | B178: res_cap_factor | C178: 2 | E178: Holding tanks are designed with a capacity of one generation event, multiplied by this safety factor. This multiplier accounts for less than perfect staggering of generation events and provides for solids accumulation (i.e., it provides excess capacity).
A179: Default number of residuals basins | B179: hbasins_default | C179: 1 | E179: This assumption applies if concrete basins are used. Additonal basins are used, however, if needed to achieve minimum holding time. If tanks are used, number calculated on design sheet.
A180: Holding basin depth to volume ratio | B180: holding_ratio | C180: =3/5 -> 0.6 | E180: This assumption used only if concrete basins are used.
A181: Holding basin freeboard | B181: holding_freeboard | C181: 3 | D181: feet | E181: This assumption used only if concrete basins are used.
A182: Overexcavation for storage basins | B182: overexcavate | C182: 4 | D182: ft | E182: 2 feet each side in each dimension. This assumption used only if concrete basins are used.
A183: Concrete thickness for holding basins | B183: conc_thick | C183: 1 | D183: ft | E183: This assumption used only if concrete basins are used.
A184: Holding tank mixer horsepower (if coagulant is used) | B184: hmix_hp_per | C184: 0.25 | D184: hp per 1,000 gallons
A185: Minimum holding tank mixer horsepower | B185: min_hmix_hp | C185: =1/3 -> 0.3333333333 | D185: hp
A186: Residual solids transfer method | B186: res_transfer_method | C186: 3 | D186: <-- 1 for slurry pumps, 2 for eductors, 3 for manual trabsfer
A187: Time to empty holding tank | B187: transfer_time | C187: 4 | D187: hrs | E187: Target for systems using mechanical transfer. For systems with manual transfer, calcuated based on solids volume.
A188: Minimum residuals pipe diameter | B188: min_res_pipe_size | C188: 1 | D188: in. diam.
A189: Residual solids storage height (for drying pad) | B189: solids_storage_height | C189: 2 | D189: ft
A190: Redundant residuals pumps | B190: NRD_res_pump | C190: 1 | D190: units | E190: Applies only if pumping is included
A191: Distance to discharge point or evaporation pond | B191: add_res_pipe_length | C191: 40 | D191: ft
A192: Number of check valves on residuals line per residuals pump | B192: res_chv_pump | C192: 1 | D192: valves/pump
A193: Number of check valves on residuals line if no pumping | B193: res_chv_no_pump | C193: 1 | D193: valves
A194: Drive controllers per residuals pump | B194: S_res_pump | C194: 1
A195: Drive controllers per coagulant feeder | B195: S_feeder | C195: 1
A196: Flow meters for residuals line | B196: tot_fm_res | C196: 1 | D196: units
A197: High/Low alarms per holding tank | B197: alarm_res | C197: 1 | D197: units/tank
A198: TSS in system influent | B198: influent_TSS | C198: 2 | D198: ppm | E198: This is INFLUENT TSS. Backwash TSS is calculated and will be higher, as TSS removed are concentrated.
A199: TSS in treated water | B199: effluent_TSS | C199: 0.5 | D199: ppm
A200: POTW rate structure | B200: POTW_rate_type | C200: 1 | D200: <-- 1 for national average rate, 2 for a specific rate structure
A201: Apply POTW discharge base charge (i.e., $/month) | B201: POTW_base_fee | C201: 1 | D201: <-- 1 for yes, 2 for no
A202: Apply POTW discharge volume charge (i.e., $/1000 gallons) | B202: POTW_volume_fee | C202: 1 | D202: <-- 1 for yes, 2 for no
A203: Apply POTW discharge TSS charge (i.e., $/lb of TSS over limit below) | B203: POTW_TSS_fee | C203: 1 | D203: <-- 1 for yes, 2 for no
A204: POTW TSS discharge limit (over which fee would be imposed) | B204: POTW_TSS_limit | C204: 250 | D204: ppm | E204: Most common limit for cities with a limit.
A205: Disposal method for non-hazardous secondary solids | B205: solids_method | C205: 1 | D205: <-- 1 for landfill, 2 for land application | E205: Ignored if solids are hazardous or radioactive
A206: Maximum hazardous waste shipment size | B206: max_haz_ship | C206: 18 | D206: tons
A207: Maximum liquid hazardous waste shipment size | B207: max_lhaz_ship | C207: 6000 | D207: gal
A208: Maximum radioactive (non-hazardous) waste shipment size | B208: max_rad_ship | C208: 18 | D208: tons
A209: Maximum radioactive hazardous waste shipment size | B209: max_hazrad_ship | C209: 18 | D209: tons
A210: Miles to non-hazardous solid waste disposal site | B210: non_haz_miles | C210: 10 | D210: miles
A211: Miles to hazardous solid waste disposal site | B211: haz_miles | C211: 200 | D211: miles
A212: Miles to radioactive (non-hazardous) waste disposal site | B212: rad_miles | C212: 700 | D212: miles
A213: Miles to radioactive hazardous waste disposal site | B213: hazrad_miles | C213: 700 | D213: miles
A215: Average annual pan evaporation rate | B215: pan_evap | C215: 180 | D215: cm/year | E215: Reflects an arid climate. If evaporation ponds are used, climate assumptions on O&M assumptions page should also be changed to reflect an arid climate.
A216: Evaporation ratio | B216: evap_ratio | C216: 0.7 | E216: A safety factor to account for conversion of pan to lake evaporation rate and effect of salinity
A217: Average annual precipitation | B217: precip | C217: 70 | D217: cm/year | E217: Reflects an arid climate. If evaporation ponds are used, climate assumptions on O&M assumptions page should also be changed to reflect an arid climate.
... 94 more rows

Sheet O&M Assumptions
A1: Default O&M Assumptions
A2: Users may change any of the cells in the Value column
A4: Assumption | B4: Range Name | C4: Value | D4: Units | E4: Guidance
A5: Media Disposal
A6: Alternate media disposal cost (including transportation) | B6: alt_media_disp | C6: =15*2000/media_density -> 697.6744186 | D6: /ton | E6: Leave blank to use cl.xls disposal cost. Cost shown here is for incineration of perchlorate laden media. From Frank Boodoo, Purolite, 12/7/04.
A8: Materials
A9: Cost for parts & maintenance for booster pumps | B9: booster_pump_maintenance | C9: 0.01 | D9: of installed cost | E9: For calculating cost of actual maintenance materials; not to be confused with depreciation. Initial proposed estimate of 5% seems high (Richard E. Hubel, Peter Keenan, American Water Works Service Company, Inc)
A10: Life of cartridge filters | B10: cart_life | C10: 5 | D10: months | E10: US EPA, Draft of "Design and Cost Estimates for Advanced Water Treatment Technologies", December 2000.
A12: Labor
A13: Labor hours per cartridge filter | B13: hrs_filter | C13: 12 | D13: hrs/unit/yr
A14: Mangerial LOE as a percent of average technical labor | B14: Manager_percent | C14: 0.1 | D14: fraction
A15: Administrative LOE as a percent of average technical labor | B15: Clerical_percent | C15: 0.1 | D15: fraction
A17: Operating LOE assumptions
A18: Minutes per instrument per day | B18: uloe_inst | C18: 5 | D18: min/day | E18: For manual systems only
A19: Recording operating paramenters for automated systems | B19: uloe_inst_auto | C19: 5 | D19: min/day | E19: For semiautomated and automated systems
A20: Minutes per pump per day | B20: uloe_pump | C20: 5 | D20: min/day | E20: For manual and semiautomated systems
A21: Minutes per valve per week | B21: uloe_valve | C21: 5 | D21: min/week | E21: For manual and semiautomated systems
A22: Minutes per 100 sf per day | B22: uloe_fp | C22: 1 | D22: min/100 sf/day
A23: Minutes per regeneration/backwash for automated systems | B23: uloe_autoregen | C23: 10 | D23: min/event | E23: Manual and semiautomated systems use actual regeneration/backwash time
A24: Hours per resin changeout | B24: uloe_throwaway | C24: =8/(20*27) -> 0.01481481481 | D24: hours/cubic foot | E24: Based on 20 cubic yards per day, applied separately to removal and replacement.
A26: Maintenance LOE assumptions
A27: For instruments (includes calibration) | B27: uloe_inst_maint | C27: 10 | D27: min/month
A28: For pumps | B28: uloe_pump_maint | C28: 30.25 | D28: hours/year | E28: Based on vendor recommended maintenance activities; applied to large, frequently operated pumps only
A29: For valves | B29: uloe_valve_maint | C29: 5 | D29: min/year | E29: Applied to main process valves only
A30: For chemical supply systems | B30: uloe_chem_maint | C30: 120 | D30: min/month
A32: Energy
A33: Pump head for booster pumps | B33: booster_pump_head | C33: 25 | D33: psi
A34: Residuals pump head | B34: res_pump_psi | C34: 25 | D34: psi
A35: Pump efficiency for booster pumps | B35: booster_pump_efficiency | C35: 0.75
A36: Pump head for backwash pumps | B36: backwash_pump_head | C36: 14.7 | D36: psi
A38: Lighting and HVAC
A39: Lighting power per sf, low-quality buildings and sheds | B39: lighting_power_low | C39: 1 | D39: W/sf | E39: 1, 2, and 4 W/sf are the assumptions used for building capital costs.
A40: Lighting power per sf, mid-quality buildings | B40: lighting_power_mid | C40: 2 | D40: W/sf
A41: Lighting power per sf, high-quality buildings | B41: lighting_power_high | C41: 4 | D41: W/sf
A43: Ventilation air change rate for contactor | B43: Air_changes_contactor | C43: 3 | D43: air changes/hr
A44: Ventilation air change rate for pump room | B44: Air_changes_pump | C44: 20 | D44: air changes/hr | E44: Could be lower (annual average 3 changes/hr) in a northern climate
A45: Ventilation air change rate for chemical storage | B45: Air_changes_chem_storage | C45: 2 | D45: air changes/hr
A46: Ventilation air change rate for offices | B46: Air_changes_office | C46: 2 | D46: air changes/hr
A47: Pressure drop across the fan | B47: Fan_pressure_drop | C47: 0.25 | D47: lbs/ft2
A48: Number of mechanical ventilation days per year first building (small system) | B48: fan_days_build1_small | C48: 90 | D48: days/year | E48: Number of days per year where natural ventilation is applicable cannot be greater than 365 days
A49: Number of mechanical ventilation days per year 2nd building (small system) | B49: fan_days_build2_small | C49: 90 | D49: days/year | E49: For small systems (<1 MGD)
A50: Number of mechanical ventilation days per year first building (medium system) | B50: fan_days_build1_medium | C50: 120 | D50: days/year | E50: For medium systems (1 - 10 MGD)
A51: Number of mechanical ventilation days per year 2nd building (medium system) | B51: fan_days_build2_medium | C51: 120 | D51: days/year
A52: Number of mechanical ventilation days per year first building (large system) | B52: fan_days_build1_large | C52: 185 | D52: days/year | E52: For large systems (> 10 MGD)
A53: Number of mechanical ventilation days per year 2nd building (large system) | B53: fan_days_build2_large | C53: 185 | D53: days/year
A55: R-value for walls | B55: R_wall | C55: 13 | D55: hr-sf-degF/BTU | E55: Assumes standard building materials. If higher R-value materials are desired, user may also need to adjust the cost of building materials in cl.xls
A56: R-value for ceilings | B56: R_ceiling | C56: 38 | D56: hr-sf-degF/BTU | E56: Assumes standard building materials. If higher R-value materials are desired, user may also need to adjust the cost of building materials in cl.xls
A57: Annual heating degree days | B57: heat_DD | C57: 4923 | D57: degree days | E57: Heating and cooling assumptions should be consistent with one another. Assumed values are for a climate that results in a total energy usage for heating and cooling equal to the national median.
A58: Annual cooling degree days | B58: cool_DD | C58: 1697 | D58: degree days | E58: Heating and cooling assumptions should be consistent with one another. Assumed values are for a climate that results in a total energy usage for heating and cooling equal to the national median.
A59: Heating ventilation/infiltration load | B59: heat_viload | C59: 168679 | D59: BTU/cfm | E59: Heating and cooling assumptions should be consistent with one another. Assumed values are for a climate that results in a total energy usage for heating and cooling equal to the national median.
A60: Cooling ventilation/infiltration load | B60: cool_viload | C60: 51771 | D60: BTU/cfm | E60: Heating and cooling assumptions should be consistent with one another. Assumed values are for a climate that results in a total energy usage for heating and cooling equal to the national median.
A61: Electric resistance heating efficiency | B61: resist_eff | C61: 0.98 | E61: See Appendix E
A62: Heat pump heating coefficient of performance | B62: COP | C62: 3.2 | E62: See Appendix E
A63: Natural gas non-condensing furnace efficiency | B63: gas_non_eff | C63: 0.8 | E63: See Appendix E
A64: Natural gas condensing furnace efficiency | B64: gas_eff | C64: 0.95 | E64: See Appendix E
A65: Standard oil furnace efficiency | B65: diesel_non_eff | C65: 0.78 | E65: See Appendix E
A66: Mid-efficiency oil furnace efficiency | B66: diesel_eff | C66: 0.85 | E66: See Appendix E
A67: Air conditioning EER | B67: EER | C67: 11 | D67: Whr/BTU | E67: See Appendix E
A68: Heat pump cooling mode EER | B68: hp_EER | C68: 10.1 | D68: Whr/BTU | E68: See Appendix E
A70: Heating Oil Heat Content | B70: diesel_heat_content | C70: 139000 | D70: BTU/gal | E70: U.S. DOE, Energy Information Administration.

Sheet Indirect Assumptions
A1: Default Assumptions for Indirect and Add-On Costs
A2: Users may change any of the cells in the Value column
A4: Assumption | B4: Range Name | C4: Value | D4: Units | E4: Guidance
A5: Concrete Pad
A6: Include concrete pad in total capital cost? | B6: include_pad | C6: 1 | D6: <--- enter 1 for yes, 0 for no
A8: Permits
A9: Include permit costs? | B9: include_permits | C9: 1 | D9: <--- enter 1 for yes, 0 for no
A10: Always include NEPA compliance costs? | B10: include_NEPA | C10: 0 | D10: <--- enter 1 for yes, 2 for no | E10: Default of 0 means NEPA compliance is included in the high component cost estimate only. Selecting 1 means NEPA compliance will be included in all estimates. Selecting 0 means NEPA compliance will never be included
A11: HCl strength to trigger RMP requirement | B11: HCl_strength_RMP | C11: 0.37
A12: HCl quantity to trigger RMP requirement | B12: HCl_quant_RMP | C12: 15000 | D12: lbs
A14: Pilot Study
A15: Include pilot study costs? | B15: include_pilot | C15: 1 | D15: <--- enter 1 for yes, 0 for no
A17: Mobilization and Demobilization
A18: Mobilization percentage for small systems | B18: mob_pct_small | C18: 0 | D18: of direct capital cost | E18: Typically 2-5% of the estimated construction cost. Enter 0% to exclude. Excluded by default for pre-engineered packages
A19: Mobilization percentage for medium systems | B19: mob_pct_medium | C19: 0.04 | D19: of direct capital cost
A20: Mobilization percentage for large systems | B20: mob_pct_large | C20: 0.02 | D20: of direct capital cost
A22: Architectural Fees for Treatment Building
A23: Include architectural fee? | B23: include_arch | C23: 1 | D23: <--- enter 1 for yes, 0 for no | E23: Must be added to building cost. Change for special considerations. Includes structural, mechanical, and electrical engineering for building only.
A24: Include architectural fee for small systems? | B24: include_arch_small | C24: 0 | D24: <--- enter 1 for yes, 0 for no
A26: Installation, Transportatation, and O&P
A27: Installation, Transportatation, and O&P percentage | B27: inst_pct | C27: 0 | D27: of direct capital cost | E27: Included in line item unit costs. Add a percentage for special considerations such as a remote site or high cost location.
A29: Sitework
A30: Include sitework costs? | B30: include_sitework | C30: 1 | D30: <--- enter 1 for yes, 0 for no
A32: Standby Power
A33: Include standby power costs? | B33: include_standby | C33: 1 | D33: <--- enter 1 for yes, 0 for no
A34: Include standby power costs for small systems? | B34: include_standby_small | C34: 0 | D34: <--- enter 1 for yes, 0 for no
A35: Design safety factor for standby power | B35: std_safety_factor | C35: 0 | E35: Default 0%. Apply a percentage to increase standby power requirements.
A36: Include heating in standby power | B36: need_heat | C36: 0 | D36: <--- enter 1 for yes, 0 for no | E36: If a system uses gas or diesel heat, heating will not be included, regardless of this assumption.
A37: Include cooling in standby power | B37: need_cool | C37: 0 | D37: <--- enter 1 for yes, 0 for no | E37: If both heating and cooling are included, standby power requirements will be based on the maximum of the two.
A38: Minimum standby power generator size | B38: min_standby | C38: 10 | D38: kW | E38: Minimum size for full standby generators
A40: Geotechnical
A41: Include geotechnical costs for low cost systems? | B41: include_geo_low | C41: 0 | D41: <--- enter 1 for yes, 0 for no | E41: Note: geotechnical is always included when evaporation ponds or holding basins are used, regardless of the numbers entered here, because of excavation
A42: Include geotechnical costs for medium cost systems? | B42: include_geo_medium | C42: 0 | D42: <--- enter 1 for yes, 0 for no
A43: Include geotechnical costs for high cost systems? | B43: include_geo_high | C43: 1 | D43: <--- enter 1 for yes, 0 for no
A44: Test pit length | B44: pit_length | C44: 4 | D44: feet
A45: Test pit width | B45: pit_width | C45: 4 | D45: feet
A46: Test pit depth | B46: pit_depth | C46: 7 | D46: feet
A47: Borehole depth without basins | B47: bore_depth_nobasin | C47: 10 | D47: feet
A48: Borehole depth for shallow basins | B48: bore_depth_min | C48: 25 | D48: feet
A49: Borehole depth for deep basins | B49: bore_depth_max | C49: 50 | D49: feet
A50: Basin excavation depth above which deeper boreholes are needed | B50: deep_bore_need | C50: 20 | D50: feet | E50: Systems with deep basins require deeper investigation
A51: Technology footprint above which boreholes are needed | B51: bore_need | C51: 2000 | D51: square feet | E51: Small system geotechnical investigation can be completed with test pits, larger systems and those with basins require boreholes
A52: Minimum number of boreholes | B52: min_holes | C52: 4
A53: Borehole needed every x square feet | B53: hole_per_sf | C53: 1000 | D53: square feet
A54: Boreholes per job | B54: hole_per_job | C54: 24 | D54: boreholes/job
A55: Linear feet bored per day | B55: hole_per_day | C55: 55.5 | D55: l.f./day | E55: RS Means Costworks 2001
A57: Yard Piping
A58: Include yard piping costs? | B58: include_yardpipe | C58: 1 | D58: <--- enter 1 for yes, 0 for no
A59: Frost depth | B59: frost | C59: 38 | D59: inches | E59: Should be consistent with (reflect same climate as) heating and cooling assumptions on O&M assumptions page. Assumptions are for St. Louis, Missouri.
A60: Minimum trench depth to top of pipe | B60: min_trench_depth | C60: 36 | D60: inches | E60: US Army Corps of Engineers recommended minimum cover for distribution pipes of 2.5 ft in grassed areas, 3 ft if buried under pavement or roadways but not less than frost penetration depth (USACOE 1984)
A61: Soil density | B61: soil_dens | C61: 97 | D61: lb/cubic ft. | E61: Based on soil density of loamy sand (1.55 gm/cc)
A62: Coefficient of passive pressure | B62: Coeff_Kp | C62: 3
A63: Reduction factor | B63: Reduction | C63: 0.467
A64: Bedding depth below pipe | B64: bedding_depth | C64: 6 | D64: inches
A65: Bedding depth surrounding the pipe | B65: bedding_pct | C65: 0.25 | D65: of pipe diameter
A66: Trench inside angle | B66: trench_angle | C66: =RADIANS(45) -> 0.7853981634 | D66: radians
A67: Pipe length from water source to the boundary of the 10 foot buffer | B67: yard_in | C67: 0 | D67: feet | E67: Use if technology is first step in treatment process
A68: Pipe length the boundary of the 10 foot buffer to distribution network | B68: yard_out | C68: 0 | D68: feet | E68: Use if technology is last step in treatment process
A70: Electrical (including yard wiring)
A71: Electrical percentage | B71: elect_pct | C71: 0.1 | D71: of direct cost
A73: Instrumentation and Control
A74: Instrumentation and control percentage | B74: i_c_pct | C74: 0 | D74: of direct cost | E74: Included as a direct cost line item.
A76: Contingency
A77: Include contingency costs for low cost systems? | B77: include_conting_low | C77: 0 | D77: <--- enter 1 for yes, 0 for no
A78: Include contingency costs for medium cost systems? | B78: include_conting_medium | C78: 0 | D78: <--- enter 1 for yes, 0 for no
A79: Include contingency costs for high cost systems? | B79: include_conting_high | C79: 1 | D79: <--- enter 1 for yes, 0 for no
A80: Technology complexity factor | B80: complexity | C80: 1.5 | E80: Technology-specific factor. See Appendices for details. Low complexity = 0.5; Average complexity = 1.0; High complexity = 1.5; Very high complexity = 2.0.
A82: Process Engineering
A83: Engineering percentage for small systems | B83: eng_pct_small | C83: 0.2 | D83: of direct capital cost | E83: Enter 0% to exclude.
A84: Engineering percentage for medium systems | B84: eng_pct_medium | C84: 0.12 | D84: of direct capital cost
A85: Engineering percentage for large systems | B85: eng_pct_large | C85: 0.08 | D85: of direct capital cost
A87: Miscellaneous Allowance
A88: Miscellaneous allowance percentage | B88: misc_pct | C88: 0.1 | D88: of direct capital cost | E88: Enter 0% to exclude.
A90: Legal, Fiscal, and Administrative
A91: Legal percentage | B91: legal_pct | C91: 0.02 | D91: of direct capital cost | E91: Enter 0% to exclude. Highly site-specific. Can range from 2-5% of equipment, installation, construction, electrical, and standby power. To estimate, add 5% to total estimated construction cost.
A93: Sales Tax
A94: Sales tax percentage | B94: tax_pct | C94: 0 | D94: of direct capital cost | E94: May be exempt if constructed with public funds. May be as high as 7.25% of equipment and construction, with national average 4.75%.
A96: Financing during Construction
A97: Financing percentage | B97: finance_pct | C97: 0.05 | D97: of direct capital cost | E97: Enter 0% to exclude. Typically assumed to be one year's interest on capital cost.
A98: Financing percentage for small systems | B98: finance_pct_small | C98: 0 | D98: of direct capital cost | E98: Small system construction assumed to take less than one year
A100: Construction Management and General Contractor Overhead
A101: Builder's risk insurance percentage | B101: br_ins_pct | C101: 0.0034 | E101: Enter 0% to exclude. 0.34% is national average rate. RSMeans Building Construction Cost Data 2009, reference section R01100-070
A102: Include performance bond cost? | B102: include_bond | C102: 1 | D102: <--- enter 1 for yes, 0 for no
A103: Include construction management cost? | B103: include_cm | C103: 1 | D103: <--- enter 1 for yes, 0 for no
A104: Include construction management cost for pre-engineered packages? | B104: include_cm_pre | C104: 0 | D104: <--- enter 1 for yes, 0 for no
A106: Heating Table (1=include heating in buildings and O&M, 0 = do not include heating)
C107: System Size
A108: Component Level | C108: Small (<1 mgd) | D108: Medium (1-10 mgd) | E108: Large (>10 mgd)
A109: Buildings 500 square feet or greater
A110: low cost | B110: heating_table | C110: 0 | D110: 1 | E110: 1
A111: mid cost | C111: 1 | D111: 1 | E111: 1
A112: high cost | C112: 1 | D112: 1 | E112: 1
A113: Buildings less than 500 ft2 (other than those used for chlorine storage)
A114: low cost | B114: heating_table_shed | C114: 0 | D114: 0 | E114: 1
A115: mid cost | C115: 0 | D115: 0 | E115: 1
A116: high cost | C116: 1 | D116: 1 | E116: 1
A118: Cooling Table (1=include cooling in buildings and O&M, 0 = do not include cooling)
C119: System Size
A120: Cost Level | C120: Small (<1 mgd) | D120: Medium (1-10 mgd) | E120: Large (>10 mgd)
A121: Buildings 500 square feet or greater
A122: low cost | B122: cooling_table | C122: 0 | D122: 0 | E122: 1
A123: mid cost | C123: 0 | D123: 1 | E123: 1
A124: high cost | C124: 1 | D124: 1 | E124: 1
A125: Buildings less than 500 ft2 (other than those used for chlorine storage)
A126: low cost | B126: cooling_table_shed | C126: 0 | D126: 0 | E126: 0
A127: mid cost | C127: 0 | D127: 0 | E127: 0
A128: high cost | C128: 0 | D128: 0 | E128: 0

Sheet Vessel Constraints
A1: Vessel Constraint Calculations
A2: This sheet performs calculations to confirm that the vessel design on the Input page meets engineering constraints
A4: Calculation | B4: Range Name | C4: Value | D4: Units | E4: Guidance
A5: From Inputs
A6: Design Flow | B6: design_flow | C6: =IF(df_units="gpm",(1-bp_pct)*design_flow_I*24*60/1000000,(1-bp_pct)*design_flow_I) -> 75.072 | D6: MGD | E6: From Inputs, less bypass
A7: Average Flow | B7: average_flow | C7: =(1-bp_pct)*IF(af_units="gpm",average_flow_I*24*60/1000000,IF(af_units="fraction of design flow",average_flow_I*design_flow,average_flow_I)) -> 37.536 | D7: MGD | E7: From Inputs, less bypass
A8: Design Flow Rate | B8: design_flow_rate | C8: =design_flow*1000000/(24*60) -> 52133.33333 | D8: gpm | E8: Design flow expressed in gpm
A9: Average Flow Rate | B9: average_flow_rate | C9: =average_flow*1000000/(24*60) -> 26066.66667 | D9: gpm | E9: Average flow expressed in gpm
A10: Bypass Flow Rate (design) | B10: bp_flow_rate | C10: =bp_pct/(1-bp_pct)*design_flow_rate -> 0 | D10: gpm
A11: Resin type chosen | B11: resin_type | C11: 4 | D11: <-- 1 for Strong Base Polyacrylic, 2 for Strong Base Polystyrenic, 3 for Nitrate-selective, 4 for Perchlorate-selective, 5 for alternative user-defined
A12: Theoretical total empty bed contact time (EBCT) | B12: EBCT | C12: =EBCT_I -> 3 | D12: minutes
A13: Minimum number of vessels in series | B13: Num_tanks | C13: =num_tanks_I -> 2 | D13: units
A14: Vessel geometry | B14: tank_geom | C14: =IF(tank_geom_I="horizontal",2,1) -> 2 | D14: <-- 1 for upright cylindrical, 2 for horizontally-laid cylinder
A16: From Central Cost Database
A17: Maximum Standard Vessel Diameter | B17: max_diam_std_size | C17: =max_vessel_diam_cl -> 14 | D17: feet
A18: Minimum Vessel Diameter | B18: min_diam | C18: =min_vessel_diam_cl -> 1.5 | D18: feet
A19: Maximum Vessel Diameter | B19: max_diam | C19: =IF(max_diam_override>0,max_diam_override,max_diam_std_size) -> 14 | D19: feet | E19: Standard unless overridden on CDA's
A21: Vessel Constraint Verification
A22: Loading rate maximum | B22: load_max | C22: =VLOOKUP("load_max",resin_table,resin_type+1,FALSE) -> 12 | D22: gpm/square ft
A23: EBCT per vessel | B23: EBCT_tank | C23: =EBCT/Num_tanks -> 1.5 | D23: minutes
A24: Vessel surface area | B24: max_sa | C24: =IF(tank_geom=1,(comm_diam-(2*Vessel_thickness))^2*PI()/4,IF(tank_geom=2,(comm_diam-(2*Vessel_thickness))*comm_height_length,0)) -> 340 | D24: square feet
A25: Height available above media bed (for horizontal vessels) | B25: distance_above | C25: =IF(tank_geom=2,comm_diam-bed_depth-horiz_underdrain,"NA") -> 6.1 | D25: ft
A26: Void space above media bed (for horizontal vessels) | B26: void_above | C26: =IF(tank_geom=2,comm_height_length*(comm_diam*comm_diam/2*ASIN(SQRT(distance_above/comm_diam))-(comm_diam/2-distance_above)*SQRT((comm_diam-distance_above)*distance_above)),"NA") -> 1706.137654 | D26: cubic feet
A27: Maximum flow per vessel | B27: flow_per_vessel | C27: =IF(tank_geom=1,(max_sa*bed_depth*7.48)/EBCT_tank,media_volume*7.48/EBCT_tank) -> 4069.12 | D27: gpm | E27: This represents the maximum flow a given vessel could handle, not the flow during normal operating conditions
A28: Number of parallel treatment trains | B28: num_treat_lines | C28: =ROUNDUP(design_flow_rate/flow_per_vessel,0) -> 13 | D28: lines
A29: Number of vessels excluding redundancy | B29: op_num_tanks | C29: =ROUNDUP(design_flow_rate/flow_per_vessel,0)*Num_tanks -> 26 | D29: units
A30: Number of redundant units | B30: NRD | C30: =IF(NRD_I<>"",NRD_I,IF(design_flow>=1,ROUNDUP(num_treat_lines/redund_freq,0),IF(op_num_tanks=1,NRD_small_1,NRD_small))) -> 4
A31: Total number of vessels including redundancy | B31: final_num_tanks | C31: =op_num_tanks+NRD -> 30 | D31: units
A33: Vessel requirements based on bed depth and contact time
A34: Minimum total contact material needed | B34: contact_material | C34: =design_flow_rate*EBCT/(7.481) -> 20906.29595 | D34: cubic feet
A35: Minimum volume of resin per vessel | B35: contact_mat_per_vessel | C35: =contact_material/op_num_tanks -> 804.0883058 | D35: cubic feet
A36: Minimum volume of vessel | B36: vol_vessel | C36: =contact_mat_per_vessel*(1+bed_expansion) -> 1206.132459 | D36: cubic feet
A37: Minimum surface area of contact material | B37: SA | C37: =contact_mat_per_vessel/(bed_depth) -> 335.0367941 | D37: square feet
A39: Quantities based on user-specified vessel dimensions
A40: Final surface area of contact material | B40: comm_SA | C40: =IF(tank_geom=1,(comm_diam-(2*Vessel_thickness))^2*PI()/4,IF(tank_geom=2,(comm_diam-(2*Vessel_thickness))*comm_height_length)) -> 340 | D40: square feet
A41: Final surface loading rate | B41: comm_load_rate | C41: =(design_flow_rate/num_treat_lines)/comm_SA -> 11.79487179 | D41: gpm/square ft
A42: Media volume per tank | B42: media_volume | C42: =comm_SA*bed_depth -> 816 | D42: cubic feet
B43: media_volume_gal | C43: =media_volume*7.48 -> 6103.68 | D43: gallons
A44: Media mass per vessel | B44: media_per_vessel | C44: =media_volume*media_density -> 35088 | D44: lbs/vessel
A45: Total media required | B45: total_media | C45: =media_per_vessel*final_num_tanks -> 1052640 | D45: lbs
A47: Media volume when expanded | B47: media_volume_expanded | C47: =media_volume*(1+bed_expansion) -> 1224 | D47: cubic feet
A49: Total vessel volume | B49: comm_vol | C49: =PI()*comm_diam^2/4*comm_height_length -> 2670.353756 | D49: cubic feet
A50: Total vessel volume galons | B50: comm_vol_gal | C50: =comm_vol*7.48 -> 19974.24609 | D50: gal
A52: Checks on user-specified dimensions
A53: Design dimensions for vertical vessels:
A54: Height of vessel required | B54: height | C54: =bed_depth*(1+bed_expansion)+free_board -> 4.1 | D54: feet
A55: Required vessel diameter (circular vessels) | B55: diameter | C55: =(SA*4/PI())^0.5+(2*Vessel_thickness) -> 20.65386393 | D55: feet
A56: Minimum commercial height given diameter | B56: min_comm_height | C56: =VLOOKUP(comm_diam,vessel_size_table_cl,2) -> 6 | D56: feet
A57: Maximum commercial height given diameter | B57: max_comm_height | C57: =VLOOKUP(comm_diam,vessel_size_table_cl,3) -> 24 | D57: feet
A59: Void space required for horizontal vessels:
A60: For freeboard | B60: freeboard_horiz_void | C60: =comm_height_length*(comm_diam*comm_diam/2*ASIN(SQRT(free_board/comm_diam))-(comm_diam/2-free_board)*SQRT((comm_diam-free_board)*free_board)) -> 49.91702085 | D60: cubic feet | E60: Volume of a horizontal slice taken out of a cylinder
A61: For underdrain | B61: underdrain_horiz_void | C61: =comm_height_length*(comm_diam*comm_diam/2*ASIN(SQRT(horiz_underdrain/comm_diam))-(comm_diam/2-horiz_underdrain)*SQRT((comm_diam-horiz_underdrain)*horiz_underdrain)) -> 251.1740142 | D61: cubic feet
A62: Total | B62: horiz_void | C62: =freeboard_horiz_void+underdrain_horiz_void -> 301.091035 | D62: cubic feet
A64: Volume available for media and expansion:
A65: Vertical vessel | B65: vert_vol_available | C65: =(comm_height_length-free_board)*PI()*comm_diam^2/4 -> 2631.083847 | D65: cubic feet
A66: Horizontal vessel | B66: horiz_vol_available | C66: =comm_vol-62:62 -> 2369.262721 | D66: cubic feet
A67: For selected vessel geometry | B67: input_vol_vess | C67: =CHOOSE(tank_geom,vert_vol_available,horiz_vol_available) -> 2369.262721 | D67: cubic feet | E67: To be compared to vol_vessel, to determine whether vessel is oversized.
A69: Tolerance for oversized vessels | B69: vol_tol | C69: =CHOOSE(tank_geom,IF(ss_cat2=1,vol_tol_vert_small,vol_tol_vert_med),vol_tol_horiz) -> 0.4 | E69: Tolerance added to vol_vessel in checking for oversized vessels.
A71: Cartridge Filters for Pretreatment
A72: Maximum flow per cartridge filter | B72: cart_per_flow | C72: =VLOOKUP(10^6,cart_cost_cl,1)-0.001 -> 2.88 | D72: MGD
A73: Number of active cartridge filters | B73: active_filters | C73: =IF(include_cart=0,0,MAX(ROUNDUP(design_flow/cart_per_flow,0),IF(design_flow>=1,min_cart,0))) -> 27 | D73: units
A74: Number of redundant cartridge filters | B74: NRD_filters | C74: =IF(include_cart=0,0,init_NRD_cart+ROUNDDOWN(design_flow/addl_redund_cart_per_flow,0)) -> 2 | D74: units
A75: Total number of cartridge filters | B75: num_filters | C75: =active_filters+NRD_filters -> 29 | D75: units
A76: Flow per filter | B76: filter_size | C76: =IF(include_cart=0,0,design_flow/active_filters) -> 2.780444444 | D76: MGD
A77: Filter length | B77: filter_len | C77: =IF(include_cart=0,0,VLOOKUP(filter_size,cart_dim_table_cl,5)) -> 7.745833333 | D77: feet
A78: Filter width | B78: filter_wid | C78: =IF(include_cart=0,0,VLOOKUP(filter_size,cart_dim_table_cl,6)) -> 1.833333333 | D78: feet
A79: Elements per filter | B79: filter_elements | C79: =IF(include_cart=0,0,VLOOKUP(filter_size,cart_dim_table_cl,7)) -> 20 | D79: elements/housing

Sheet Backwash and Regeneration
A1: Backwash and Regeneration Calculations
A3: Calculation | B3: Range Name | C3: Value | D3: Units | E3: Guidance
A4: From Input
A5: Media regeneration or throwaway operation? | B5: regen_type | C5: =IF(throwaway_I="regeneration",1,2) -> 2 | D5: <-- 1 for regeneration, 2 for throwaway
A6: Number of bed volumes before regeneration/throwaway | C6: =BV_regen -> 250000 | D6: For reference only
A7: No backwash | B7: no_backwash | C7: =IF(no_backwash_I="existing pumps",1,IF(no_backwash_I="new pumps","",IF(ss_cat2=1,1,""))) ->  | D7: <-- 1 = backwash using existing supply or treated water pumps, blank = include backwash pumps in costs
A8: No backwash tanks | B8: no_back_tank | C8: =IF(no_back_tank_I="existing storage",1,IF(no_back_tank_I="new storage","",IF(ss_cat2=2,"",1))) -> 1 | D8: <-- 1 = backwash from existing storage or supply, blank = include backwash tanks in costs
A9: Brine delivery method | B9: brine_method | C9: =IF(brine_method_I="","",IF(brine_method_I="brine mixing tanks",1,2)) ->  | D9: <-- 1 for brine mixing tanks, 2 for salt saturator
A11: Regeneration Needs
A12: Total resin volume | B12: resin_volume_total | C12: =final_num_tanks*media_volume -> 24480 | D12: cubic feet
A13: Regeneration solution type | B13: regen_sol | C13: =VLOOKUP("regen_sol",resin_table,resin_type+1,FALSE) -> 2 | D13: <-- 1 for brine, 2 for tetrachloroferrate
A14: Time for regeneration | B14: time_regen | C14: =VLOOKUP("time_regen",resin_table,resin_type+1,FALSE) -> 21 | D14: minutes
A16: Brine Regeneration
A17: Brine concentration | B17: brine_conc | C17: =IF(AND(regen_type=1,regen_sol=1),VLOOKUP("brine_conc",resin_table,resin_type+1,FALSE),0) -> 0 | D17: lb/gal
A18: Brine loading rate | B18: brine_load | C18: =IF(AND(regen_type=1,regen_sol=1),VLOOKUP("brine_load",resin_table,resin_type+1,FALSE),0) -> 0 | D18: lb/square ft
A19: Salt needed per vessel | B19: salt_regen | C19: =comm_SA*brine_load -> 0 | D19: lbs
A20: Volume of saturated brine needed per vessel | B20: vol_brine_sat | C20: =IF(AND(regen_type=1,regen_sol=1),salt_regen/brine_conc_sat,0) -> 0 | D20: gallons
A21: Volume of dilute brine needed per vessel | B21: vol_brine | C21: =IF(AND(regen_type=1,regen_sol=1),salt_regen/brine_conc,0) -> 0 | D21: gallons
A22: Salt needed in storage | B22: salt_store | C22: =(regen_month*cstore_days/30)*salt_regen*final_num_tanks/(regen_reuse+1) -> 0 | D22: lbs
A24: Sodium Chloride Purchasing
A25: Quantity required for large quantity purchase | C25: =VLOOKUP("Sodium Chloride - Large Qty",chem_break_table_cl,2,FALSE) -> 3500 | D25: lbs | E25: #N/A indicates that price data do not depend on volume purchased.
A26: Quantity required for mid quantity purchase | C26: =VLOOKUP("Sodium Chloride - Mid Qty",chem_break_table_cl,2,FALSE) -> 3500 | D26: lbs | E26: #N/A indicates that price data do not depend on volume purchased.
A27: Quantity required for small quantity purchase | C27: =VLOOKUP("Sodium Chloride - Small Qty",chem_break_table_cl,2,FALSE) -> 0 | D27: lbs | E27: #N/A indicates that price data do not depend on volume purchased.
A28: Purchase Type | B28: salt_purchase | C28: =IF(AND(ISNA(C25),ISNA(C26),ISNA(C27)),"",IF(salt_store>=C25," - Large Qty",IF(salt_store>=C26," - Mid Qty"," - Small Qty"))) -> - Small Qty | E28: Returns descriptive term based on volume of each purchase for use in determining pricing. Blank indicates that price data do not depend on volume purchased.
A30: Tetrachloroferrate Regeneration
A31: Tetrachloroferrate bed volumes | B31: FeCl4_BV | C31: =IF(AND(regen_type=1,regen_sol=2),VLOOKUP("FeCl4_BV",resin_table,resin_type+1,FALSE),0) -> 0 | D31: bed volumes
A32: Volume of tetrachoroferrate per vessel | B32: vol_FeCl4 | C32: =FeCl4_BV*media_volume_gal -> 0 | D32: gallons
A33: Molarity of HCl in solution | B33: HCl_M | C33: =IF(AND(regen_type=1,regen_sol=2),VLOOKUP("HCl_M",resin_table,resin_type+1,FALSE),0) -> 0 | D33: M
A34: Molarity of FeCl3 in solution | B34: FeCl3_M | C34: =IF(AND(regen_type=1,regen_sol=2),VLOOKUP("FeCl3_M",resin_table,resin_type+1,FALSE),0) -> 0 | D34: M
A35: HCl specific gravity | B35: HCl_sg | C35: =VLOOKUP(HCl_pct,hcl_table_cl,2) -> 1.1789 | D35: kg/L
A36: HCl required for tetrachloroferrate solution | B36: HCl_in_solution | C36: =HCl_M/(HCl_pct*1000*HCl_sg/HCl_mw)*vol_FeCl4 -> 0 | D36: gallons
A37: FeCl3 required | B37: FeCl3_in_solution | C37: =FeCl3_M*FeCl3_mw*vol_FeCl4*3.785/453.59 -> 0 | D37: lbs
A38: FeCl3 needed in storage | B38: FeCl3_store | C38: =MAX(FeCl3_in_solution,(regen_month*cstore_days/30)*FeCl3_in_solution*final_num_tanks/(regen_reuse+1)) -> 0 | D38: lbs
A39: Molarity of dilute HCl rinse | B39: dil_HCl_M | C39: =IF(AND(regen_type=1,regen_sol=2),VLOOKUP("dil_HCl_M",resin_table,resin_type+1,FALSE),0) -> 0 | D39: M
A40: HCl rinse bed volumes | B40: HCl_BV | C40: =IF(AND(regen_type=1,regen_sol=2),VLOOKUP("HCl_BV",resin_table,resin_type+1,FALSE),0) -> 0 | D40: bed volumes
A41: HCl rinse volume per vessel | B41: HCl_rinse_vol | C41: =HCl_BV*media_volume_gal -> 0 | D41: gallons
A42: HCl required for rinse | B42: HCl_in_rinse | C42: =dil_HCl_M/(HCl_pct*1000*HCl_sg/HCl_mw)*HCl_rinse_vol -> 0 | D42: gallons
A43: HCl rinse time | B43: HCl_rinse_time | C43: =HCl_rinse_vol/(comm_SA*comm_load_rate) -> 0 | D43: minutes | E43: Assumes rinse rate = design loading rate
A44: HCl metering rate for rinse | B44: HCl_to_rinse_gph | C44: =IF(HCl_rinse_time=0,0,HCl_in_rinse/HCl_rinse_time)*60 -> 0 | D44: gph
A46: Backwash and water rinse
A47: Backwash rate (gpm) | B47: water_flush | C47: =ROUND(h2oflush_backwash_rate*comm_SA,0) -> 1020 | D47: gpm
A48: Backwash volume | B48: waterflush_vol | C48: =water_flush*backwash_time -> 12240 | D48: gallons
A49: Brine dilution water | B49: brine_dilution_vol | C49: =vol_brine-vol_brine_sat -> 0 | D49: gallons
A50: Brine dilution water flow | B50: brine_dilution_gpm | C50: =brine_dilution_vol/time_regen -> 0 | D50: gpm
A51: Water rinse bed volumes | B51: rinse_BV | C51: =IF(regen_type=1,VLOOKUP("rinse_BV",resin_table,resin_type+1,FALSE),0) -> 0 | D51: bed volumes
A52: Water rinse volume | B52: rinse_vol | C52: =media_volume_gal*rinse_BV -> 0 | D52: gallons
A53: Water rinse time | B53: rinse_time | C53: =rinse_vol/(comm_SA*rinse_rate) -> 0 | D53: minutes
A54: Water rinse rate (gpm) | B54: rinse_gpm | C54: =IF(rinse_time=0,0,rinse_vol/rinse_time) -> 0 | D54: gpm
A55: HCl dilution water | B55: dilution_vol | C55: =HCl_rinse_vol-HCl_in_rinse -> 0 | D55: gallons
A56: HCl dilution water rate (gpm) | B56: dilution_gpm | C56: =IF(HCl_rinse_time=0,0,HCl_rinse_vol/HCl_rinse_time) -> 0 | D56: gpm
A57: Total water volume | B57: total_backwash | C57: =waterflush_vol+rinse_vol+dilution_vol+brine_dilution_vol -> 12240 | D57: gallons
A58: Backwashes per year per vessel | C58: =365/regen_days+IF(add_backwash_freq=0,0,365/add_backwash_freq) -> 0.6906622789 | D58: backwash per year
A59: Total number of backwashes per year (all vessels) | C59: =C58*final_num_tanks -> 20.71986837 | D59: backwash per year | E59: Number of backwash events per year for all vessels includes redundancy
A61: Regenerant Use
A62: Volume of regenerant | B62: vol_regen | C62: =IF(regen_type=1,CHOOSE(regen_sol,vol_brine,vol_FeCl4),0) -> 0 | D62: gallons
A63: Regenerant loading rate | B63: regen_rate | C63: =vol_regen/(time_regen*comm_SA) -> 0 | D63: gpm/square ft
A64: Regeneration per vessel frequency | B64: regen_days | C64: =((num_treat_lines*media_volume_gal*BV_regen)/(average_flow*1000000)) -> 528.4782609 | D64: days | E64: Using average flow
A65: Time between regenerations | B65: regen_freq | C65: =regen_days/final_num_tanks*24*60 -> 25366.95652 | D65: minutes | E65: Assumes staggered regeneration
A66: Number of regeneration washes per month | B66: regen_month | C66: =30/regen_days -> 0.05676676265 | D66: washes/vessel/month
A67: Regeneration downtime | B67: regeneration_downtime | C67: =backwash_time+rinse_time+time_regen+HCl_rinse_time -> 33 | D67: minutes
A68: Total days for full regeneration | B68: total_downtime | C68: =regeneration_downtime*final_num_tanks/(24*60) -> 0.6875 | D68: days
A69: Number of vessels regenerated at a time | B69: regen_redun | C69: =ROUNDUP(total_downtime/regen_days,0) -> 1
A71: Regenerant Mixing Tanks
A72: Volume required | B72: mix_tank_vol_tot | C72: =IF(OR(regen_type=2,brine_method=2),0,IF(regen_sol=1,vol_brine_sat,vol_regen)) -> 0 | D72: gallons
A73: Maximum chemical storage tank size | B73: max_chem_tank_size | C73: =MAX(VLOOKUP(10^6,pl_cst_cost_cl,1)-1,VLOOKUP(10^6,fg_cst_cost_cl,1)-1,VLOOKUP(10^6,ss_cst_cost_cl,1)-1) -> 30000 | D73: gallons | E73: The largest size for which costs are available.
A74: Mixing tanks | B74: mix_tanks | C74: =IF(OR(regen_type=2,brine_method=2),0,IF(mix_tank_vol_tot>max_chem_tank_size,ROUNDUP(mix_tank_vol_tot/max_chem_tank_size,0)*regen_redun,regen_redun)) -> 0 | D74: units
A75: Mixing tank volume | B75: mix_tank_vol | C75: =IF(mix_tanks=0,0,mix_tank_vol_tot*regen_redun/mix_tanks) -> 0 | D75: gallons
A76: Number of mixers | B76: mixers | C76: =mix_tanks -> 0 | D76: units
A78: Salt Saturators (brine only)
A79: Maximum size of salt saturator | B79: max_saltbox | C79: =MAX(VLOOKUP(10^6,fg_saltbox_cost_cl,1)-0.1,VLOOKUP(10^6,pl_saltbox_cost_cl,1)-0.1) -> 80 | D79: tons | E79: The largest size for which costs are available.
A80: Salt saturator size needed | B80: salt_box_need | C80: =IF(salt_store/cstore_days/2000>=min_saltbox,salt_store/cstore_days/2000,IF(salt_store/(cstore_days/7)/2000>=min_saltbox,salt_store/(cstore_days/7)/2000,salt_store/(cstore_days/30)/2000)) -> 0 | D80: tons | E80: Provides one day, one week, or one month of storage, depending on quantity needed
A81: Days of storage provided by salt saturator | B81: salt_box_days | C81: =IF(salt_store/cstore_days/2000>=min_saltbox,1,IF(salt_store/(cstore_days/7)/2000>=min_saltbox,7,30)) -> 30 | D81: days
A82: Additional salt storage needed | B82: add_salt_store | C82: =IF(cstore_days-salt_box_days>0,cstore_days-salt_box_days,0) -> 0 | D82: days | E82: Additonal storage to total at least as many days supply onsite as specified in CDAs
A83: Number of salt saturators | B83: num_salt_box | C83: =IF(AND(regen_type=1,regen_sol=1,brine_method=2),ROUNDUP(salt_box_need/max_saltbox,0),0) -> 0 | D83: units
A84: Salt saturator size | B84: salt_box_size | C84: =IF(AND(regen_type=1,regen_sol=1,brine_method=2),IF(ROUNDUP(salt_box_need/num_salt_box,0)<min_saltbox,min_saltbox,ROUNDUP(salt_box_need/num_salt_box,0)),0) -> 0 | D84: tons
A86: Eductors (brine only)
A87: Maximum eductor size | B87: max_eductor_size | C87: =VLOOKUP(10^6,eductor_size_table_cl,1) -> 53.5 | D87: gpm | E87: The largest size for which costs are available.
A88: Number of eductors | B88: eductors | C88: =IF(regen_type=2,0,IF(regen_sol=1,IF(brine_method=1,mix_tanks,num_salt_box),0)) -> 0 | D88: units
A90: HCl tanks (tetrachloroferrate only)
A91: Total HCl volume required | B91: total_HCl | C91: =(HCl_in_solution+HCl_in_rinse)*regen_redun*regen_month*cstore_days/30 -> 0 | D91: gallons
A92: Maximum chemical storage tank size excluding stainless steel | B92: max_chem_tank_size_noSS | C92: =MAX(VLOOKUP(10^6,pl_cst_cost_cl,1)-1,VLOOKUP(10^6,fg_cst_cost_cl,1)-1) -> 30000 | D92: gallons | E92: The largest size for which costs are available (not including stainless, which is not compatible with hydrochloric acid)
A93: HCl tanks | B93: HCl_tanks | C93: =IF(total_HCl=0,0,ROUNDUP(total_HCl/max_chem_tank_size_noSS,0)) -> 0 | D93: units
A94: HCl tank volume | B94: HCl_tank_vol | C94: =IF(total_HCl=0,0,ROUNDUP(total_HCl/HCl_tanks,0)) -> 0 | D94: gallons
A95: HCl density | B95: HCl_dens | C95: =VLOOKUP(HCl_pct,hcl_table_cl,4) -> 3.542 | D95: lbs/gal
A96: Total HCl in lbs needed in storage | B96: total_HCl_lbs | C96: =total_HCl*C95 -> 0 | D96: lbs
A98: Hydrochloric Acid Purchasing
A99: Quantity required for large quantity purchase | C99: =VLOOKUP("Hydrochloric Acid - Large Qty",chem_break_table_cl,2,FALSE) ->  | D99: lbs | E99: #N/A indicates that price data do not depend on volume purchased.
A100: Quantity required for mid quantity purchase | C100: =VLOOKUP("Hydrochloric Acid- Mid Qty",chem_break_table_cl,2,FALSE) ->  | D100: lbs | E100: #N/A indicates that price data do not depend on volume purchased.
A101: Quantity required for small quantity purchase | C101: =VLOOKUP("Hydrochloric Acid - Small Qty",chem_break_table_cl,2,FALSE) ->  | D101: lbs | E101: #N/A indicates that price data do not depend on volume purchased.
A102: Purchase Type | B102: HCl_purchase | C102: =IF(AND(ISNA(C99),ISNA(C100),ISNA(C101)),"",IF(total_HCl_lbs>=C99," - Large Qty",IF(total_HCl_lbs>=C100," - Mid Qty"," - Small Qty"))) ->  | E102: Returns descriptive term based on volume of each purchase for use in determining pricing. Blank indicates that price data do not depend on volume purchased.
A104: To Fill Mixing Tanks (tetrachloroferrate only)
A105: Fill time | B105: fill_time | C105: =IF(AND(regen_type=1,regen_sol=2),regen_freq-regeneration_downtime,"NA") -> NA | D105: minutes
A106: HCl fill rate | B106: HCl_fill_rate | C106: =IF(HCl_in_solution=0,0,HCl_in_solution/fill_time*(1+FeCl4_safety_factor)) -> 0 | D106: gpm
A107: FeCl3 fill rate (lbs/min) | B107: FeCl3_fill_rate | C107: =IF(FeCl3_in_solution=0,0,FeCl3_in_solution/fill_time/mix_tanks*(1+FeCl4_safety_factor)) -> 0 | D107: lbs/min
A108: FeCl3 fill rate (cfm) | B108: FeCl3_fill_cfm | C108: =FeCl3_fill_rate/FeCl3_dens -> 0 | D108: cfm
A109: Number of gravimetric dry feeders per mix tank | B109: grav_per | C109: =IF(FeCl3_fill_rate=0,0,ROUNDUP(FeCl3_fill_rate/max_grav_size,0)) -> 0 | D109: units
A110: Total gravimetric dry feeders | B110: num_grav | C110: =grav_per*mix_tanks -> 0 | D110: units
A111: Gravimetric dry feeder rating | B111: grav_feed_rate | C111: =IF(grav_per=0,0,FeCl3_fill_rate/grav_per) -> 0 | D111: lbs/min
A112: Number of volumetric dry feeders per mix tank | B112: vol_per | C112: =IF(FeCl3_fill_cfm=0,0,ROUNDUP(FeCl3_fill_cfm/max_vol_size,0)) -> 0 | D112: units
A113: Total volumetric dry feeders | B113: num_vol | C113: =vol_per*mix_tanks -> 0 | D113: units
A114: Volumetric dry feeder rating | B114: vol_feed_rate | C114: =IF(vol_per=0,0,FeCl3_fill_cfm/vol_per) -> 0 | D114: cfm
A116: Backwash tanks
A117: Maximum backwash tank size | B117: max_back_tank_size | C117: =MAX(VLOOKUP(10^6,st_bwt_cost_cl,1)-1,VLOOKUP(10^6,fg_bwt_cost_cl,1)-1,VLOOKUP(10^6,hdpe_bwt_cost_cl,1)-1) -> 282094 | D117: gallons | E117: The largest size for which costs are available.
A118: Backwash tanks | B118: back_tanks | C118: =IF(no_back_tank=1,0,ROUNDUP(total_backwash/max_back_tank_size,0)) -> 0 | D118: units
A119: Backwash tank volume | B119: back_tank_vol | C119: =IF(total_backwash=0,0,IF(back_tanks=0,0,total_backwash/back_tanks)) -> 0 | D119: gal
A121: Secondary Containment for HCl Tanks
A122: Minimum volume required | B122: hcl_cont_volume | C122: =MAX(HCl_tanks*HCl_tank_vol*sec_cont_pct_of_total,HCl_tank_vol*sec_cont_pct_of_largest)/7.48 -> 0 | D122: cubic feet | E122: 7.48 converts gallons to cubic feet
A123: Footprint available | B123: hcl_cont_fp | C123: =IF(HCl_tanks=0,0,acid_tank_fp-HCl_tanks*PI()*(at_diam/2)^2) -> 0 | D123: square feet | E123: Total footprint minus displacement by tanks themselves
A124: Curb height required | B124: hcl_curb_height | C124: =IF(HCl_tanks=0,0,hcl_cont_volume/hcl_cont_fp+sec_cont_freeboard/12) -> 0 | D124: feet
A125: Curb thickness | B125: hcl_curb_thick | C125: =IF(HCl_tanks=0,0,MIN(sec_cont_max_thick,hcl_curb_height)) -> 0 | D125: feet
A126: Curb length (long side) | B126: hcl_curb_len_long | C126: =IF(HCl_tanks=0,0,HCl_tanks*at_diam+2*space_at+(HCl_tanks-1)*space_at+2*hcl_curb_thick) -> 0 | D126: feet
A127: Curb length (short side) | B127: hcl_curb_len_short | C127: =IF(HCl_tanks=0,0,at_diam+2*space_at) -> 0 | D127: feet
A128: Curb concrete volume | B128: hcl_curb_concrete | C128: =IF(HCl_tanks=0,0,ROUNDUP((hcl_curb_len_long*2+hcl_curb_len_short*2)*hcl_curb_height*hcl_curb_thick/27,0)) -> 0 | D128: cubic yards | E128: 27 converts cubic feet to cubic yards
A129: Chemical resistant coating required | B129: hcl_coating_gal | C129: =IF(HCl_tanks=0,0,ROUNDUP((acid_tank_fp+2*(hcl_curb_len_long-2*hcl_curb_thick)*hcl_curb_height+2*hcl_curb_len_short*hcl_curb_height)/sec_cont_coating_cvg,0)) -> 0 | D129: gallons | E129: Covers total footprint plus inside surface and top of curbs
A131: Secondary Containment for Regenerant Mixing Tanks
A132: Minimum volume required | B132: mix_cont_volume | C132: =MAX(mix_tanks*mix_tank_vol*sec_cont_pct_of_total,mix_tank_vol*sec_cont_pct_of_largest)/7.48 -> 0 | D132: cubic feet | E132: 7.48 converts gallons to cubic feet
A133: Footprint available | B133: mix_cont_fp | C133: =IF(mix_tanks=0,0,mix_tank_fp-mix_tanks*PI()*(mx_diam/2)^2) -> 0 | D133: square feet | E133: Total footprint minus displacement by tanks themselves
A134: Curb height required | B134: mix_curb_height | C134: =IF(mix_tanks=0,0,mix_cont_volume/mix_cont_fp+sec_cont_freeboard/12) -> 0 | D134: feet
A135: Curb thickness | B135: mix_curb_thick | C135: =IF(mix_tanks=0,0,MIN(sec_cont_max_thick,mix_curb_height)) -> 0 | D135: feet
A136: Curb length (long side) | B136: mix_curb_len_long | C136: =IF(mix_tanks=0,0,mix_tanks*mx_diam+2*space_st+(mix_tanks-1)*space_st+2*mix_curb_thick) -> 0 | D136: feet
A137: Curb length (short side) | B137: mix_curb_len_short | C137: =IF(mix_tanks=0,0,mx_diam+2*space_st) -> 0 | D137: feet
A138: Curb concrete volume | B138: mix_curb_concrete | C138: =IF(mix_tanks=0,0,ROUNDUP((mix_curb_len_long*2+mix_curb_len_short*2)*mix_curb_height*mix_curb_thick/27,0)) -> 0 | D138: cubic yards | E138: 27 converts cubic feet to cubic yards
A139: Chemical resistant coating required | B139: mix_coating_gal | C139: =IF(mix_tanks=0,0,ROUNDUP((mix_tank_fp+2*(mix_curb_len_long-2*mix_curb_thick)*mix_curb_height+2*mix_curb_len_short*mix_curb_height)/sec_cont_coating_cvg,0)) -> 0 | D139: gallons | E139: Covers total footprint plus inside surface and top of curbs

Sheet pH Adjust
A1: Adjusting pH and alkalinity of finished water
A3: Calculation | B3: Range Name | C3: Value | D3: Units | E3: Guidance
A4: pH Adjustment Chemistry
A5: Ionic strength (I) | B5: I_ion_str | C5: =TDS_I/40000 -> 0.005 | D5: mol/L | E5: 40,000 converts TDS to ionic strength, Equation 4, Trussell 1998
A6: Temperature variance from 25 degrees centigrade | B6: t_minus25 | C6: =t_I-25 -> -15 | D6: degrees C | E6: For use in Equation S14, Trussell 1998
A7: Dielectric constant (D) | B7: D_dielectric | C7: =78.54*(1-0.004579*t_minus25+0.0000119*t_minus25^2+0.000000028*t_minus25^3) -> 84.13738872 | E7: Equation S14, Trussell 1998
A8: Temperature in degrees Kelvin | B8: T_K | C8: =t_I+273 -> 283 | D8: degrees K | E8: 273 converts degrees C to degrees K
A9: Limiting theoretical slope (A) | B9: A_slope_lim | C9: =1290000*(SQRT(2)/(D_dielectric*T_K)^1.5) -> 0.496525447 | E9: Equation S13, Trussell 1998
A10: Monovalent activity coefficient (-log form) | B10: log_gamma_1 | C10: =A_slope_lim*1^2*(SQRT(I_ion_str)/(1+SQRT(I_ion_str))-0.3*I_ion_str) -> 0.03204619055 | E10: Modified Davies equation, Equation S12, Trussell 1998
A11: Divalent activity coefficient (-log form) | B11: log_gamma_2 | C11: =A_slope_lim*2^2*(SQRT(I_ion_str)/(1+SQRT(I_ion_str))-0.3*I_ion_str) -> 0.1281847622 | E11: Modified Davies equation, Equation S12, Trussell 1998
A12: Monovalent activity coefficient (ɣ1) | B12: gamma_1 | C12: =10^-log_gamma_1 -> 0.9288675893
A13: Divalent activity coefficient (ɣ2) | B13: gamma_2 | C13: =10^-log_gamma_2 -> 0.7444152094
A14: Equilibrium constant for carbonic acid (H2CO3) (-log form) | B14: pK_1 | C14: =a1_K1+a2_K1/T_K+a3_K1*LOG10(T_K)+a4_K1*T_K+a5_K1/T_K^2 -> 6.476641144
A15: Equilibrium constant for bicarbonate (HCO3-) (-log form) | B15: pK_2 | C15: =a1_K2+a2_K2/T_K+a3_K2*LOG10(T_K)+a4_K2*T_K+a5_K2/T_K^2 -> 10.48853824
A16: Equilibrium constant for water (H2O) (-log form) | B16: pK_w | C16: =a1_Kw+a2_Kw/T_K+a3_Kw*LOG10(T_K)+a4_Kw*T_K+a5_Kw/T_K^2 -> 14.53856657
A17: Equilibrium constant for carbonic acid (H2CO3) (K1) | B17: K_1 | C17: =10^-pK_1 -> 3.337020356e-07
A18: Equilibrium constant for bicarbonate (HCO3-) (K2) | B18: K_2 | C18: =10^-pK_2 -> 3.246846499e-11
A19: Equilibrium constant for water (H2O) (Kw) | B19: K_w | C19: =10^-pK_w -> 2.893566232e-15
A20: Intermediate calculation | B20: term1_i | C20: =gamma_1*10^-pHo/K_1 -> 0.2783523893 | E20: ɣ110-pH / K1
A21: Intermediate calculation | B21: term2_i | C21: =(gamma_1*K_2)/(gamma_2*10^-pHo) -> 0.0004051355268 | E21: ɣ1K2 / ɣ210-pH
A22: Intermediate calculation | B22: term3_i | C22: =alk_I/50000 -> 0.0005 | D22: eq/L | E22: Alk / 50,000 (where 50,000 converts mg/L to eq/L)
A23: Intermediate calculation | B23: term4_i | C23: =K_w/(gamma_1*10^-pHo) -> 3.115154695e-08 | E23: Kw / ɣ110-pH
A24: Intermediate calculation | B24: term5_i | C24: =10^-pHo/gamma_1 -> 1.07657971e-07 | E24: 10-pH / ɣ1
A25: Intermediate calculation | B25: term6_i | C25: =(2*K_2*gamma_1)/(gamma_2*10^-pHo) -> 0.0008102710536 | E25: 2K2ɣ1 / ɣ210-pH
A26: Initial total inorganic carbon (CT) | B26: C_T_i | C26: =(1+term1_i+term2_i)*((term3_i-term4_i+term5_i)/(1+term6_i)) -> 0.0006389588657 | D26: mol/L | E26: Equation 15, Najm 2001
A27: Intermediate calculation | B27: term1_f | C27: =(2*K_2*gamma_1)/(gamma_2*10^-pHf) -> 0.01284193077 | E27: 2K2ɣ1 / ɣ210-pH
A28: Intermediate calculation | B28: term2_f | C28: =(gamma_1*10^-pHf)/K_1 -> 0.01756284844 | E28: ɣ110-pH / K1
A29: Intermediate calculation | B29: term3_f | C29: =(gamma_1*K_2)/(gamma_2*10^-pHf) -> 0.006420965384 | E29: ɣ1K2 / ɣ210-pH
A30: Intermediate calculation | B30: term4_f | C30: =K_w/(gamma_1*10^-pHf) -> 4.93718747e-07 | E30: Kw / ɣ110-pH
A31: Intermediate calculation | B31: term5_f | C31: =10^-pHf/gamma_1 -> 6.79275875e-09 | E31: 10-pH / ɣ1
A32: Treated water alkalinity | B32: alk_f | C32: =50000*((C_T_i*(1+term1_f))/(1+term2_f+term3_f)+term4_f-term5_f) -> 31.62466666 | D32: mg/L as CaCO3 | E32: Equation 17, Najm 2001, where 50,000 converts eq/L to mg/L
A33: Hydroxide (OH-) required | B33: OH_tot | C33: =(alk_f-alk_I)/50000 -> 0.0001324933332 | D33: mol/L | E33: Equation 20, Najm 2001, where 50,000 converts from mg/L to mol/L
A35: Chemical Usage
A36: NaOH required to raise alkalinity and pH | B36: NaOH_tot | C36: =IF(pH_adj="yes",39.997*OH_tot*1000,0) -> 0 | D36: mg/L | E36: 39.997 is molar mass of NaOH in g/mol, 1,000 converts g to mg
A37: NaOH concentration in lbs/gal | B37: caustic_conc_lb | C37: =VLOOKUP(NaOH_pct,NaOH_table_cl,2) -> 6.364 | D37: lbs/gal
A38: Pounds of pure NaOH needed per day | B38: lb_NaOH_day | C38: =1000000*3.7854*NaOH_tot*2.2*average_flow/1000000 -> 0 | D38: lbs
A39: Pounds of pure NaOH needed in storage | B39: lb_NaOH_store | C39: =ROUNDUP(lb_NaOH_day*cstore_days,0) -> 0 | D39: lbs
A40: Gallons of NaOH needed per day | B40: gal_NaOH_day | C40: =lb_NaOH_day/caustic_conc_lb -> 0 | D40: gal
A41: Gallons of NaOH needed in storage | B41: gal_NaOH_store | C41: =ROUNDUP(lb_NaOH_store/caustic_conc_lb,0) -> 0 | D41: gal
A42: Max NaOH flow (based on design flow) | B42: des_NaOH_flow | C42: =gal_NaOH_day/24*design_flow/average_flow -> 0 | D42: gph
A43: NaOH solution specific gravity | B43: NaOH_spgr | C43: =VLOOKUP(NaOH_pct,NaOH_table_cl,4) -> 1.525
A44: Total weight of bulk NaOH solution in storage | B44: NaOH_lbs | C44: =IF(gal_NaOH_store=0,0,ROUNDUP(gal_NaOH_store*NaOH_spgr*8.345,0)) -> 0 | D44: lbs
A46: NaOH tanks
A47: NaOH tanks | B47: NaOH_tanks | C47: =IF(gal_NaOH_store=0,0,ROUNDUP(gal_NaOH_store/max_chem_tank_size,0)) -> 0 | D47: units
A48: NaOH tank volume | B48: NaOH_tank_vol | C48: =IF(gal_NaOH_store=0,0,ROUNDUP(gal_NaOH_store/NaOH_tanks,0)) -> 0 | D48: gallons
A49: Day tank storage volume required (based on design flow) | B49: NaOH_day_tank_vol_needed | C49: =1000000*3.7854*NaOH_tot*2.2*design_flow/1000000/caustic_conc_lb -> 0 | D49: gallons
A50: Number of day tanks | B50: NaOH_day_tanks | C50: =IF(NaOH_day_tank_vol_needed<day_tank_needed,0,ROUNDUP(NaOH_day_tank_vol_needed/max_chem_tank_size,0)) -> 0 | D50: units
A51: Volume of day tanks | B51: NaOH_day_tank_vol | C51: =IF(NaOH_day_tanks=0,0,ROUNDUP(NaOH_day_tank_vol_needed/NaOH_day_tanks,0)) -> 0 | D51: gallons
A53: Sodium Hydroxide Purchasing
A54: Quantity required for large quantity purchase | C54: =VLOOKUP("Sodium Hydroxide - Large Qty",chem_break_table_cl,2,FALSE) -> 25228.5 | D54: lbs | E54: #N/A indicates that price data do not depend on volume purchased.
A55: Quantity required for mid quantity purchase | C55: =VLOOKUP("Sodium Hydroxide - Mid Qty",chem_break_table_cl,2,FALSE) -> 12751.75 | D55: lbs | E55: #N/A indicates that price data do not depend on volume purchased.
A56: Quantity required for small quantity purchase | C56: =VLOOKUP("Sodium Hydroxide - Small Qty",chem_break_table_cl,2,FALSE) -> 0 | D56: lbs | E56: #N/A indicates that price data do not depend on volume purchased.
A57: Purchase Type | B57: NaOH_purchase | C57: =IF(AND(ISNA(C54),ISNA(C55),ISNA(C56)),"",IF(NaOH_lbs>=C54," - Large Qty",IF(NaOH_lbs>=C55," - Mid Qty"," - Small Qty"))) -> - Small Qty | E57: Returns descriptive term based on volume of each purchase for use in determining pricing. Blank indicates that price data do not depend on volume purchased.
A59: Mixers
A60: Maximum chemical tank mixer horsepower | B60: cmix_hp_max | C60: =MAX(VLOOKUP(10^6,port_mix_cost_cl,1)-0.1,VLOOKUP(10^6,mount_mix_cost_cl,1)-0.1,VLOOKUP(10^6,imp_mix_cost_cl,1)-0.1) -> 20 | D60: hp
A61: Mixers per storage tank | B61: cmix_per_tank | C61: =IF(AND(include_cmix=1,NaOH_tanks<>0),ROUNDUP(NaOH_tank_vol/1000*cmix_hp_per/cmix_hp_max,0),0) -> 0 | D61: units
A62: Number of storage tank mixers | B62: cmixers | C62: =NaOH_tanks*cmix_per_tank -> 0 | D62: units
A63: Mixer size for storage tanks | B63: cmix_size | C63: =IF(cmixers<>0,MAX(min_cmix_hp,NaOH_tank_vol/1000*cmix_hp_per/cmix_per_tank),0) -> 0 | D63: hp
A64: Mixers per day tank | B64: dmix_per_tank | C64: =IF(AND(include_cmix=1,NaOH_day_tanks<>0),ROUNDUP(NaOH_day_tank_vol/1000*cmix_hp_per/cmix_hp_max,0),0) -> 0 | D64: units
A65: Number of day tank mixers | B65: dmixers | C65: =NaOH_day_tanks*dmix_per_tank -> 0 | D65: units
A66: Mixer size for day tanks | B66: dmix_size | C66: =IF(dmixers<>0,MAX(min_cmix_hp,NaOH_day_tank_vol/1000*cmix_hp_per/dmix_per_tank),0) -> 0 | D66: hp
A68: Secondary Containment for NaOH Storage Tanks
A69: Minimum volume required | B69: ct_cont_volume | C69: =MAX(NaOH_tanks*NaOH_tank_vol*sec_cont_pct_of_total,NaOH_tank_vol*sec_cont_pct_of_largest)/7.48 -> 0 | D69: cubic feet | E69: 7.48 converts gallons to cubic feet
A70: Footprint available | B70: ct_cont_fp | C70: =IF(NaOH_tanks=0,0,NaOH_tank_fp-NaOH_tanks*PI()*(NaOHtank_diam/2)^2) -> 0 | D70: square feet | E70: Total footprint minus displacement by tanks themselves
A71: Curb height required | B71: ct_curb_height | C71: =IF(NaOH_tanks=0,0,ct_cont_volume/ct_cont_fp+sec_cont_freeboard/12) -> 0 | D71: feet
A72: Curb thickness | B72: ct_curb_thick | C72: =IF(NaOH_tanks=0,0,MIN(sec_cont_max_thick,ct_curb_height)) -> 0 | D72: feet
A73: Curb length (long side) | B73: ct_curb_len_long | C73: =IF(NaOH_tanks=0,0,NaOH_tanks*NaOHtank_diam+2*space_NaOHtank+(NaOH_tanks-1)*space_NaOHtank+2*ct_curb_thick) -> 0 | D73: feet
A74: Curb length (short side) | B74: ct_curb_len_short | C74: =IF(NaOH_tanks=0,0,NaOHtank_diam+2*space_NaOHtank) -> 0 | D74: feet
A75: Curb concrete volume | B75: ct_curb_concrete | C75: =IF(NaOH_tanks=0,0,ROUNDUP((ct_curb_len_long*2+ct_curb_len_short*2)*ct_curb_height*ct_curb_thick/27,0)) -> 0 | D75: cubic yards | E75: 27 converts cubic feet to cubic yards
A76: Chemical resistant coating required | B76: ct_coating_gal | C76: =IF(NaOH_tanks=0,0,ROUNDUP((NaOH_tank_fp+2*(ct_curb_len_long-2*ct_curb_thick)*ct_curb_height+2*ct_curb_len_short*ct_curb_height)/sec_cont_coating_cvg,0)) -> 0 | D76: gallons | E76: Covers total footprint plus inside surface and top of curbs
A78: Secondary Containment for NaOH Day Tanks
A79: Minimum volume required | B79: dt_cont_volume | C79: =MAX(NaOH_day_tanks*NaOH_day_tank_vol*sec_cont_pct_of_total,NaOH_day_tank_vol*sec_cont_pct_of_largest)/7.48 -> 0 | D79: cubic feet | E79: 7.48 converts gallons to cubic feet
A80: Footprint available | B80: dt_cont_fp | C80: =IF(NaOH_day_tanks=0,0,NaOHday_tank_fp-NaOH_day_tanks*PI()*(NaOHdaytank_diam/2)^2) -> 0 | D80: square feet | E80: Total footprint minus displacement by tanks themselves
A81: Curb height required | B81: dt_curb_height | C81: =IF(NaOH_day_tanks=0,0,dt_cont_volume/dt_cont_fp+sec_cont_freeboard/12) -> 0 | D81: feet
A82: Curb thickness | B82: dt_curb_thick | C82: =IF(NaOH_day_tanks=0,0,MIN(sec_cont_max_thick,dt_curb_height)) -> 0 | D82: feet
A83: Curb length (long side) | B83: dt_curb_len_long | C83: =IF(NaOH_day_tanks=0,0,NaOH_day_tanks*NaOHdaytank_diam+2*space_NaOHdaytank+(NaOH_day_tanks-1)*space_NaOHdaytank+2*dt_curb_thick) -> 0 | D83: feet
A84: Curb length (short side) | B84: dt_curb_len_short | C84: =IF(NaOH_day_tanks=0,0,NaOHdaytank_diam+2*space_NaOHdaytank) -> 0 | D84: feet
A85: Curb concrete volume | B85: dt_curb_concrete | C85: =IF(NaOH_day_tanks=0,0,ROUNDUP((dt_curb_len_long*2+dt_curb_len_short*2)*dt_curb_height*dt_curb_thick/27,0)) -> 0 | D85: cubic yards | E85: 27 converts cubic feet to cubic yards
A86: Chemical resistant coating required | B86: dt_coating_gal | C86: =IF(NaOH_day_tanks=0,0,ROUNDUP((NaOHday_tank_fp+2*(dt_curb_len_long-2*dt_curb_thick)*dt_curb_height+2*dt_curb_len_short*dt_curb_height)/sec_cont_coating_cvg,0)) -> 0 | D86: gallons | E86: Covers total footprint plus inside surface and top of curbs

Sheet Pumps Pipe Structure
A1: Pumps, Piping, and Structure Calculations
A3: Calculation | B3: Range Name | C3: Value | D3: Units | E3: Guidance
A4: Pump Design
A5: Flow of each booster pump | B5: pump_rating | C5: =IF(lines_pump_I="",IF(ss_cat2=1,0,MIN(MAX(average_flow_rate+bp_flow_rate*average_flow_rate/design_flow_rate,(design_flow_rate+bp_flow_rate)/2)*(1+pump_safety_factor),max_pump_size)),IF(lines_pump_I=0,0,(design_flow_rate+bp_flow_rate)*(1+pump_safety_factor)/lines_pump_I)) -> 10000 | D5: gpm | E5: Includes safety factor
A6: Maximum pump size | B6: max_pump_size | C6: =VLOOKUP(10^6,pump_cost_cl,1)-1 -> 10000 | D6: gpm | E6: The largest pump size for which costs are available. For booster pumps, will override lines per pump input, if this input results in pumps that are too large.
A7: Number of booster pumps | B7: booster_pumps | C7: =IF(pump_rating=0,0,ROUNDUP((design_flow_rate+bp_flow_rate)*(1+pump_safety_factor)/pump_rating,0)) -> 7 | D7: units
A8: Total booster pumps | B8: total_booster_pumps | C8: =IF(booster_pumps=0,0,booster_pumps+NRD_pumps) -> 7 | D8: units
A9: Maximum required backwash pump flow | B9: max_back_flow | C9: =MAX(water_flush,rinse_gpm,dilution_gpm) -> 1020 | D9: gpm
A10: Number of backwash pumps | B10: backwash_pumps | C10: =IF(OR(no_backwash=1,max_back_flow=0),0,ROUNDUP(max_back_flow*(1+pump_safety_factor)/max_pump_size,0)+NRD_back_pumps) -> 2 | D10: pumps | E10: Includes one pump for redundancy
A11: Backwash pump rating | B11: back_pump_rating | C11: =IF(backwash_pumps=0,0,max_back_flow*(1+pump_safety_factor)/(backwash_pumps-NRD_back_pumps)) -> 1275 | D11: gpm | E11: Includes safety factor
A13: Additional pumps for tetrachloroferrate regeneneration
A14: Regenerant flow rate | B14: regen_flow | C14: =vol_regen/time_regen -> 0 | D14: gpm
A15: Maximum chemical pump size | B15: max_chem_pump_size | C15: =VLOOKUP(10^6,chem_pump_cost_cl,1)-0.01 -> 30000 | D15: gph | E15: The largest size for which costs are available. Applies to chemical pumps for regeneration.
A16: Regenerant pumps | B16: regen_pumps | C16: =IF(OR(regen_sol=1,regen_type=2),0,ROUNDUP(regen_flow*(1+pump_safety_factor)/max_pump_size,0)+NRD_regen_pumps) -> 0 | D16: pumps | E16: Includes one pump for redundancy
A17: Regenerant pump rating | B17: regen_pump_rating | C17: =IF(regen_pumps=0,0,regen_flow*(1+pump_safety_factor)/(regen_pumps-NRD_regen_pumps)) -> 0 | D17: gpm | E17: Includes safety factor
A18: Maximum chemical metering pump size | B18: max_cm_pump_size | C18: =MAX(VLOOKUP(10^6,ss_empump_cost_cl,1)-0.01,VLOOKUP(10^6,ss_mmpump_cost_cl,1)-0.01,VLOOKUP(10^6,pvc_empump_cost_cl,1)-0.01,VLOOKUP(10^6,pvc_mmpump_cost_cl,1)-0.01) -> 360 | D18: gph | E18: The largest pump size for which costs are available.
A19: Acid pumps for regenerant mixing | B19: mix_pumps | C19: =IF(OR(regen_sol=1,regen_type=2),0,ROUNDUP(HCl_fill_rate*60/max_chem_pump_size,0)+NRD_mix_pumps) -> 0 | D19: pumps | E19: Includes one pump for redundancy
A20: Pump rating for regenerant mixing | B20: mix_pump_rating | C20: =IF(mix_pumps=0,0,HCl_fill_rate*60/(mix_pumps-NRD_mix_pumps)) -> 0 | D20: gph | E20: Fill rate already includes safety factor
A21: Acid pumps for acid rinse | B21: rinse_pumps | C21: =IF(OR(regen_sol=1,regen_type=2),0,ROUNDUP(HCl_to_rinse_gph*(1+pump_safety_factor)/max_chem_pump_size,0)+NRD_rinse_pumps) -> 0 | D21: pumps | E21: Includes one pump for redundancy
A22: Pump rating for acid rinse | B22: rinse_pump_rating | C22: =IF(rinse_pumps=0,0,HCl_to_rinse_gph*(1+pump_safety_factor)/(rinse_pumps-NRD_rinse_pumps)) -> 0 | D22: gph | E22: Includes safety factor
A24: Additional pumps for pH adjustment
A25: Metering pumps for caustic | B25: pH_pumps | C25: =IF(pH_adj="yes",ROUNDUP(des_NaOH_flow*(1+pump_safety_factor)/max_cm_pump_size,0)+NRD_pH_pumps,0) -> 0 | D25: pumps | E25: Includes one pump for redundancy
A26: Metering pump rating for caustic | B26: pH_pump_rating | C26: =IF(pH_pumps=0,0,MAX(min_chem_flow,des_NaOH_flow*(1+pump_safety_factor)/(pH_pumps-NRD_pH_pumps))) -> 0 | D26: gph | E26: Includes safety factor
A28: Piping Design
A29: Inlet and outlet pipe length | B29: in_out_pipe_length | C29: =2*facil_length -> 340 | D29: linear feet
A30: Process piping length | B30: proc_pipe_length | C30: =2*facil_length -> 340 | D30: linear feet
A31: Backwash piping length | B31: back_pipe_length | C31: =IF(max_back_flow=0,0,2.5*facil_length) -> 425 | D31: linear feet
A32: Bypass piping length | B32: bp_pipe_length | C32: =IF(bp_pct>0,2.5*facil_length,0) -> 0 | D32: linear feet
A33: Brine/Regeneration piping length | B33: brine_pipe_length | C33: =IF(regen_type=2,0,facil_length) -> 0 | D33: linear feet
A34: Acid piping length | B34: acid_pipe_length | C34: =IF(total_HCl=0,0,facil_length) -> 0 | D34: linear feet | E34: With tetrachloroferrate regeneration only
A35: Caustic piping length | B35: caustic_pipe_length | C35: =IF(NaOH_tot=0,0,facil_length) -> 0 | D35: linear feet | E35: With pH adjustment only
A36: Polymer addition pipe length | B36: polymer_pipe_length | C36: =IF(polymer_day=0,0,facil_length) -> 0 | D36: linear feet | E36: With residuals polymer addition only
A37: Inlet and outlet pipe flow | B37: in_out_pipe_flow | C37: =design_flow_rate+bp_flow_rate -> 52133.33333 | D37: gpm
A38: Inlet piping diameter | B38: in_out_pipe_diam | C38: =VLOOKUP(in_out_pipe_flow,pipe_size_table_cl,2) -> 36 | D38: inches
A39: Process pipe diameter | B39: proc_pipe_diam | C39: =VLOOKUP(flow_per_vessel,pipe_size_table_cl,2) -> 12 | D39: inches
A40: Backwash pipe diameter | B40: back_pipe_diam | C40: =IF(max_back_flow=0,0,VLOOKUP(max_back_flow,pipe_size_table_cl,2)) -> 8 | D40: inches
A41: Regeneration pipe diameter | B41: brine_pipe_diam | C41: =IF(regen_type=2,0,VLOOKUP(regen_flow,pipe_size_table_cl,2)) -> 0 | D41: inches
A42: Bypass pipe diameter | B42: bp_pipe_diam | C42: =IF(bp_pct>0,VLOOKUP(bp_flow_rate,pipe_size_table_cl,2),0) -> 0 | D42: inches
A43: Acid pipe flow | B43: acid_pipe_flow | C43: =MAX(HCl_fill_rate,HCl_to_rinse_gph/60) -> 0 | D43: gpm
A44: Acid pipe diameter | B44: acid_pipe_diam | C44: =IF(total_HCl>0,VLOOKUP(acid_pipe_flow,pipe_size_table_cl,2),0) -> 0 | D44: inches
A45: Caustic pipe flow | B45: caustic_pipe_flow | C45: =des_NaOH_flow*60 -> 0 | D45: gpm
A46: Caustic pipe diameter | B46: caustic_pipe_diam | C46: =IF(des_NaOH_flow>0,VLOOKUP(caustic_pipe_flow,pipe_size_table_cl,2),0) -> 0 | D46: inches
A47: Polymer pipe flow | B47: polymer_pipe_flow | C47: =polymer_rate/60 -> 0 | D47: gpm
A48: Polymer pipe diameter | B48: polymer_pipe_diam | C48: =IF(polymer_day=0,0,VLOOKUP(polymer_pipe_flow,pipe_size_table_cl,2)) -> 0 | D48: inches
A50: Building Structure
A51: Backwash tank diameter | B51: bt_diam | C51: =ROUNDUP(2*(MAX((2*back_tank_vol/7.48/PI())^(1/3),(4*back_tank_vol/7.48/PI()/(Building_height-ceiling_clearance))^(1/2))),0)/2 -> 0 | D51: feet
A52: Mixing tank diameter | B52: mx_diam | C52: =ROUNDUP(2*(MAX((2*mix_tank_vol/7.48/PI())^(1/3),(4*mix_tank_vol/7.48/PI()/(Building_height-ceiling_clearance))^(1/2))),0)/2 -> 0 | D52: feet
A53: Salt saturator diameter | B53: ss_diam | C53: =ROUNDUP(VLOOKUP(salt_box_size,saltbox_dim_table_cl,3),0) -> 8 | D53: feet
A54: HCl tank diameter | B54: at_diam | C54: =ROUNDUP(2*(MAX((2*HCl_tank_vol/7.48/PI())^(1/3),(4*HCl_tank_vol/7.48/PI()/(Building_height-ceiling_clearance))^(1/2))),0)/2 -> 0 | D54: feet
A55: NaOH tank diameter | B55: NaOHtank_diam | C55: =ROUNDUP(2*(MAX((2*NaOH_tank_vol/7.48/PI())^(1/3),(4*NaOH_tank_vol/7.48/PI()/(Building_height-ceiling_clearance))^(1/2))),0)/2 -> 0 | D55: feet
A56: NaOH day tank diameter | B56: NaOHdaytank_diam | C56: =ROUNDUP(2*(MAX((2*NaOH_day_tank_vol/7.48/PI())^(1/3),(4*NaOH_day_tank_vol/7.48/PI()/(Building_height-ceiling_clearance))^(1/2))),0)/2 -> 0 | D56: feet
A57: Polymer storage tank diameter | B57: polymer_st_diam | C57: =ROUNDUP((2*(polymer_tank_vol/7.48)/PI())^(1/3),0) -> 0 | D57: feet
A58: Residuals holding tank diameter | B58: ht_diam | C58: =ROUNDUP(2*(MAX((2*htank_vol/7.48/PI())^(1/3),(4*htank_vol/7.48/PI()/(Building_height-ceiling_clearance))^(1/2))),0)/2 -> 0 | D58: feet
A59: Maximum access space per vessel or tank | B59: max_space_vessels | C59: =IF(ss_cat2=1,max_space_vessels_pre,max_space_vessels_cust) -> 6 | D59: feet
A60: Access space per vessel | B60: space_vessels | C60: =IF(tank_geom=2,max_space_vessels,IF(comm_diam>max_space_vessels,max_space_vessels,comm_diam)) -> 6 | D60: feet
A61: Access space per backwash tank | B61: space_bt | C61: =IF(bt_diam>max_space_vessels,max_space_vessels,bt_diam) -> 0 | D61: feet
A62: Access space per regenerant mixing tank | B62: space_st | C62: =IF(mx_diam>max_space_vessels,max_space_vessels,mx_diam) -> 0 | D62: feet
A63: Access space per salt saturator | B63: space_ss | C63: =IF(ss_diam>max_space_vessels,max_space_vessels,ss_diam) -> 6 | D63: feet
A64: Access space per HCl tank | B64: space_at | C64: =IF(at_diam>max_space_vessels,max_space_vessels,at_diam) -> 0 | D64: feet
A65: Access space per NaOH tank | B65: space_NaOHtank | C65: =IF(NaOHtank_diam>max_space_vessels,max_space_vessels,NaOHtank_diam) -> 0 | D65: feet
A66: Access space per NaOH day tank | B66: space_NaOHdaytank | C66: =IF(NaOHdaytank_diam>max_space_vessels,max_space_vessels,NaOHdaytank_diam) -> 0 | D66: feet
A67: Access space per polymer holding tank | B67: space_polymer_st | C67: =IF(polymer_st_diam>max_space_vessels,max_space_vessels,polymer_st_diam) -> 0 | D67: feet
A68: Access space per residuals holding tank | B68: space_ht | C68: =IF(ht_diam>max_space_vessels,max_space_vessels,ht_diam) -> 0 | D68: feet
A69: Access space per pump | B69: space_pumps | C69: =IF(ss_cat2=1,space_pumps_pre,space_pumps_cust) -> 4 | D69: feet
A70: Footprint for vessels (large system assumptions) | C70: =IF(tank_geom=1,ROUNDUP(((comm_diam+2*space_vessels)^2+(final_num_tanks-1)*(comm_diam+2*space_vessels)*(comm_diam+space_vessels)),0),IF(tank_geom=2,ROUNDUP((comm_diam+2*space_vessels)*(comm_height_length+2*space_vessels)+(final_num_tanks-1)*(comm_height_length+2*space_vessels)*(comm_diam+space_vessels),0))) -> 22356 | D70: square feet
A71: Footprint for vessels (skid mounted small system) | C71: =IF(tank_geom=1,ROUNDUP(((comm_diam+2*space_vessels)^2+(final_num_tanks-1)*(comm_diam+2*space_vessels)*(comm_diam+space_vessels/2)),0),IF(tank_geom=2,ROUNDUP((comm_diam+2*space_vessels)*(comm_height_length+2*space_vessels)+(final_num_tanks-1)*(comm_height_length+2*space_vessels)*(comm_diam+space_vessels/2),0))) -> 18354 | D71: square feet | E71: Space between skid mounted vessels is reduced, outside access space remains the same
A72: Footprints for vessels | B72: vessel_fp | C72: =IF(ss_cat2=1,C71,C70) -> 22356 | D72: square feet
A73: Footprint for backwash tank | B73: back_tank_fp | C73: =IF(back_tanks=0,0,ROUNDUP((bt_diam+2*space_bt)^2+(back_tanks-1)*(bt_diam+2*space_bt)*(bt_diam+space_bt),0)) -> 0 | D73: square feet
A74: Booster pump footprint | C74: =IF(total_booster_pumps=0,0,ROUNDUP((VLOOKUP(pump_rating,pump_dim_table_cl,3)+space_pumps)*(VLOOKUP(pump_rating,pump_dim_table_cl,4)+2*space_pumps)+(total_booster_pumps-1)*(VLOOKUP(pump_rating,pump_dim_table_cl,3)+space_pumps)*(VLOOKUP(pump_rating,pump_dim_table_cl,4)+space_pumps),0)) -> 905 | D74: square feet
A75: Backwash pump footprint | C75: =IF(backwash_pumps=0,0,ROUNDUP((VLOOKUP(back_pump_rating,pump_dim_table_cl,3)+space_pumps)*(VLOOKUP(back_pump_rating,pump_dim_table_cl,4)+2*space_pumps)+(backwash_pumps-1)*(VLOOKUP(back_pump_rating,pump_dim_table_cl,3)+space_pumps)*(VLOOKUP(back_pump_rating,pump_dim_table_cl,4)+space_pumps),0)) -> 152 | D75: square feet
A76: Residuals pump footprint | C76: =IF(res_pumps=0,0,ROUNDUP((VLOOKUP(res_pump_rating,pump_dim_table_cl,3)+space_pumps)*(VLOOKUP(res_pump_rating,pump_dim_table_cl,4)+2*space_pumps)+(res_pumps-1)*(VLOOKUP(res_pump_rating,pump_dim_table_cl,3)+space_pumps)*(VLOOKUP(res_pump_rating,pump_dim_table_cl,4)+space_pumps),0)) -> 0 | D76: square feet
A77: Residual solids transfer equipment footprint | C77: =IF(res_transfer_method=1,ROUNDUP(IF(res_transfer_rate<40000,99.152*res_transfer_rate^0.0434,0.8761*res_transfer_rate^0.49),0),0) -> 0 | D77: square feet | E77: If slurry pumps are used
A78: Footprint for pumps | B78: pump_fp | C78: =SUM(C74:C77) -> 1057 | D78: square feet
A79: Footprint for regenerant pumps | B79: regen_pump_fp | C79: =IF(regen_pumps=0,0,ROUNDUP((VLOOKUP(regen_pump_rating,pump_dim_table_cl,3)+space_pumps)*(VLOOKUP(regen_pump_rating,pump_dim_table_cl,4)+2*space_pumps)+(regen_pumps-1)*(VLOOKUP(regen_pump_rating,pump_dim_table_cl,3)+space_pumps)*(VLOOKUP(regen_pump_rating,pump_dim_table_cl,4)+space_pumps),0)) -> 0 | D79: square feet
A80: Footprint for regenerant mixing tanks | B80: mix_tank_fp | C80: =IF(mix_tanks=0,0,ROUNDUP((mx_diam+2*space_st)^2+(mix_tanks-1)*(mx_diam+2*space_st)*(mx_diam+space_st),0)) -> 0 | D80: square feet
A81: Footprint for salt saturators | B81: saltbox_fp | C81: =IF(num_salt_box=0,0,ROUNDUP((VLOOKUP(salt_box_size,saltbox_dim_table_cl,3)+2*space_ss)^2+(num_salt_box-1)*(VLOOKUP(salt_box_size,saltbox_dim_table_cl,3)+2*space_ss)*(VLOOKUP(salt_box_size,saltbox_dim_table_cl,3)+space_ss),0)) -> 0 | D81: square feet
A82: Footprint for chemical storage (salt or FeCl3) | B82: store_fp | C82: =IF(regen_type=2,0,IF(regen_sol=1,IF(brine_method=1,ROUNDUP(salt_store/salt_density/storage_height,0),ROUNDUP((salt_store*add_salt_store/cstore_days)/salt_density/storage_height,0)),ROUNDUP(FeCl3_store/FeCl3_dens/storage_height,0)))+ROUNDUP(coag_store/coag_density/storage_height,0) -> 0 | D82: square feet | E82: Includes coagulant for holding tanks if used
A83: Footprint for HCl tanks | B83: acid_tank_fp | C83: =IF(HCl_tanks=0,0,ROUNDUP((at_diam+2*space_at)^2+(HCl_tanks-1)*(at_diam+2*space_at)*(at_diam+space_at),0)) -> 0 | D83: square feet
A84: Footprint for NaOH storage tanks | B84: NaOH_tank_fp | C84: =IF(NaOH_tanks=0,0,ROUNDUP((NaOHtank_diam+2*space_NaOHtank)^2+(NaOH_tanks-1)*(NaOHtank_diam+2*space_NaOHtank)*(NaOHtank_diam+space_NaOHtank),0)) -> 0 | D84: square feet
A85: Footprint for NaOH day tanks | B85: NaOHday_tank_fp | C85: =IF(NaOH_tanks=0,0,ROUNDUP((NaOHdaytank_diam+2*space_NaOHdaytank)^2+(NaOH_day_tanks-1)*(NaOHdaytank_diam+2*space_NaOHdaytank)*(NaOHdaytank_diam+space_NaOHdaytank),0)) -> 0 | D85: square feet
A86: Polymer storage tank footprint | B86: polymer_fp | C86: =IF(polymer_tanks=0,0,ROUNDUP((polymer_st_diam+2*space_polymer_st)^2+(polymer_tanks-1)*(polymer_st_diam+2*space_polymer_st)*(polymer_st_diam+space_polymer_st),0)) -> 0 | D86: square feet
A87: Residuals holding tank footprint | B87: htank_fp | C87: =IF(OR(res_holding<>"tanks",htanks=0),0,ROUNDUP((ht_diam+2*space_ht)^2+(htanks-1)*(ht_diam+2*space_ht)*(ht_diam+space_ht),0)) -> 0 | D87: square feet
A88: Residuals holding basin footprint | B88: hbasin_fp | C88: =IF(res_holding<>"basins",0,ROUNDUP(hbasins*hbasin_length*hbasin_width*2,0)) -> 0 | D88: square feet
A89: Cartridge filter footprint | B89: cart_fp | C89: =IF(include_cart=0,0,(filter_len+2*space_other_equip)*(filter_wid+2*space_other_equip)+(num_filters-1)*(filter_len+2*space_other_equip)*(filter_wid+space_other_equip)) -> 1967.945139 | D89: square feet
A90: Office space | B90: office_fp | C90: =VLOOKUP(design_flow,labor_table_cl,3)*IF(ss_cat2=1,space_office_small,space_office) -> 780 | D90: square feet
A91: Exact building footprint required | B91: fp_required | C91: =SUM(C78:C90,back_tank_fp,vessel_fp) -> 26160.94514 | D91: square feet
A92: Footprint of building 1 | B92: build1_fp | C92: =ROUNDUP(IF(fp_required<add_2nd_building,fp_required,vessel_fp),-1) -> 22360 | D92: square feet | E92: If total footprint is large, building 1 contains vessels only. If total footprint is small, building 1 contains all equipment.
A93: Footprint of building 2 | B93: build2_fp | C93: =ROUNDUP(IF(fp_required<add_2nd_building,0,SUM(back_tank_fp,C78:C90)),-1) -> 3810 | D93: square feet | E93: If total footprint is large, a second building is used for pumps, backwash, and chemical storage
A94: Actual total building footprint | B94: total_fp | C94: =build1_fp+build2_fp -> 26170 | D94: square feet
A95: Concrete Class A for vessel and pumps padding | B95: concrete | C95: =ROUNDUP((fp_required-office_fp)*IF(ss_cat2=1,pad_thick_small,pad_thick)/27,0) -> 471 | D95: cubic yards
A96: Facility dimension assumed square | B96: facil_length | C96: =ROUNDUP(total_fp^0.5,-1) -> 170 | D96: feet
A97: Additional footprint for evaporation pond | B97: ep_fp | C97: =IF(ep_cells=0,0,ROUNDUP((ep_cell_side+2*non_fire_buffer)^2+(ep_cells-1)*(ep_cell_side+2*non_fire_buffer)*(ep_cell_side+non_fire_buffer),0)) -> 0 | D97: square feet
A98: Land needed | B98: land_required | C98: =ROUNDUP(((build1_fp)^0.5+(2*non_fire_buffer))*((build1_fp)^0.5+(non_fire_buffer+fire_buffer))+IF(build2_fp=0,0,((build2_fp)^0.5+(2*non_fire_buffer))*((build2_fp)^0.5+(non_fire_buffer+fire_buffer)))+ep_fp+solids_pad_area,-2)/43560 -> 0.987144169 | D98: acres
A100: Land acquisition cost | B100: land_cost | C100: =VLOOKUP(design_flow,land_cost_cl,3) -> 111427.5754 | D100: /acre

Sheet Instrumentation and Control
A1: Instrumentation and Control Calculations
A3: Calculation | B3: Range Name | C3: Value | D3: Units | E3: Guidance
A4: From Inputs
A5: Component level | B5: component_level | C5: =IF(component_level_I="high cost",2,IF(component_level_I="mid cost",1,"")) ->  | D5: blank = low cost, 1 = mid cost, 2 = high cost
A6: Manual system controls | B6: manual | C6: =IF(manual_I="manual",1,IF(manual_I="semi-automated",2,IF(manual_I="fully automated",3,IF(component_level="",1,IF(component_level=2,3,CHOOSE(ss_cat2,3,3,3)))))) -> 3 | D6: 1 = fully manual system, 2 = semi-automated system, 3 = fully automated system. | E6: Based on system size and component level (see cell comment), unless user overrides on input sheet
A8: Valves and Instrumentation
A9: Size of valves for inlet and outlet lines | B9: in_valve_size | C9: =in_out_pipe_diam -> 36 | D9: inches
A10: Size of valves for vessel pipe line | B10: tank_valve_size | C10: =proc_pipe_diam -> 12 | D10: inches
A11: Size of valves for backwash line | B11: back_valve_size | C11: =back_pipe_diam -> 8 | D11: inches
A12: Size of valves for regenerant line | B12: brine_valve_size | C12: =brine_pipe_diam -> 0 | D12: inches
A13: Size of valves for acid line | B13: acid_valve_size | C13: =acid_pipe_diam -> 0 | D13: inches
A14: Size of valves for caustic line | B14: caustic_valve_size | C14: =caustic_pipe_diam -> 0 | D14: inches
A15: Size of valves for bypass line | B15: bypass_valve_size | C15: =bp_pipe_diam -> 0 | D15: inches
A16: Size of valves for polymer line | B16: polymer_valve_size | C16: =polymer_pipe_diam -> 0 | D16: inches
A18: Number of MOVs for process line per vessel | B18: proc_MOV_vessel | C18: =VLOOKUP(IF(Num_tanks=1,"proc_mov_vessel_par","proc_mov_vessel_ser"),valve_table,manual+1,FALSE) -> 2 | D18: valves/vessel | E18: Depends on whether system is operated in parallel or series (lead/lag)
A19: Number of MOVs for process line | B19: tot_proc_MOVs | C19: =final_num_tanks*proc_MOV_vessel+total_booster_pumps*VLOOKUP("proc_MOV_pump",valve_table,manual+1,FALSE)+num_filters*VLOOKUP("proc_MOV_filter",valve_table,manual+1,FALSE) -> 103 | D19: valves
A20: Number of MOVs for backwash line | B20: tot_back_MOVs | C20: =IF(back_pipe_length=0,0,final_num_tanks*VLOOKUP("back_MOV_vessel",valve_table,manual+1,FALSE)+backwash_pumps*VLOOKUP("back_MOV_pump",valve_table,manual+1,FALSE)+back_tanks*VLOOKUP("back_MOV_tank",valve_table,manual+1,FALSE)+IF(regen_sol=2,mix_tanks,IF(brine_method=1,mix_tanks,num_salt_box))*VLOOKUP("back_MOV_brine",valve_table,manual+1,FALSE)+VLOOKUP("back_MOV_add",valve_table,manual+1,FALSE)+VLOOKUP("back_MOV_eductor",valve_table,manual+1,FALSE)*eductors) -> 63 | D20: valves
A21: Number of MOVs for regenerant line | B21: tot_brine_MOVs | C21: =IF(brine_pipe_length=0,0,IF(regen_sol=2,final_num_tanks*VLOOKUP("brine_MOV_vessel",valve_table,manual+1,FALSE)+mix_tanks*VLOOKUP("brine_MOV_tank",valve_table,manual+1,FALSE)+regen_pumps*VLOOKUP("brine_MOV_pump",valve_table,manual+1,FALSE),IF(brine_method=1,mix_tanks,num_salt_box)*VLOOKUP("brine_MOV_tank",valve_table,manual+1,FALSE)+VLOOKUP("brine_MOV_vessel",valve_table,manual+1,FALSE)*final_num_tanks)) -> 0 | D21: valves
A22: Number of MOVs for acid line | B22: tot_acid_MOVs | C22: =IF(acid_pipe_length=0,0,HCl_tanks*VLOOKUP("acid_MOV_tank",valve_table,manual+1,FALSE)+(mix_pumps+rinse_pumps)*VLOOKUP("acid_MOV_pump",valve_table,manual+1,FALSE)+mix_tanks*VLOOKUP("acid_MOV_mixtank",valve_table,manual+1,FALSE)) -> 0 | D22: valves | E22: Applies only with tetrachlorferrate regeneration
A23: Number of MOVs for caustic line | B23: tot_caustic_MOVs | C23: =IF(caustic_pipe_length=0,0,pH_pumps*VLOOKUP("caustic_MOV_pump",valve_table,manual+1,FALSE)+VLOOKUP("chem_MOV_day",valve_table,manual+1,FALSE)*NaOH_day_tanks) -> 0 | D23: valves | E23: Applies only with pH adjustment
A24: Number of MOVs for bypass line | B24: tot_bp_MOVs | C24: =IF(bp_pipe_length=0,0,VLOOKUP("tot_bp_movs",valve_table,manual+1,FALSE)) -> 0 | D24: valves
A25: Number of MOVs for polymer addition line | B25: tot_polymer_MOVs | C25: =IF(polymer_day=0,0,(cm_pumps_polymer)*VLOOKUP("chem_MOV_pump",valve_table,manual+1,FALSE)) -> 0 | D25: valves
A26: Total number of MOVs | B26: tot_MOVs | C26: =tot_bp_MOVs+tot_caustic_MOVs+tot_acid_MOVs+tot_brine_MOVs+tot_back_MOVs+tot_proc_MOVs+tot_polymer_MOVs -> 166 | D26: valves
A28: Number of manual valves for process line per vessel | B28: proc_man_vessel_cont | C28: =VLOOKUP(IF(Num_tanks=1,"proc_man_vessel_par","proc_man_vessel_ser"),valve_table,manual+1,FALSE) -> 0 | D28: valves/vessel | E28: Depends on whether system is operated in parallel or series (lead/lag)
A29: Number of manual valves for process line | B29: tot_proc_man | C29: =(proc_man_vessel_cont+proc_man_vessel)*final_num_tanks+total_booster_pumps*VLOOKUP("proc_man_pump",valve_table,manual+1,FALSE)+num_filters*VLOOKUP("proc_man_filter",valve_table,manual+1,FALSE) -> 30 | D29: valves
A30: Number of manual valves for backwash line | B30: tot_back_man | C30: =IF(back_pipe_length=0,0,final_num_tanks*VLOOKUP("back_man_vessel",valve_table,manual+1,FALSE)+backwash_pumps*VLOOKUP("back_man_pump",valve_table,manual+1,FALSE)+back_tanks*VLOOKUP("back_man_tank",valve_table,manual+1,FALSE)+IF(regen_sol=2,mix_tanks,IF(brine_method=1,mix_tanks,num_salt_box)*VLOOKUP("back_man_brine",valve_table,manual+1,FALSE)+VLOOKUP("back_man_add",valve_table,manual+1,FALSE)+VLOOKUP("back_man_eductor",valve_table,manual+1,FALSE)*eductors)) -> 0 | D30: valves
A31: Number of manual valves for regenerant line | B31: tot_brine_man | C31: =IF(brine_pipe_length=0,0,IF(regen_sol=2,final_num_tanks*VLOOKUP("brine_man_vessel",valve_table,manual+1,FALSE)+mix_tanks*VLOOKUP("brine_man_tank",valve_table,manual+1,FALSE)+regen_pumps*VLOOKUP("brine_man_pump",valve_table,manual+1,FALSE),IF(brine_method=1,mix_tanks,num_salt_box)*VLOOKUP("brine_man_tank",valve_table,manual+1,FALSE)+VLOOKUP("brine_man_vessel",valve_table,manual+1,FALSE)*final_num_tanks)) -> 0 | D31: valves
A32: Number of manual valves for acid line | B32: tot_acid_man | C32: =IF(acid_pipe_length=0,0,HCl_tanks*VLOOKUP("acid_man_tank",valve_table,manual+1,FALSE)+(mix_pumps+rinse_pumps)*VLOOKUP("acid_man_pump",valve_table,manual+1,FALSE)+mix_tanks*VLOOKUP("acid_man_mixtank",valve_table,manual+1,FALSE)) -> 0 | D32: valves | E32: Applies only with tetrachlorferrate regeneration
A33: Number of manual valves for caustic line | B33: tot_caustic_man | C33: =IF(caustic_pipe_length=0,0,pH_pumps*VLOOKUP("caustic_man_pump",valve_table,manual+1,FALSE)+VLOOKUP("chem_man_day",valve_table,manual+1,FALSE)*NaOH_day_tanks) -> 0 | D33: valves | E33: Applies only with pH adjustment
A34: Number of manual valves for bypass line | B34: tot_bp_man | C34: =IF(bp_pipe_length=0,0,VLOOKUP("tot_bp_man",valve_table,manual+1,FALSE)) -> 0 | D34: valves
A35: Number of manual valves for polymer addition line | B35: tot_polymer_man | C35: =IF(polymer_day=0,0,(cm_pumps_polymer)*VLOOKUP("chem_man_pump",valve_table,manual+1,FALSE)) -> 0 | D35: valves
A37: Number of check valves backwash line | B37: tot_back_chv | C37: =back_chv_pump*backwash_pumps -> 2 | D37: valves
A38: Number of check valves regenerant line | B38: tot_brine_chv | C38: =brine_chv_pump*regen_pumps -> 0 | D38: valves
A39: Number of check valves acid line | B39: tot_acid_chv | C39: =acid_chv_pump*(mix_pumps+rinse_pumps) -> 0 | D39: valves
A40: Number of check valves caustic line | B40: tot_caustic_chv | C40: =caustic_chv_pump*pH_pumps -> 0 | D40: valves | E40: Applies only with pH adjustment
A41: Number of check valves polymer line | B41: tot_polymer_chv | C41: =polymer_chv_pump*cm_pumps_polymer -> 0 | D41: valves
A43: Size of flow meters for influent line | B43: in_meter_size | C43: =in_out_pipe_diam -> 36 | D43: inches
A44: Size of flow meters for process line | B44: proc_meter_size | C44: =proc_pipe_diam -> 12 | D44: inches
A45: Size of flow meters for backwash line | B45: back_meter_size | C45: =back_pipe_diam -> 8 | D45: inches
A46: Number of flow meters for process line | B46: tot_fm_proc | C46: =fm_proc*final_num_tanks -> 0 | D46: units
A47: Total flow meters for backwash line | B47: tot_fm_back | C47: =IF(max_back_flow=0,0,fm_back) -> 1 | D47: units
A49: Total level switch/alarms | B49: tot_level_switch | C49: =final_num_tanks*IF(ss_cat2=1,level_switch_small,level_switch) -> 0 | D49: units
A50: Total high/low alarms for backwash tanks | B50: tot_back_alarm | C50: =back_tanks*alarm_back -> 0 | D50: units
A51: Total high/low alarms for mixing tanks | B51: tot_brine_alarm | C51: =alarm_brine*mix_tanks -> 0 | D51: units
A52: Total high/low alarms for HCl tanks | B52: tot_acid_alarm | C52: =alarm_acid*HCl_tanks -> 0 | D52: units
A53: Total high/low alarms for NaOH tanks | B53: tot_caustic_alarm | C53: =alarm_caustic*(NaOH_tanks+NaOH_day_tanks) -> 0 | D53: units
A54: pH meters | B54: pH_controls | C54: =IF(pH_adj="yes",pH_corr,pH_nocorr) -> 0 | D54: units
A55: Total turbidity meters | B55: tot_turb_meters | C55: =IF(ss_cat2=1,turb_tank_small*final_num_tanks+add_turb_small,turb_tank*final_num_tanks+add_turb) -> 1 | D55: units
A56: Total conductivity meters | B56: tot_cond_meters | C56: =cond_tank*final_num_tanks+add_cond -> 0 | D56: units
A57: Total head loss sensors | B57: tot_head_sens | C57: =IF(ss_cat2=1,head_tank_small,head_tank)*final_num_tanks+headloss_cart*num_filters -> 59 | D57: units
A58: Sampling ports | B58: ports | C58: =ports_tank*final_num_tanks+add_ports+IF(bp_pct>0,ports_bp,0) -> 33 | D58: units
A59: Total drive controllers | B59: tot_switches | C59: =IF(manual=2,0,S_booster_pump*total_booster_pumps+S_back_pump*backwash_pumps+S_res_pump*(res_pumps+cm_pumps_polymer)+S_eductor*eductors+S_mixer*(mixers+hmixers)+S_cm_pump*(rinse_pumps+mix_pumps+pH_pumps)+S_regen_pump*regen_pumps+S_chem_feed*(OUTPUT!L240*num_vol+OUTPUT!L241*num_grav)+IF(res_grav_feed_rate<>0,S_feeder*IF(res_holding="tanks",htanks,IF(res_holding="basins",hbasins,0)),0)+S_mixer*(dmixers+cmixers+hmixers)) -> 9 | D59: units
A61: System Controls
A62: Flow meter lookup code - inlet/outlet | B62: fm_lkp_io | C62: =IF(OUTPUT!L250=1,"flow_op",IF(OUTPUT!L251=1,"flow_prop",IF(OUTPUT!L252=1,"flow_ven","flow_mag"))) -> flow_op | E62: These codes are used to look up SCADA requirements, which depend on the type of flow meter selected.
A63: Flow meter lookup code - process | B63: fm_lkp_proc | C63: =IF(OUTPUT!L255=1,"flow_op",IF(OUTPUT!L256=1,"flow_prop",IF(OUTPUT!L257=1,"flow_ven","flow_mag"))) -> flow_mag
A64: Flow meter lookup code - backwash | B64: fm_lkp_back | C64: =IF(OUTPUT!L260=1,"flow_op",IF(OUTPUT!L261=1,"flow_prop",IF(OUTPUT!L262=1,"flow_ven","flow_mag"))) -> flow_ven
A65: Flow meter lookup code - residuals | B65: fm_lkp_res | C65: =IF(OUTPUT!L265=1,"flow_op",IF(OUTPUT!L266=1,"flow_prop",IF(OUTPUT!L267=1,"flow_ven","flow_mag"))) -> flow_ven
A66: Total discrete inputs | B66: discrete_inputs | C66: =VLOOKUP(fm_lkp_io,port_table,2,FALSE)*tot_fm_in+VLOOKUP(fm_lkp_proc,port_table,2,FALSE)*tot_fm_proc+VLOOKUP(fm_lkp_back,port_table,2,FALSE)*tot_fm_back+VLOOKUP(fm_lkp_res,port_table,2,FALSE)*tot_fm_res+VLOOKUP("alarm",port_table,2,FALSE)*(tot_level_switch+tot_back_alarm+tot_brine_alarm+tot_acid_alarm+tot_caustic_alarm+tot_res_alarm)+VLOOKUP("orp",port_table,2,FALSE)*ORP_sensor+VLOOKUP("ph",port_table,2,FALSE)*pH_controls+VLOOKUP("temp",port_table,2,FALSE)*IF(ss_cat2=1,temp_meters_small,temp_meters)+VLOOKUP("cond",port_table,2,FALSE)*tot_cond_meters+VLOOKUP("turb",port_table,2,FALSE)*tot_turb_meters+VLOOKUP("head",port_table,2,FALSE)*tot_head_sens+VLOOKUP("port",port_table,2,FALSE)*ports+VLOOKUP("switch",port_table,2,FALSE)*tot_switches+VLOOKUP("valve",port_table,2,FALSE)*tot_MOVs -> 119 | D66: units
A67: Total discrete outputs | B67: discrete_outputs | C67: =IF(manual=2,0,VLOOKUP(fm_lkp_io,port_table,3,FALSE)*tot_fm_in+VLOOKUP(fm_lkp_proc,port_table,3,FALSE)*tot_fm_proc+VLOOKUP(fm_lkp_back,port_table,3,FALSE)*tot_fm_back+VLOOKUP(fm_lkp_res,port_table,3,FALSE)*tot_fm_res+VLOOKUP("alarm",port_table,3,FALSE)*(tot_level_switch+tot_back_alarm+tot_brine_alarm+tot_acid_alarm+tot_caustic_alarm+tot_res_alarm)+VLOOKUP("orp",port_table,3,FALSE)*ORP_sensor+VLOOKUP("ph",port_table,3,FALSE)*pH_controls+VLOOKUP("temp",port_table,3,FALSE)*IF(ss_cat2=1,temp_meters_small,temp_meters)+VLOOKUP("cond",port_table,3,FALSE)*tot_cond_meters+VLOOKUP("turb",port_table,3,FALSE)*tot_turb_meters+VLOOKUP("head",port_table,3,FALSE)*tot_head_sens+VLOOKUP("port",port_table,3,FALSE)*ports+VLOOKUP("switch",port_table,3,FALSE)*tot_switches+VLOOKUP("valve",port_table,3,FALSE)*tot_MOVs) -> 9 | D67: units
A68: Total analog inputs | B68: analog_inputs | C68: =VLOOKUP(fm_lkp_io,port_table,4,FALSE)*tot_fm_in+VLOOKUP(fm_lkp_proc,port_table,4,FALSE)*tot_fm_proc+VLOOKUP(fm_lkp_back,port_table,4,FALSE)*tot_fm_back+VLOOKUP(fm_lkp_res,port_table,4,FALSE)*tot_fm_res+VLOOKUP("alarm",port_table,4,FALSE)*(tot_level_switch+tot_back_alarm+tot_brine_alarm+tot_acid_alarm+tot_caustic_alarm+tot_res_alarm)+VLOOKUP("orp",port_table,4,FALSE)*ORP_sensor+VLOOKUP("ph",port_table,4,FALSE)*pH_controls+VLOOKUP("temp",port_table,4,FALSE)*IF(ss_cat2=1,temp_meters_small,temp_meters)+VLOOKUP("cond",port_table,4,FALSE)*tot_cond_meters+VLOOKUP("turb",port_table,4,FALSE)*tot_turb_meters+VLOOKUP("head",port_table,4,FALSE)*tot_head_sens+VLOOKUP("port",port_table,4,FALSE)*ports+VLOOKUP("switch",port_table,4,FALSE)*tot_switches+VLOOKUP("valve",port_table,4,FALSE)*tot_MOVs -> 174 | D68: units
A69: Total analog outputs | B69: analog_outputs | C69: =IF(manual=2,0,VLOOKUP(fm_lkp_io,port_table,5,FALSE)*tot_fm_in+VLOOKUP(fm_lkp_proc,port_table,5,FALSE)*tot_fm_proc+VLOOKUP(fm_lkp_back,port_table,5,FALSE)*tot_fm_back+VLOOKUP(fm_lkp_res,port_table,5,FALSE)*tot_fm_res+VLOOKUP("alarm",port_table,5,FALSE)*(tot_level_switch+tot_back_alarm+tot_brine_alarm+tot_acid_alarm+tot_caustic_alarm+tot_res_alarm)+VLOOKUP("orp",port_table,5,FALSE)*ORP_sensor+VLOOKUP("ph",port_table,5,FALSE)*pH_controls+VLOOKUP("temp",port_table,5,FALSE)*IF(ss_cat2=1,temp_meters_small,temp_meters)+VLOOKUP("cond",port_table,5,FALSE)*tot_cond_meters+VLOOKUP("turb",port_table,5,FALSE)*tot_turb_meters+VLOOKUP("head",port_table,5,FALSE)*tot_head_sens+VLOOKUP("port",port_table,5,FALSE)*ports+VLOOKUP("switch",port_table,5,FALSE)*tot_switches+VLOOKUP("valve",port_table,5,FALSE)*tot_MOVs) -> 169 | D69: units
A70: Total I/O ports | B70: total_ioports | C70: =discrete_inputs+discrete_outputs+analog_inputs+analog_outputs -> 471 | D70: units
A71: I/O Discrete Output Modules | B71: plc_discrete_output | C71: =ROUNDUP(discrete_outputs/32,0) -> 1 | D71: units
A72: I/O Discrete Input Modules | B72: plc_discrete_input | C72: =ROUNDUP(discrete_inputs/32,0) -> 4 | D72: units
A73: I/O Combination Analog Modules | B73: plc_combination_analog | C73: =ROUNDUP((analog_inputs + analog_outputs)/12,0) -> 29 | D73: units
A74: Total number of PLC slots used | B74: plc_slots | C74: =plc_cpu + plc_ethernet + plc_discrete_input + plc_discrete_output + plc_combination_analog -> 38 | D74: units
A75: Expansions required | B75: plc_expansions | C75: =IF(plc_slots<=9,0,ROUNDUP((plc_slots-9)/8,0)) -> 4 | D75: units
A76: PLC Rack/Power Supplies | B76: plc_rack | C76: =1+plc_expansions -> 5 | D76: units
A77: Base Expansion Modules | B77: plc_base_expansion | C77: =plc_expansions -> 4 | D77: units
A78: Base Expansion Controller Modules | B78: plc_base_expansion_controller | C78: =plc_expansions -> 4 | D78: units
A79: Number of computer workstations | B79: workstations | C79: =ROUNDUP(Operator_LOE/2080/shifts_day/workstation_ratio,0) -> 1 | D79: units
A80: Number of printers | B80: printers | C80: =ROUNDUP(workstations/printer_ratio,0) -> 1 | D80: units

Sheet Residuals Management
A1: Residuals Management Calculations
A3: Calculation | B3: Range Name | C3: Value | D3: Units | E3: Guidance
A4: From Inputs
A5: Discharge option for spent regenerant/backwash | B5: res_s2_opt | C5: =IF(res_s2_opt_I="","",IF(res_s2_opt_I="surface water",1,IF(res_s2_opt_I="POTW",2,IF(res_s2_opt_I="evaporation pond",3,4)))) -> 2 | D5: <-- 1 for direct discharge to surface water, 2 for discharge to POTW, 3 for evaporation pond, 4 for hazardous waste disposal
A6: Holding tank for spent regenerant/backwash | B6: res_s1_opt | C6: =IF(res_s1_opt_I="","",IF(res_s2_opt<>3,IF(OR(res_s1_opt_I="holding tank",res_s2_opt=4),1,2),"")) -> 2 | D6: =IF(res_s2_opt<>3,"<-- 1 for holding tank, 2 for no holding tank (input ignored if continuous regeneration is required)","") -> <-- 1 for holding tank, 2 for no holding tank (input ignored if continuous regeneration is required)
A7: Characteristics of spent resin | B7: media_haz | C7: =IF(media_haz_I="hazardous",2,IF(media_haz_I="radioactive",3,IF(media_haz_I="radioactive hazardous",4,1))) -> 1 | D7: <-- 1 for non-hazardous, 2 for hazardous, 3 for radioactive, 4 for radioactive hazardous
A8: =IF(res_s2_opt=3,"Characteristics of evaporation pond solids","Characteristics of holding tank solids") -> Characteristics of holding tank solids | B8: solids_haz | C8: =IF(solids_haz_I="hazardous",2,IF(solids_haz_I="radioactive",3,IF(solids_haz_I="radioactive hazardous",4,1))) -> 1 | D8: <-- 1 for non-hazardous, 2 for hazardous, 3 for radioactive, 4 for radioactive hazardous
A11: Spent Regenerant/Backwash
A12: Regenerant volume per vessel | B12: regen_vol | C12: =IF(regen_type=2,0,IF(regen_sol=1,vol_brine,vol_FeCl4+HCl_in_rinse)) -> 0 | D12: gal | E12: Regnerant only, not backwash/rinse water
A13: Single regeneration/replacement event volume | B13: res_vol | C13: =(total_backwash+regen_vol/(regen_reuse+1)) -> 12240 | D13: gal | E13: Regeneration/intial rinse for one vessel
A14: Single out-of-cycle backwash event volume | B14: res_outcycle_vol | C14: =IF(add_backwash_freq=0,0,total_backwash) -> 0 | D14: gal | E14: Backwashing one vessel
A15: Time between regen/replace events | B15: res_stagger_time | C15: =IF(regen_redun>1,"NA",regen_days*24*60/num_treat_lines) -> 58539.13043 | D15: minutes | E15: NA if continuous regeneration is required
A16: Time between out-of-cycle backwash events | B16: res_outcycle_stagger_time | C16: =add_backwash_freq*24*60/final_num_tanks -> 0 | D16: minutes | E16: Zero indicates no out-of-cycle backwash
A17: Actual residuals discharge flow rate | B17: res_flow_actual | C17: =IF(regen_redun>1,res_vol*regen_redun/regeneration_downtime,IF(AND(res_s1_opt=1,res_s2_opt<>3),res_vol/res_stagger_time,res_vol*regen_redun/regeneration_downtime)) -> 370.9090909 | D17: gpm | E17: Accounts for flow equalization if holding tanks used
A18: Actual out-of-cycle backwash discharge flow rate | B18: res_outcycle_flow_actual | C18: =IF(add_backwash_freq=0,0,IF(AND(res_s1_opt=1,res_s2_opt<>3),res_outcycle_vol/res_outcycle_stagger_time,total_backwash/backwash_time)) -> 0 | D18: gpm | E18: Accounts for flow equalization if holding tanks used
A19: Design residuals discharge flow rate | B19: res_flow | C19: =IF(regen_redun>1,res_flow_actual,IF(AND(res_s1_opt=1,res_s2_opt<>3),res_cap_factor*res_vol/res_stagger_time,res_flow_actual)) -> 370.9090909 | D19: gpm | E19: Accounts for less than perfect staggering if holding tanks are used
A20: Design out-of-cycle residuals discharge flow rate | B20: res_outcycle_flow | C20: =IF(add_backwash_freq=0,0,IF(AND(res_s1_opt=1,res_s2_opt<>3),res_cap_factor*res_outcycle_vol/res_outcycle_stagger_time,res_outcycle_flow_actual)) -> 0 | D20: gpm | E20: Accounts for less than perfect staggering if holding tanks are used
A21: Annual residuals dischage | B21: res_flow_annual | C21: =IF(regen_redun>1,res_flow*365*24*60,res_vol*final_num_tanks*(365/regen_days))+IF(add_backwash_freq=0,0,res_outcycle_vol*final_num_tanks*(365/add_backwash_freq)) -> 253611.1888 | D21: gal | E21: Total including any out-of-cycle backwash
A22: Regenerant portion of annual residuals discharge | B22: regen_flow_annual | C22: =IF(regen_redun>1,(regen_vol/(regen_reuse+1)*regen_redun/regeneration_downtime)*365*24*60,regen_vol/(regen_reuse+1)*num_treat_lines*(365/regen_days)) -> 0 | D22: gal
A24: Evaporation Pond or Holding Tank Solids | E24: Does not currently account for contaminant contribution to solids
A25: TSS in residuals (influent TSS removal contribution) | C25: =(influent_TSS-effluent_TSS)*average_flow*1000000*365/res_flow_annual -> 81033.33333 | D25: ppm
A26: TSS in residuals (media attrition contribution) | C26: =resin_loss_vol_annual*media_density*453590/(res_flow_annual*3.78) -> 0 | D26: ppm
A27: TSS in residuals | B27: TSS_residuals | C27: =SUM(C25:C26) -> 81033.33333 | D27: ppm
A28: Evaporation pond TSS accumulation | C28: =IF(res_s2_opt=3,TSS_residuals*res_flow_annual*3.785/1000/453.59/dredging_freq,0) -> 0 | D28: lbs
A29: Evaporation pond TDS (regenerant) accumulation | C29: =IF(res_s2_opt=3,IF(regen_sol=1,brine_conc*regen_flow_annual/dredging_freq,IF(regen_vol=0,0,(FeCl3_in_solution/regen_vol)*regen_flow_annual/dredging_freq)),0) -> 0 | D29: lbs
A30: Total evaporation pond solids accumulation | B30: ep_solids | C30: =C28+C29 -> 0 | D30: lbs | E30: Conservative estimate assumes all TSS removed in regeneration, no regenerant loss during regeneration
A31: Holding tank annual TSS accumulation | C31: =IF(res_holding<>"none",TSS_residuals*IF(coag_res=1,coag_TSSrem,htank_TSSrem)*res_flow_annual*3.785/1000/453.59,0) -> 0 | D31: lbs/year
A32: Holding tank annual coagulant accumulation | C32: =IF(AND(res_holding<>"none",coag_res=1),IF(coag_type<>1,coag_dose*coag_spf*8.34*res_flow_annual/10^6,0)+IF(coag_type<>2,polymer_dose*polymer_spf*8.34*res_flow_annual/10^6,0),0) -> 0 | D32: lbs/year
A33: Holding tank annual solids accumulation | B33: ht_solids | C33: =C32+C31 -> 0 | D33: lbs/year
A34: Holding tank cleaning frequency | B34: ht_clean_freq | C34: =IF(res_holding="none",0,ROUNDUP((ht_solids/ht_solids_density*7.48)/(IF(res_holding="tanks",htanks*htank_vol,hbasins*hbasin_vol)*htank_clean_pct),0)) -> 0 | D34: times per year
A35: Residual solids quantity (total per event) | B35: res_solids | C35: =IF(res_s2_opt=3,ep_solids,IF(OR(res_holding="none",ht_solids=0),0,ht_solids/ht_clean_freq))/2000 -> 0 | D35: tons
A36: Residual solids disposal frequency | B36: sol_disp_freq | C36: =IF(res_s2_opt=3,dredging_freq,IF(res_s1_opt=1,ht_clean_freq,0)) -> 0 | D36: times per year
A38: Spent Media
A39: Replacement/disposal frequency | B39: disp_freq | C39: =IF(regen_type=1,1/resin_life,365/regen_days) -> 0.6906622789 | D39: times per year
A40: Spent media quantity (total per event) | B40: spent_media | C40: =IF(regen_type=1,total_media-resin_loss_vol_annual*media_density,media_per_vessel*num_treat_lines)/2000 -> 228.072 | D40: tons | E40: For regenerated systems this is reduced by one year's media loss, assuming disposal takes place before adding loss replacement for the year
A41: Spent resin quantity (average per year) | B41: spent_media_yr | C41: =spent_media*disp_freq -> 157.5207273 | D41: tons
A43: Spent Cartridge Filters
A44: Replacement/disposal frequency | B44: cart_disp_freq | C44: =12/cart_life -> 2.4 | D44: times per year
A45: Disposal weight (total per event) | B45: cart_disp_wt | C45: =active_filters*filter_elements*VLOOKUP(filter_size,cart_wt_table,3)/2000 -> 6.48 | D45: tons
A47: Capital Items
A48: Holding tanks (for flow equalization)
A49: Maximum holding tank size | B49: max_htank_size | C49: =MAX(VLOOKUP(10^6,st_bwt_cost_cl,1)-1,VLOOKUP(10^6,fg_bwt_cost_cl,1)-1,VLOOKUP(10^6,hdpe_bwt_cost_cl,1)-1) -> 282094 | D49: gal | E49: The largest size for which costs are available.
A50: Number of holding tanks | B50: htanks | C50: =IF(coag_res=1,0,IF(regen_redun>1,0,IF(AND(res_s1_opt=1,res_s2_opt<>3),ROUNDUP(MAX(res_flow*res_stagger_time,res_outcycle_flow*res_outcycle_stagger_time)/max_htank_size,0),0))) -> 0 | D50: units | E50: Use basins, instead of tanks, when cogulant is added
A51: Holding tank volume | B51: htank_vol | C51: =IF(htanks=0,0,res_cap_factor*MAX(regen_redun*res_vol,res_outcycle_vol)/htanks) -> 0 | D51: gal
A53: Holding basins (for flow equalization)
A54: Holding basin redundancy factor | B54: hbasin_redun | C54: =IF(coag_res=1,ROUNDUP(res_coag_settle_time/IF(res_outcycle_vol=0,res_stagger_time,MIN(res_stagger_time,res_outcycle_stagger_time)),0),1) -> 1 | E54: To account for minumum coagulation time, when concrete basins are used, rather than tanks
A55: Number of holding basins | B55: hbasins | C55: =IF(regen_redun>1,0,IF(AND(res_s1_opt=1,res_s2_opt<>3),hbasins_default*hbasin_redun,0)) -> 0 | D55: units | E55: If concrete basins are used, rather than tanks
A56: Total residuals storage volume in cubic feet | B56: total_hvol_ft | C56: =IF(hbasins=0,0,MAX(res_cap_factor*res_vol,res_cap_factor*res_outcycle_vol)*hbasin_redun/7.48) -> 0 | D56: cubic feet | E56: If concrete basins are used, rather than tanks
A57: Residuals storage volume per basin in cubic feet | B57: hvol_ft | C57: =IF(hbasins=0,0,total_hvol_ft/hbasins) -> 0 | D57: cubic feet | E57: If concrete basins are used, rather than tanks
A58: Holiding basin operating depth | B58: hbasin_op_depth | C58: =IF(hbasins=0,0,ROUNDUP(hvol_ft^(1/3)*holding_ratio,0)) -> 0 | D58: ft | E58: If concrete basins are used, rather than tanks
A59: Holiding basin width | B59: hbasin_width | C59: =IF(hbasins=0,0,ROUNDUP((hvol_ft/hbasin_op_depth)^0.5,0)) -> 0 | D59: ft | E59: If concrete basins are used, rather than tanks
A60: Holiding basin length | B60: hbasin_length | C60: =hbasin_width -> 0 | D60: ft | E60: If concrete basins are used, rather than tanks
A61: Holiding basin depth including freeboard | B61: hbasin_depth | C61: =IF(hbasins=0,0,hbasin_op_depth+holding_freeboard) -> 0 | D61: ft | E61: If concrete basins are used, rather than tanks
A62: Holiding basin volume | B62: hbasin_vol | C62: =ROUND(hbasin_width*hbasin_length*hbasin_depth*7.48,0) -> 0 | D62: gal | E62: If concrete basins are used, rather than tanks
A63: Concrete volume | B63: hconc_vol | C63: =(2*(hbasin_width*hbasins+conc_thick*(hbasins+1))*hbasin_depth*conc_thick+(hbasins+1)*hbasin_length*hbasin_depth*conc_thick+(hbasin_length+2*conc_thick)*(hbasin_width*hbasins+conc_thick*(hbasins+1))*conc_thick)/27 -> 0.07407407407 | D63: cubic yards | E63: If concrete basins are used, rather than tanks
A64: Excavation volume | B64: hexcavation_vol | C64: =IF(hbasins=0,0,((hbasins*hbasin_width+(hbasins+1)*conc_thick+overexcavate)*(hbasin_length+2*conc_thick+overexcavate)*(hbasin_depth+conc_thick+overexcavate)+0.5*(3*(hbasin_depth+conc_thick+overexcavate)*(hbasin_depth+conc_thick+overexcavate)*(hbasin_length+2*conc_thick+overexcavate)))/27) -> 0 | D64: cubic yards | E64: If concrete basins are used, rather than tanks
A65: Backfill volume | B65: hbackfill_vol | C65: =IF(hbasins=0,0,hexcavation_vol-(hbasins*hbasin_width+(hbasins+1)*conc_thick)*(hbasin_length+2*conc_thick)*(hbasin_depth+conc_thick)/27) -> 0 | D65: cubic yards | E65: If concrete basins are used, rather than tanks
A66: Railing length | B66: hrailing | C66: =IF(hbasins=0,0,2*(hbasins*hbasin_width+2*conc_thick/2+(hbasins-1)*conc_thick)+2*(hbasin_length+2*conc_thick/2)) -> 0 | D66: lf | E66: If concrete basins are used, rather than tanks
A68: Residuals holding type selected | B68: res_holding | C68: =IF(AND(hbasins<>0,coag_res=1),"basins",IF(OUTPUT!L72=1,"basins",IF(OR(OUTPUT!L73=1,OUTPUT!L74=1,OUTPUT!L75=1),"tanks","none"))) -> none | D68: units | E68: Basins when coagulant is added; otherwise based on priority lookups on the output sheet
A70: Ferric Chloride Addition
A71: Maximum gravimetric feeder size | B71: max_grav_size | C71: =VLOOKUP(10^6,grav_feed_cost_cl,1)-0.1 -> 107.4 | D71: lb/min | E71: The largest size for which costs are available.
A72: Gravimetric dry feeder rating | B72: res_grav_feed_rate | C72: =IF(AND(res_holding<>"none",coag_res=1,coag_type<>1),coag_dose*8.34*MAX(res_vol/regeneration_downtime,res_outcycle_vol/backwash_time)/10^6/IF(res_holding="tanks",htanks,hbasins),0) -> 0 | D72: lbs/min
A73: Maximum volumentric feeder size | B73: max_vol_size | C73: =VLOOKUP(10^6,vol_feed_cost_cl,1)-0.001 -> 2.509 | D73: cfm | E73: The largest size for which costs are available.
A74: Volumetric dry feeder rating | B74: res_vol_feed_rate | C74: =res_grav_feed_rate/coag_density -> 0 | D74: cfm
A75: Mixers per tank | B75: hmix_per_tank | C75: =IF(AND(res_holding<>"none",coag_res=1,coag_type<>1),ROUNDUP(IF(res_holding="tanks",htank_vol,hbasin_vol)/1000*hmix_hp_per/hmix_hp_max,0),0) -> 0 | D75: units
A76: Max holding tank mixer horsepower | B76: hmix_hp_max | C76: =VLOOKUP(10^6,imp_mix_cost_cl,1)-0.1 -> 20 | D76: hp | E76: The largest impeller mixer size available
A77: Number of mixers | B77: hmixers | C77: =IF(AND(res_holding<>"none",coag_res=1,coag_type<>1),IF(res_holding="tanks",htanks,hbasins)*hmix_per_tank,0) -> 0 | D77: units
A78: Mixer size for holding tanks (if coagulant is used) | B78: hmix_size | C78: =IF(AND(res_holding<>"none",coag_res=1,coag_type<>1),MAX(min_hmix_hp,IF(res_holding="tanks",htank_vol,hbasin_vol)/1000*hmix_hp_per/hmix_per_tank),0) -> 0 | D78: hp
A79: Ferric chloride in storage | B79: coag_store | C79: =IF(AND(res_holding<>"none",coag_res=1,coag_type<>1),coag_dose*8.34*res_flow_annual/10^6/365*cstore_days,0) -> 0 | D79: lbs
A81: Polymer Addition
A82: Polymer needed per event | B82: polymer_day | C82: =IF(AND(res_holding<>"none",coag_res=1,coag_type<>2),polymer_dose*8.34*MAX(res_vol,res_outcycle_vol)/10^6/polymer_density,0) -> 0 | D82: gal
A83: Polymer storage in gallons | B83: polymer_storage | C83: =IF(AND(res_holding<>"none",coag_res=1,coag_type<>2),polymer_dose*8.34*res_flow_annual/10^6/polymer_density/365*cstore_days,0) -> 0 | D83: gal
A84: Polymer storage in pounds | B84: polymer_storage_lbs | C84: =polymer_storage*polymer_density -> 0 | D84: lbs
A85: Number of chemical storage tanks | B85: polymer_tanks | C85: =ROUNDUP(polymer_storage/max_chem_tank_size,0) -> 0 | D85: units
A86: Chemical storage tank size | B86: polymer_tank_vol | C86: =IF(polymer_tanks>0,polymer_storage/polymer_tanks,0) -> 0 | D86: gal
A87: Mixers per storage tank | B87: polymer_cmix_per_tank | C87: =IF(polymer_tanks<>0,ROUNDUP(polymer_tank_vol/1000*cmix_hp_per/cmix_hp_max,0),0) -> 0 | D87: units
A88: Number of storage tank mixers | B88: polymer_cmixers | C88: =IF(AND(res_holding<>"none",coag_res=1,coag_type<>2),polymer_tanks*polymer_cmix_per_tank,0) -> 0 | D88: units
A89: Mixer size for storage tanks | B89: polymer_cmix_size | C89: =IF(polymer_tanks<>0,polymer_tank_vol/1000*cmix_hp_per/polymer_cmix_per_tank,0) -> 0 | D89: hp
A90: Solution feed rate | B90: polymer_rate | C90: =IF(polymer_day=0,0,polymer_dose*8.34*MAX(res_vol/regeneration_downtime,res_outcycle_vol/backwash_time)/10^6/polymer_density) -> 0 | D90: gph
A91: Number of chemical metering pumps | B91: cm_pumps_polymer | C91: =IF(polymer_day=0,0,ROUNDUP(polymer_rate/max_cm_pump_size,0)+NRD_cm_pump) -> 0 | D91: units
A92: Chemical metering pump rating | B92: cm_pump_rating_polymer | C92: =IF(polymer_day=0,0,MAX(min_chem_flow,polymer_rate*(1+pump_safety_factor)/(cm_pumps_polymer-NRD_cm_pump))) -> 0 | D92: gph
A94: Pumps
A95: Number of pumps | B95: res_pumps | C95: =IF(res_holding<>"none",ROUNDUP(MAX(res_flow,res_outcycle_flow)*(1+pump_safety_factor)/max_pump_size,0)+NRD_res_pump,0) -> 0 | D95: units
A96: Pump design rating | B96: res_pump_rating | C96: =IF(res_holding<>"none",MAX(res_flow,res_outcycle_flow)*(1+pump_safety_factor)/(res_pumps-NRD_res_pump),0) -> 0 | D96: gpm
A98: Solids transfer for holding tanks
A99: Transfer rate required | B99: res_transfer_rate | C99: =res_solids*2000/transfer_time -> 0 | D99: lbs/hr
A100: Transfer rate in gallons | B100: res_transfer_rate_gal | C100: =res_transfer_rate/(ht_solids_density/7.48*60) -> 0 | D100: gpm
A101: Number of slurry pump systems | B101: res_slurry_pumps | C101: =IF(res_transfer_method=1,1,0) -> 0 | D101: units
A102: Number of eductors | B102: res_eductors | C102: =IF(res_transfer_method<>2,0,ROUNDUP(res_transfer_rate_gal/max_eductor_size,0)) -> 0 | D102: units
A103: Effective transfer rate | B103: res_eff_transfer_rate | C103: =IF(res_eductors=0,0,res_transfer_rate_gal/res_eductors) -> 0 | D103: gpm
A104: Eductor size | B104: res_eductor_size | C104: =IF(res_transfer_method=2,VLOOKUP(res_eff_transfer_rate,eductor_size_table_cl,2),"NA") -> NA | D104: inches
A106: Solids drying pad
A107: Area required | B107: solids_pad_area | C107: =ROUNDUP(res_solids*2000/ht_solids_density/solids_storage_height,-1) -> 0 | D107: square ft
A108: Concrete | B108: solids_pad_concrete | C108: =ROUNDUP(solids_pad_area*IF(ss_cat2=1,pad_thick_small,pad_thick)/27,0) -> 0 | D108: cubic yds
A110: Evaporation Ponds
A111: Total open surface area required | B111: ep_total_sa | C111: =IF(res_s2_opt=3,(res_flow_annual/7.48)*ep_safety_factor/((pan_evap*evap_ratio-precip)*0.0328),0) -> 0 | D111: square feet
A112: Required depth for solids accumulation | B112: ep_solids_depth | C112: =IF(res_s2_opt=3,ep_solids/ep_solids_density/ep_total_sa,0) -> 0 | D112: feet
A113: Required depth for liquid accumulation | B113: ep_water_depth | C113: =IF(res_s2_opt=3,(res_flow_annual/7.48)*winter_days/365/ep_total_sa,0) -> 0 | D113: feet
A114: Total excavated depth | B114: ep_depth | C114: =IF(res_s2_opt=3,ep_solids_depth+ep_water_depth+ep_freeboard,0) -> 0 | D114: feet | E114: Additional freeboard provided above grade by dike
A115: Number of cells | B115: ep_cells | C115: =IF(res_s2_opt=3,IF(ROUNDUP(ep_total_sa/(max_ep_cell_area*43560),0)<min_ep_cells,min_ep_cells,ROUNDUP(ep_total_sa/(max_ep_cell_area*43560),0)),0) -> 0 | D115: cells
A116: Cell side length | B116: ep_cell_side | C116: =IF(res_s2_opt=3,SQRT(ep_total_sa/ep_cells),0) -> 0 | D116: feet
A117: Total excavation volume | B117: ep_excavation_vol | C117: =IF(res_s2_opt=3,ROUNDUP(((ep_cell_side+ep_overexcavate)^2*(ep_depth+ep_overexcavate)+0.5*(3*(ep_depth+ep_overexcavate)*(ep_cell_side+ep_overexcavate)*(ep_depth+ep_overexcavate)))*ep_cells/27,0),0) -> 0 | D117: cubic yards
A118: Total backfill volume | B118: ep_backfill_vol | C118: =IF(res_s2_opt=3,ROUNDUP(ep_excavation_vol-(ep_cell_side^2*ep_depth*ep_cells)/27,0),0) -> 0 | D118: cubic yards
A119: Dike volume | B119: dike_volume | C119: =IF(res_s2_opt=3,ep_cells*ep_cell_side*4*dike_xsection/27,0) -> 0 | D119: cubic yards
A120: Liner area | B120: liner_area | C120: =(ep_cell_side^2+ep_cell_side*(ep_depth+2)*4)*ep_cells -> 0 | D120: square feet | E120: Assumes liner extends 2 feet up dike side slope
A122: Piping
A123: Pipe length | B123: res_pipe_length | C123: =facil_length+add_res_pipe_length -> 210 | D123: ft
A124: Pipe diameter | B124: res_pipe_diam | C124: =MAX(min_res_pipe_size,VLOOKUP(MAX(res_flow,res_outcycle_flow),pipe_size_table_cl,2)) -> 6 | D124: inches
A125: Buried pipe length | B125: buried_res_pipe_length | C125: =IF(res_s2_opt=4,0,add_res_pipe_length) -> 40 | D125: ft
A126: Trench depth to top of pipe | B126: res_trn_depth | C126: =MAX(frost,min_trench_depth) -> 38 | D126: in. diam
A127: Thrust force | B127: res_thrust_force | C127: =VLOOKUP(res_pipe_diam,thrust_block_table_cl,2)*2.2 -> 6237.043283 | D127: inches
A128: Bearing Area (L x H) | B128: res_bearing_area | C128: =1.5*res_thrust_force/(soil_dens*(res_trn_depth/12+res_pipe_diam/12)*Coeff_Kp*Reduction) -> 18.7753792 | D128: lbs
A129: L | C129: =res_bearing_area/C130 -> 6.127867361 | D129: square ft
A130: H | C130: =(res_bearing_area/2)^0.5 -> 3.06393368 | D130: ft
A131: F | C131: =MAX(0.5,res_pipe_diam/12) -> 0.5 | D131: ft
A132: T | C132: =C129/2 -> 3.06393368 | D132: ft
A133: Thrust block volume | B133: res_block_vol | C133: =IF(OR(buried_res_pipe_length=0,res_pipe_diam=0),0,(C132+(buried_res_pipe_length/12)/2)*(C129+C131)/2*C130/27) -> 1.778998856 | D133: cy
A134: Trench cross-section area | B134: res_trench_area | C134: =IF(res_pipe_diam=0,0,(res_pipe_diam/12+2)*(bedding_depth/12+res_pipe_diam/12+res_trn_depth/12)+(bedding_depth/12+res_pipe_diam/12+res_trn_depth/12)^2*TAN(trench_angle)) -> 27.77777778 | D134: cy
A135: Trench volume to discharge point | C135: =res_trench_area*buried_res_pipe_length/27 -> 41.15226337 | D135: square ft
A136: Trench volume total | B136: res_trench_vol | C136: =IF(OR(buried_res_pipe_length=0,res_pipe_diam=0),0,C135+res_block_vol) -> 42.93126223 | D136: cy
A137: Bedding cross sectional surface area | C137: =IF(res_pipe_diam=0,0,(res_pipe_diam/12+2)*(bedding_depth/12+res_pipe_diam/12*bedding_pct)+(bedding_depth/12+res_pipe_diam/12*bedding_pct)^2*TAN(trench_angle)-((res_pipe_diam/12/2)^2*ACOS((res_pipe_diam/12/2-bedding_pct*res_pipe_diam/12)/(res_pipe_diam/12/2))-(res_pipe_diam/12/2-res_pipe_diam/12*bedding_pct)*((2*res_pipe_diam/12/2*res_pipe_diam/12*bedding_pct-(res_pipe_diam/12*bedding_pct)^2)^0.5))) -> 1.914738447 | D137: square ft
A138: Bedding volume | B138: res_pipe_bedding_vol | C138: =C137*buried_res_pipe_length/2/27 -> 1.418324775 | D138: cy
A140: Valves and instrumentation
A141: Residuals valve size | B141: res_valve_size | C141: =res_pipe_diam -> 6 | D141: inches
A142: Number of MOVs for residuals line | B142: total_res_MOVs | C142: =VLOOKUP("res_MOV_pump",valve_table,manual+1,FALSE)*res_pumps+VLOOKUP("res_MOV_tank",valve_table,manual+1,FALSE)*IF(res_holding="tanks",htanks,IF(res_holding="basins",hbasins,0))+VLOOKUP("res_MOV_ep",valve_table,manual+1,FALSE)*ep_cells -> 0 | D142: valves
A143: Number of manual valves for residuals line | B143: total_res_man | C143: =VLOOKUP("res_man_pump",valve_table,manual+1,FALSE)*res_pumps+VLOOKUP("res_man_tank",valve_table,manual+1,FALSE)*IF(res_holding="tanks",htanks,IF(res_holding="basins",hbasins,0))+VLOOKUP("res_man_ep",valve_table,manual+1,FALSE)*ep_cells -> 0 | D143: valves
A144: Number of check valves for residuals line | B144: tot_res_chv | C144: =res_chv_pump*res_pumps+IF(res_pumps=0,res_chv_no_pump,0) -> 1 | D144: valves
A145: Total high/low alarms | B145: tot_res_alarm | C145: =IF(res_holding="tanks",htanks,IF(res_holding="basins",hbasins,0))*alarm_res -> 0 | D145: units
A146: Residuals flow meter size | B146: res_meter_size | C146: =res_pipe_diam -> 6 | D146: inches
A148: O&M Items
A149: Pumps
A150: Pump operating horsepower | C150: =IF(res_pumps=0,0,MAX(res_flow_actual,res_outcycle_flow_actual)*res_pump_psi/(res_pumps-NRD_res_pump)/booster_pump_efficiency/14.7*33.9*8.34/550/60) -> 0 | D150: hp
A151: Energy per pump | C151: =C150*0.7457/1000*24*365 -> 0 | D151: MWh/yr
A152: Energy for all active pumps | B152: res_pump_energy | C152: =C151*(res_pumps-NRD_res_pump) -> 0 | D152: MWh/yr
A153: Residuals pump material cost | B153: res_pump_mtl | C153: =OUTPUT!J212*booster_pump_maintenance -> 0 | D153: /yr
A155: Coagulant Use
A156: Annual ferric chloride use | B156: coag_yr | C156: =IF(AND(res_holding<>"none",coag_res=1,coag_type<>1),coag_dose*8.34*res_flow_annual/10^6,0) -> 0 | D156: lbs
A157: Annual polymer use | B157: polymer_yr | C157: =IF(AND(res_holding<>"none",coag_res=1, coag_type<>2),polymer_dose*8.34*res_flow_annual/10^6,0) -> 0 | D157: lbs
A159: Ferric Chloride Purchasing
A160: Quantity required for large quantity purchase | C160: =VLOOKUP("Ferric Chloride - Large Qty",chem_break_table_cl,2,FALSE) -> 29625 | D160: lbs | E160: #N/A indicates that price data do not depend on volume purchased.
A161: Quantity required for mid quantity purchase | C161: =VLOOKUP("Ferric Chloride - Mid Qty",chem_break_table_cl,2,FALSE) -> 2607 | D161: lbs | E161: #N/A indicates that price data do not depend on volume purchased.
A162: Quantity required for small quantity purchase | C162: =VLOOKUP("Ferric Chloride - Small Qty",chem_break_table_cl,2,FALSE) -> 0 | D162: lbs | E162: #N/A indicates that price data do not depend on volume purchased.
A163: Purchase Type | B163: FeCl3_purchase | C163: =IF(AND(ISNA(C160),ISNA(C161),ISNA(C162)),"",IF(FeCl3_store+coag_store>=C160," - Large Qty",IF(FeCl3_store+coag_store>=C161," - Mid Qty"," - Small Qty"))) -> - Small Qty | E163: Returns descriptive term based on volume of each purchase for use in determining pricing. Blank indicates that price data do not depend on volume purchased.
A165: Polymers Purchasing
A166: Quantity required for large quantity purchase | C166: 450 | D166: lbs | E166: #N/A indicates that price data do not depend on volume purchased.
A167: Quantity required for mid quantity purchase | C167: 450 | D167: lbs | E167: #N/A indicates that price data do not depend on volume purchased.
A168: Quantity required for small quantity purchase | C168: 0 | D168: lbs | E168: #N/A indicates that price data do not depend on volume purchased.
A169: Purchase Type | B169: polymer_purchase | C169: =IF(AND(ISNA(C166),ISNA(C167),ISNA(C168)),"",IF(polymer_storage_lbs>=C166," - Large Qty",IF(polymer_storage_lbs>=C167," - Mid Qty"," - Small Qty"))) -> - Small Qty | E169: Returns descriptive term based on volume of each purchase for use in determining pricing. Blank indicates that price data do not depend on volume purchased.
A171: POTW Discharge Fees
A172: TSS in discharged residuals | B172: TSS_residuals_dis | C172: =IF(res_holding<>"none",TSS_residuals*(1-IF(coag_res=1,coag_TSSrem,htank_TSSrem)),TSS_residuals) -> 81033.33333 | D172: ppm
A173: Total TSS in excess of POTW limit (if applicable) | B173: ex_TSS_total | C173: =IF((TSS_residuals_dis-POTW_TSS_limit)*res_flow_annual*3.785/1000/453.59>0,(TSS_residuals_dis-POTW_TSS_limit)*res_flow_annual*3.785/1000/453.59,0) -> 170959.2452 | D173: lbs/year
A174: Annual POTW base fee | C174: =IF(POTW_rate_type=1,POTW_base_cost_avg_cl,IF(POTW_base_fee=1,POTW_base_cost_typ_cl,0))*12 -> 187.9310696 | D174: $/year
A175: Annual POTW volume fee | C175: =IF(POTW_rate_type=1,POTW_vol_cost_avg_cl,IF(POTW_volume_fee=1,POTW_vol_cost_typ_cl,0))*res_flow_annual/1000 -> 1120.640435 | D175: $/year
A176: Annual POTW TSS fee | C176: =IF(POTW_rate_type=1,POTW_TSS_cost_avg_cl,IF(POTW_TSS_fee=1,POTW_TSS_cost_typ_cl,0))*ex_TSS_total -> 41146.43074 | D176: $/year
A177: Total annual POTW discharge fee | B177: POTW_fee | C177: =SUM(C174:C176) -> 42455.00225 | D177: $/year
A179: Liquid Hazardous Waste Disposal
A180: Disposal | C180: =IF(res_s2_opt=4,lhaz_disposal_cost_cl*res_flow_annual,0) -> 0 | D180: $/year
A181: Disposal frequency | C181: =365*24*60/res_stagger_time -> 8.978609626 | D181: times per year
A182: Out of cycle backwash disposal frequency | C182: =+IF(res_outcycle_stagger_time=0,0,365*24*60/res_outcycle_stagger_time) -> 0 | D182: times per year
A183: Shipments per year | C183: =IF(res_vol>max_lhaz_ship,ROUNDUP(res_vol/max_lhaz_ship,0)*C181,C181)+IF(res_outcycle_vol>max_lhaz_ship,ROUNDUP(res_outcycle_vol/max_lhaz_ship,0)*C182,C182) -> 26.93582888
A184: Transportation | C184: =MAX(C183*lhaz_trans_min_cost_cl,res_flow_annual*haz_miles*lhaz_transportation_cost_cl) -> 131024.6128 | D184: $/year
A185: Total annual liquid hazardous waste disposal fee | B185: lhaz_fee | C185: =C180+C184 -> 131024.6128 | D185: $/year
A187: Spent Media Disposal Fees
A188: Disposal | C188: =spent_media*disp_freq*CHOOSE(media_haz,IF(alt_media_disp="",nonhaz_disposal_cost_cl,alt_media_disp),haz_disposal_cost_cl,rad_disposal_cost_cl,hazrad_disposal_cost_cl) -> 109898.1818 | D188: $/year
A189: Shipments per year | B189: disposal_shipments | C189: =CHOOSE(media_haz,disp_freq,IF(spent_media>max_haz_ship,ROUNDUP(spent_media/max_haz_ship,0)*disp_freq,disp_freq),IF(spent_media>max_rad_ship,ROUNDUP(spent_media/max_rad_ship,0)*disp_freq,disp_freq),IF(spent_media>max_hazrad_ship,ROUNDUP(spent_media/max_hazrad_ship,0)*disp_freq,disp_freq)) -> 0.6906622789
A190: Transportation unit cost | C190: =CHOOSE(media_haz,nonhaz_transportation_cost_cl,haz_transportation_cost_cl,rad_transportation_cost_cl,hazrad_transportation_cost_cl) -> 0.5258846902 | D190: $/ton-mile
A191: Transportation minimum charge per shipment | C191: =CHOOSE(media_haz,0,haz_trans_min_cost_cl,rad_trans_min_cost_cl,hazrad_trans_min_cost_cl) -> 0 | D191: $/shipment
A192: Transportation mileage | B192: disposal_miles | C192: =CHOOSE(media_haz,non_haz_miles,haz_miles,rad_miles,hazrad_miles) -> 10 | D192: miles
A193: Transportation | C193: =IF(alt_media_disp<>"",0,MAX(spent_media*C189*C190*C192,C189*C191)) -> 0 | D193: $/year | E193: =IF(AND(media_haz=1,alt_media_disp<>""),"Included in disposal cost","") -> Included in disposal cost
A194: Total annual spent media diposal fee | B194: disposal_fee | C194: =C193+C188+CHOOSE(media_haz,0,0,rad_annual_fee_cl,hazrad_annual_fee_cl) -> 109898.1818 | D194: $/year
A196: Evaporation Pond/Holding Tank Solids Disposal Fees
A197: Disposal | C197: =res_solids*sol_disp_freq*CHOOSE(solids_haz,nonhaz_disposal_cost_cl,haz_disposal_cost_cl,rad_disposal_cost_cl,hazrad_disposal_cost_cl) -> 0 | D197: $/year
A198: Shipments per year | B198: sol_disposal_shipments | C198: =CHOOSE(solids_haz,sol_disp_freq,IF(res_solids>max_haz_ship,ROUNDUP(res_solids/max_haz_ship,0)*sol_disp_freq,sol_disp_freq),IF(res_solids>max_rad_ship,ROUNDUP(res_solids/max_rad_ship,0)*sol_disp_freq,sol_disp_freq),IF(res_solids>max_hazrad_ship,ROUNDUP(res_solids/max_hazrad_ship,0)*sol_disp_freq,sol_disp_freq)) -> 0
A199: Transportation unit cost | C199: =CHOOSE(solids_haz,nonhaz_transportation_cost_cl,haz_transportation_cost_cl,rad_transportation_cost_cl,hazrad_transportation_cost_cl) -> 0.5258846902 | D199: $/ton-mile
A200: Transportation minimum charge per shipment | C200: =CHOOSE(solids_haz,0,haz_trans_min_cost_cl,rad_trans_min_cost_cl,hazrad_trans_min_cost_cl) -> 0 | D200: $/shipment
A201: Transportation mileage | B201: sol_disposal_miles | C201: =CHOOSE(solids_haz,non_haz_miles,haz_miles,rad_miles,hazrad_miles) -> 10 | D201: miles
A202: Transportation | C202: =MAX(C198*C200,res_solids*C198*C201*C199) -> 0 | D202: $/year
A203: Total annual pond/tank solids diposal fee | B203: sol_disposal_fee | C203: =IF(AND(solids_haz=1,solids_method=2),0,C202+C197+CHOOSE(solids_haz,0,0,rad_annual_fee_cl,hazrad_annual_fee_cl)) -> 0 | D203: $/year
A205: Spent Cartridge Filter Disposal Fees
A206: Disposal | C206: =cart_disp_wt*cart_disp_freq*nonhaz_disposal_cost_cl -> 1083.296201 | D206: $/year
A207: Transportation | C207: =cart_disp_wt*cart_disp_freq*non_haz_miles*nonhaz_transportation_cost_cl -> 81.78558702 | D207: $/year
A208: Total annual spent cartridge filter diposal fee | B208: cart_disposal_fee | C208: =SUM(C206:C207) -> 1165.081788 | D208: $/year

Sheet O&M
A1: Operation and Maintenance Calculations
A3: Calculation | B3: Range Name | C3: Value | D3: Units | E3: Guidance
A4: Labor and Materials
A5: Include backwash/rinse pump maintenance? | B5: include_back_maint | C5: =IF(regen_days<=7,1,IF(AND(add_backwash_freq<=7,NOT(ISBLANK(add_backwash_freq))),1,0)) -> 0 | D5: 0 = exclude, 1 = include | E5: Explicitly include labor and materials for maintenance if regeneration and/or backwash/rinse occurs weekly or more frequently
A7: Maintenance materials
A8: Booster pump materials | B8: pump_mtl | C8: =OUTPUT!J202*booster_pump_maintenance -> 5770.278658 | D8: /yr
A9: Backwash pump materials | B9: back_pump_mtl | C9: =IF(backwash_pumps=0,0,IF(include_back_maint=0,0,OUTPUT!J203*booster_pump_maintenance)) -> 0 | D9: /yr
A10: Regenerant pumps | B10: regen_pump_mtl | C10: =IF(regen_freq/60/24<=7,IF(ISNUMBER(OUTPUT!J201),OUTPUT!J201*booster_pump_maintenance,0),0) -> 0 | D10: /yr
A12: Chemicals and Resin
A13: Salt needed per year | B13: salt_year | C13: =365*salt_store/cstore_days -> 0 | D13: lbs
A14: HCl needed per year | B14: HCl_year | C14: =365*total_HCl_lbs/cstore_days -> 0 | D14: lbs
A15: FeCl3 needed per year | B15: FeCl3_year | C15: =365*FeCl3_store/cstore_days -> 0 | D15: lbs | E15: Does not include holding tank coagulant (see Residuals Management for that value)
A16: NaOH needed per year | B16: NaOH_year | C16: =365*NaOH_lbs/cstore_days -> 0 | D16: lbs
A18: Resin loss replacement | B18: resin_loss_vol_annual | C18: =IF(OR(regen_type=1,add_backwash_freq<>0),media_volume*op_num_tanks*resin_loss_annual,0) -> 0 | D18: cf | E18: Relevant only for regenerated systems or throwaway systems with frequent backwash
A19: Complete bed replacement (averaged over resin life) | B19: resin_yr | C19: =spent_media_yr*2000/media_density -> 7326.545455 | D19: cf | E19: =IF(regen_type=2,"Total annual replacement","Averaged over media life and reduced by one year's attrition loss to avoid double counting (no attrition replacement needed in the year you completely replace the bed)") -> Total annual replacement
A21: Cartridge Filters
A22: Labor | B22: cart_labor | C22: =active_filters*hrs_filter -> 324 | D22: hrs/yr | E22: For cartridge filter maintenance
A23: Replacement | B23: pre_filter_replacement | C23: =active_filters*filter_elements*12/cart_life -> 1296 | D23: filters/yr | E23: For replacement of pretreatment cartridge filters only.
A25: General Labor
A26: Number of process instruments for operation | B26: tot_inst | C26: =tot_fm_in+tot_fm_proc+tot_level_switch+tot_turb_meters+tot_head_sens+pH_controls+IF(ss_cat2=1,temp_meters_small,temp_meters)+ORP_sensor+tot_cond_meters -> 62
A27: Total number of instruments for maintenance | B27: tot_inst_maint | C27: =tot_fm_in+tot_fm_proc+tot_level_switch+tot_turb_meters+tot_head_sens+pH_controls+IF(ss_cat2=1,temp_meters_small,temp_meters)+ORP_sensor+tot_cond_meters+tot_fm_back+tot_fm_res -> 64
A28: Number of pumps for operation | B28: tot_pumps | C28: =booster_pumps+MAX(0,pH_pumps-NRD_pH_pumps) -> 7
A29: Total number of pumps for maintenance | B29: tot_pumps_maint | C29: =booster_pumps+res_pumps+IF(regen_days<=7,regen_pumps,0)+IF(include_back_maint=1,backwash_pumps,0) -> 7
A30: Number of process valves | B30: tot_valves | C30: =tot_proc_MOVs+tot_proc_man+tot_bp_MOVs+tot_bp_man -> 133 | E30: Main process valves require frequent operation and preventative maintenance
A31: Number of chemical supplies | B31: tot_chem | C31: =NaOH_tanks+IF(regen_sol=1,mix_tanks,HCl_tanks)+num_salt_box+polymer_tanks -> 0
A32: Regenerations per year | B32: regen_yr | C32: =365/regen_days*final_num_tanks -> 20.71986837 | E32: Accounts for initial rinse even in throwaway systems
A33: Additional out-of-cycle backwashes per year | B33: backwash_yr | C33: =IF(add_backwash_freq<>0,365/add_backwash_freq*final_num_tanks,0) -> 0
A34: Quantity of resin handled per year | B34: media_changes_cf | C34: =spent_media_yr*2000/media_density+resin_loss_vol_annual+resin_yr -> 14653.09091 | D34: cf | E34: Incorporates both removal and refill
A36: Record system operating parameters (includes routine sampling) | C36: =IF(manual=1,tot_inst*uloe_inst*365/60,uloe_inst_auto*365/60) -> 30.41666667 | D36: hr/yr | E36: Instruments requiring daily observation
A37: Preventative maintenance and calibration of instruments | C37: =tot_inst_maint*uloe_inst_maint*12/60 -> 128 | D37: hr/yr | E37: All instruments for preventative maintenance
A38: Verify/adjust pump operating parameters | C38: =IF(OR(manual=1,manual=2,),tot_pumps*uloe_pump*365/60,0) -> 0 | D38: hr/yr | E38: Pumps requiring daily observation/adjustment
A39: Preventative maintenance of pumps | C39: =tot_pumps_maint*uloe_pump_maint -> 211.75 | D39: hr/yr | E39: Large, frequently operated pumps require preventative maintenance
A40: Verify/adjust valve positions | C40: =IF(OR(manual=1,manual=2,),tot_valves*uloe_valve*52/60,0) -> 0 | D40: hr/yr | E40: Main process valves require frequent operation and preventative maintenance
A41: Preventative maintenance and inspection of valves | C41: =tot_valves*uloe_valve_maint/60 -> 11.08333333 | D41: hr/yr
A42: Visual inspection of facility | C42: =total_fp/100*uloe_fp*365/60 -> 1592.008333 | D42: hr/yr
A43: Maintain/inspect chemical supply | C43: =tot_chem*uloe_chem_maint*12/60 -> 0 | D43: hr/yr
A44: Managing regeneration/backwash | C44: =IF(OR(manual=1,manual=2),regen_yr*regeneration_downtime/60+backwash_yr*backwash_time/60,(regen_yr+backwash_yr)*uloe_autoregen/60) -> 3.453311394 | D44: hr/yr
A45: Managing resin changeouts | C45: =media_changes_cf*uloe_throwaway -> 217.0828283 | D45: hr/yr
A46: Managing residual solids | C46: =IF(OR(res_s2_opt=3,res_transfer_method=3),res_solids*2000/ht_solids_density*sol_disp_freq*uloe_throwaway,sol_disp_freq*transfer_time) -> 0 | D46: hr/yr
A47: Subtotal General Operator Labor | B47: General_Oper_Labor | C47: =SUM(C36:C46) -> 2193.794473 | D47: hr/yr
A49: Total Annual Operator LOE | B49: Operator_LOE | C49: =General_Oper_Labor+cart_labor -> 2517.794473 | D49: hr/yr | E49: Subtotal above + building + booster pumps + residuals pumps
A50: Annual Manager LOE | B50: Manager_LOE | C50: =Operator_LOE*Manager_percent -> 251.7794473 | D50: hr/yr | E50: Based on general operator labor and percentages in critical design assumptions
A51: Annual Administrative LOE | B51: Clerical_LOE | C51: =Operator_LOE*Clerical_percent -> 251.7794473 | D51: hr/yr | E51: Based on general operator labor and percentages in critical design assumptions
A53: Building and HVAC Maintenance
A54: Cost excluding heating and cooling | C54: =IF(include_buildings=0,0,building_matl_rate_cl*total_fp) -> 151435.6693 | D54: /yr | E54: Labor and materials; includes routine in-house maintenance and major repairs
A55: Cost to maintain heating system, building 1 | C55: =build1_need_heat*heating_matl_rate_cl*build1_fp -> 2967.107239 | D55: /yr
A56: Cost to maintain cooling system, building 1 | C56: =build1_need_cool*cooling_matl_rate_cl*build1_fp -> 1644.621072 | D56: /yr
A57: Cost to maintain heating system, building 2 | C57: =build2_need_heat*heating_matl_rate_cl*build2_fp -> 505.5759652 | D57: /yr
A58: Cost to maintain cooling system, building 2 | C58: =build2_need_cool*cooling_matl_rate_cl*build2_fp -> 280.2328391 | D58: /yr
A59: Total annual building and HVAC maintenance | B59: bldg_maint_cost | C59: =SUM(C54:C58) -> 156833.2065 | E59: Includes labor and materials
A61: Energy
A62: Booster & Backwash Pumps | E62: Other pumps and mechanical equipment used infrequently. Therefore, these energy costs may be assumed covered by overall process and building energy costs.
A63: Booster pump operating horsepower | B63: pump_hp | C63: =IF(booster_pumps=0,0,(average_flow_rate/IF(bp_pct>0,bp_pct,1))*booster_pump_head/booster_pumps/booster_pump_efficiency/14.7*33.9*8.34/550/60) -> 72.34369349 | D63: hp
A64: Energy per booster pump | C64: =pump_hp*0.7457/1000*24*365 -> 472.573024 | D64: MWh/yr
A65: Energy for all active booster pumps | B65: pump_energy | C65: =C64*booster_pumps -> 3308.011168 | D65: MWh/yr
A67: Backwash Pumps
A68: Backwash pump operating horsepower (all pumps) | B68: back_pump_hp | C68: =water_flush*backwash_pump_head/booster_pump_efficiency/14.7*33.9*8.34/550/60 -> 11.65173818 | D68: hp
A69: Backwash pumping time | B69: back_pump_op_hours | C69: =(regen_yr+backwash_yr)*backwash_time/60 -> 4.143973673 | D69: hours/yr
A70: Energy for all backwash pumps | B70: back_pump_energy | C70: =back_pump_hp*0.7457/1000*back_pump_op_hours -> 0.03600574887 | D70: MWh/yr
A72: Building Lighting
A73: Lighting power per sf, building 1 | B73: lighting_energy_1 | C73: =IF(OR(build1_fp<500,component_level=""),lighting_power_low,CHOOSE(component_level,lighting_power_mid,lighting_power_high))*24*365/1000 -> 8.76 | D73: kWh/sf/yr
A74: Lighting power per sf, building 2 | B74: lighting_energy_2 | C74: =IF(OR(build2_fp<500,component_level=""),lighting_power_low,CHOOSE(component_level,lighting_power_mid,lighting_power_high))*24*365/1000 -> 8.76 | D74: kWh/sf/yr
A75: Lighting | B75: lighting | C75: =IF(include_buildings=0,0,MIN(1,Operator_LOE/(24*365))*(build1_fp*lighting_energy_1+build2_fp*lighting_energy_2)/1000) -> 65.89068136 | D75: MWh/yr
A77: HVAC
A78: Heating energy usage for:
A79: Electric resistance | B79: heating | C79: =IF(build1_heat=A79,VLOOKUP(A79,build1_heat_options, 7,FALSE),0)+IF(build2_heat=A79,VLOOKUP(A79,build2_heat_options, 7,FALSE),0) -> 0 | D79: MWh/yr
A80: Natural gas non-condensing furnace | B80: heating_gas_non | C80: 0 | D80: therms/yr
A81: Natural gas condensing furnace | B81: heating_gas | C81: 33408.75699 | D81: therms/yr
A82: Standard efficiency oil furnace | B82: heating_diesel_non | C82: 0 | D82: gal/yr
A83: Mid-efficiency oil furnace | B83: heating_diesel | C83: 0 | D83: gal/yr
A84: Heat pump | B84: heating_hp | C84: 97.89165876 | D84: MWh/yr
A86: Cooling energy usage for:
A87: Air conditioner | B87: cooling | C87: =IF(build1_cool=A87,VLOOKUP(A87,build1_cool_options, 7,FALSE),0)+IF(build2_cool=A87,VLOOKUP(A87,build2_cool_options, 7,FALSE),0) -> 89.09338238 | D87: MWh/yr
A88: Heat pump | B88: cooling_hp | C88: =IF(build1_cool=A88,VLOOKUP(A88,build1_cool_options, 7,FALSE),0)+IF(build2_cool=A88,VLOOKUP(A88,build2_cool_options, 7,FALSE),0) -> 376.8521658 | D88: MWh/yr

Sheet HVAC
A1: Building Heating, Ventilating, and Air Conditioning Calculations
A3: Calculation | B3: Range Name | C3: Value | D3: Units | E3: Guidance
A4: General information | E4: ss_cat2 is used to select ventilation requirements and building type
A5: System size | B5: ss_cat2 | C5: =IF(design_flow<1,1,IF(design_flow<10,2,3)) -> 3 | D5: 1 indicates small system, 2 indicates medium, 3 indicates large
A6: Building height | B6: Building_height | C6: =IF(tank_geom=1,comm_height_length,comm_diam)+Top_bottom_Vessel_space -> 16 | D6: ft
A7: Buiding 1 length and width | B7: build1_side | C7: =build1_fp^0.5 -> 149.5326051 | D7: ft
A8: Building 2 length and width | B8: build2_side | C8: =build2_fp^0.5 -> 61.72519745 | D8: ft
A9: Include HVAC? | B9: include_HVAC | C9: =IF(include_HVAC_I="no",0,IF(include_HVAC_I="yes",1,2)) -> 2 | D9: 0 = always exclude, 1 = always include, 2 = use model default
A11: Ventilation
A12: Building 1 weighted average air changes | B12: air_changes_build1 | C12: =IF(build2_fp=0,(air_changes_contactor*(vessel_fp+back_tank_fp+htank_fp)+air_changes_pump*(pump_fp+regen_pump_fp)+air_changes_chem_storage*(store_fp+mix_tank_fp+saltbox_fp+acid_tank_fp+NaOH_tank_fp+NaOHday_tank_fp+polymer_fp)+air_changes_office*office_fp)/build1_fp,air_changes_contactor) -> 3 | D12: air changes/hr
A13: Building 2 weighted average air changes | B13: air_changes_build2 | C13: =IF(build2_fp=0,0,(air_changes_contactor*(back_tank_fp+htank_fp)+air_changes_pump*(pump_fp+regen_pump_fp)+air_changes_chem_storage*(store_fp+mix_tank_fp+saltbox_fp+acid_tank_fp+NaOH_tank_fp+NaOHday_tank_fp+polymer_fp)+air_changes_office*office_fp)/build2_fp) -> 5.958005249 | D13: air changes/hr
A14: Building 1 ventilation | C14: =CHOOSE(ss_cat2,fan_days_build1_small,fan_days_build1_medium,fan_days_build1_large)*24*0.746*fan_pressure_drop*build1_fp*Building_height*air_changes_build1/33000 -> 26931.52233 | D14: kWh/yr
A15: Building 2 ventilation | C15: =CHOOSE(ss_cat2,fan_days_build2_small,fan_days_build2_medium,fan_days_build2_large)*24*0.746*fan_pressure_drop*build2_fp*Building_height*air_changes_build2/33000 -> 9113.678545 | D15: kWh/yr
A16: Total ventilation | B16: ventilation | C16: =IF(include_HVAC=0,0,SUM(C14:C15)/1000) -> 36.04520087 | D16: MWh/yr
A18: Building 1 air exchange rate | B18: build1_cfm | C18: =build1_fp*Building_height*air_changes_build1/60 -> 17888 | D18: cfm
A19: Building 2 air exchange rate | B19: build2_cfm | C19: =build2_fp*Building_height*air_changes_build2/60 -> 6053.333333 | D19: cfm
A21: Heating and Cooling
A22: Include heating for building 1 | B22: build1_need_heat | C22: =IF(include_HVAC=0,0,IF(include_HVAC=1,1,VLOOKUP(IF(component_level_I="","low cost",component_level_I),IF(build1_fp<500,heating_table_shed,heating_table),ss_cat2+2,FALSE))) -> 1 | D22: 1 for yes, 0 for no | E22: Based on system size, building floorplan, and inputs
A23: Include cooling for building 1 | B23: build1_need_cool | C23: =IF(include_HVAC=0,0,IF(include_HVAC=1,1,VLOOKUP(IF(component_level_I="","low cost",component_level_I),IF(build1_fp<500,cooling_table_shed,cooling_table),ss_cat2+2,FALSE))) -> 1 | D23: 1 for yes, 0 for no
A24: Include heating for building 2 | B24: build2_need_heat | C24: =IF(build2_fp=0,0,IF(include_HVAC=0,0,IF(include_HVAC=1,1,VLOOKUP(IF(component_level_I="","low cost",component_level_I),IF(build2_fp<500,heating_table_shed,heating_table),ss_cat2+2,FALSE)))) -> 1 | D24: 1 for yes, 0 for no
A25: Include cooling for building 2 | B25: build2_need_cool | C25: =IF(build2_fp=0,0,IF(include_HVAC=0,0,IF(include_HVAC=1,1,VLOOKUP(IF(component_level_I="","low cost",component_level_I),IF(build2_fp<500,cooling_table_shed,cooling_table),ss_cat2+2,FALSE)))) -> 1 | D25: 1 for yes, 0 for no
A27: Heating Requirements
A28: Building 1 side conductance heat loss | C28: =4*build1_side*Building_height*heat_DD*24/R_wall -> 86978837.48 | D28: BTU/yr
A29: Buiding 1 ceiling conductance heat loss | C29: =build1_fp*heat_DD*24/R_ceiling -> 69523124.21 | D29: BTU/yr
A30: Building 1 air exchange heat loss | C30: =build1_cfm*heat_viload -> 3017329952 | D30: BTU/yr
A31: Building 1 total annual heat loss | B31: build1_heat_loss_yr | C31: =SUM(C28:C30) -> 3173831914 | D31: BTU/yr
A32: Building 1 heating requirement in thousand BTU/hr | B32: build1_heat_mbh | C32: =build1_heat_loss_yr/365.25/24/1000 -> 362.0615918 | D32: MBH
A33: Building 1 number of heating zones | B33: build1_heat_zones | C33: =ROUNDUP(build1_heat_mbh/max_heat_cl,0) -> 1
A35: Building 2 side conductance heat loss | C35: =4*build2_side*Building_height*heat_DD*24/R_wall -> 35903781.07 | D35: BTU/yr
A36: Buiding 2 ceiling conductance heat loss | C36: =build2_fp*heat_DD*24/R_ceiling -> 11846292.63 | D36: BTU/yr
A37: Building 2 air exchange heat loss | C37: =build2_cfm*heat_viload -> 1021070213 | D37: BTU/yr
A38: Building 2 total annual heat loss | B38: build2_heat_loss_yr | C38: =SUM(C35:C37) -> 1068820287 | D38: BTU/yr
A39: Building 2 heating requirement in thousand BTU/hr | B39: build2_heat_mbh | C39: =build2_heat_loss_yr/365.25/24/1000 -> 121.927936 | D39: MBH
A40: Building 2 number of heating zones | B40: build2_heat_zones | C40: =ROUNDUP(build2_heat_mbh/max_heat_cl,0) -> 1
A42: Cooling Requirements
A43: Power lost: booster pumps | B43: eloss_pumps | C43: =booster_pumps*pump_hp*(1-booster_pump_efficiency)*0.7457 -> 94.40671142 | D43: kW
A44: Waste heat: booster pumps | B44: waste_heat_pumps | C44: =eloss_pumps*3415 -> 322398.9195 | D44: BTU/hr
A45: Power lost: backwash pumps | B45: eloss_bw_pumps | C45: =back_pump_hp*(1-booster_pump_efficiency)*0.7457 -> 2.172175291 | D45: kW
A46: Waste heat: backwash pumps | B46: waste_heat_bw_pumps | C46: =eloss_bw_pumps*3415 -> 7417.978617 | D46: BTU/hr
A48: Building 1 side conductance cooling loss | C48: =4*build1_side*Building_height*cool_DD*24/R_wall -> 29982345.56 | D48: BTU/yr
A49: Buiding 1 ceiling conductance cooling loss | C49: =build1_fp*cool_DD*24/R_ceiling -> 23965212.63 | D49: BTU/yr
A50: Building 1 air exchange cooling loss | C50: =build1_cfm*cool_viload -> 926079648 | D50: BTU/yr
